Workbook

Sheet Instructions
B12: Links:

Sheet Catalogue d'indicateurs
A1: Registre des indicateurs - mettant en évidence ceux utilisés pour la prévision des réponses HNO et PRH
A2: Clusters globaux | B2: HNO et PRH | C2: Code | D2: Sous-domaine | E2: Titre | F2: Description | G2: Unité de mesure | H2: Description de l’unité | I2: Dénominateur | J2: Numérateur | K2: Données ventilées | L2: Indicateur clé | M2: Types | N2: Suivi des réponses | O2: Standards | P2: Seuil | Q2: Directives sur les phases | R2: Directives générales | S2: Directives pour la pré-crise/base de référence | T2: Commentaires | U2: Sources de données | V2: Marquage sectoriel croisé
A3: Nutrition | B3: Clé - Résultat | C3: N-001 | D3: N1 Prévention et gestion de la malnutrition aiguë | E3: Malnutrition aiguë globale (MAG) | F3: prévalence (%) de malnutrition aiguë globale chez les enfants de 6-59 mois en fonction de la présence d’un œdème bilatéral aiguë et/ou d'un rapport poids/taille inférieur à 2 écarts-type de la médiane de la population de référence (OMS, 2006) | G3: Individuel | H3: Pourcentage | I3: Nombre total d’enfant âgés de 6-59 mois enquêtés | J3: Nombre d’enfants âgés de 6-59 mois répondant aux critères concernant la malnutrition aiguë globale | K3: Zone géographique, âge, sexe | L3: Oui | M3: Base de référence, Résultat | N3: Oui | P3: SEUIL DE L’OMS 854. Classification de la sévérité : 5,10, 15 % | Q3: préparatoire ; Phase III et IV | R3: Doit être basé sur les résultats d'une enquête anthropométrique méthodologiquement solide sur la nutrition et doit inclure des intervalles de confiance | T3: Remarque : les taux P/T et PB ne mesurent pas les mêmes choses et ne sont pas comparables. Les données sur les taux de malnutrition globale doivent être comparées par sexe afin d’identifier toute discrimination spécifique à laquelle les filles ou les garçons pourraient être confrontés dans l'accès à la nutrition. Dans ce cas, il est important de faire la différence entre le pourcentage de filles et le pourcentage de garçons souffrant de malnutrition, le programme devrait s'attaquer à ces écarts en procédant à une analyse sexospécifique des défis spécifiques auxquels le groupe défavorisé est confronté en matière d'égalité d'accès à la nutrition, y compris une analyse des habitudes et croyances socioculturelles qui pourraient avoir un impact différent sur le bien-être nutritionnel des filles et des garçons. | U3: Enquêtes démographiques avec méthodes d’échantillonnage représentatives (MICS, EDS, SMART) | V3: F1 Aide alimentaire, H2 Santé infantile, H4.2 Soins maternels et néonatals, W1 Promotion de l’hygiène, W2 Approvisionnement en eau, W3 Évacuation des excréments
A4: Nutrition | B4: Clé - Résultat | C4: N-005 | D4: N1 Prévention et gestion de la malnutrition aiguë | E4: Malnutrition aiguë modérée (MAM) | F4: prévalence (%) de malnutrition aiguë modérée chez les enfants de 6-59 mois en fonction de la présence d’un rapport poids/taille inférieur à -2 et supérieur ou égal à -3 écarts-type de la médiane de la population de référence (OMS, 2006) | G4: Individuel | H4: Pourcentage | I4: Nombre total d’enfant âgés de 6-59 mois enquêtés | J4: Nombre d’enfants âgés de 6-59 mois répondant aux critères concernant la malnutrition aiguë modérée | K4: Zone géographique, âge, sexe | L4: Oui | M4: Base de référence, Résultat | N4: Oui | P4: Pas de seuil standard de l'OMS ; ce seuil doit être interprété en tenant compte d'autres indicateurs, notamment la morbidité, la mortalité et la proportion de la MAG. | Q4: préparatoire ; Phase III et IV | R4: Doit être basé sur les résultats d'une enquête anthropométrique méthodologiquement solide sur la nutrition et doit inclure des intervalles de confiance | S4: Prévalence facile à obtenir en soustrayant la MAS de la MAG | T4: Remarque : les taux P/T et PB ne mesurent pas les mêmes choses et ne sont pas comparables. Les données sur la prévalence de malnutrition aiguë modérée doivent être comparées par sexe afin d’identifier toute discrimination spécifique à laquelle les filles ou les garçons pourraient être confrontés dans l'accès à la nutrition. Dans ce cas, il est important de faire la différence entre le pourcentage de filles et le pourcentage de garçons souffrant de malnutrition, le programme devrait s'attaquer à ces écarts en procédant à une analyse sexospécifique des défis spécifiques auxquels le groupe défavorisé est confronté en matière d'égalité d'accès à la nutrition, y compris une analyse des habitudes et croyances socioculturelles qui pourraient avoir un impact différent sur le bien-être nutritionnel des filles et des garçons. | U4: Enquêtes démographiques avec méthodes d’échantillonnage représentatives (MICS, EDS, SMART) | V4: F1 Aide alimentaire, H2 Santé infantile, H4.2 Soins maternels et néonatals, W1 Promotion de l’hygiène, W2 Approvisionnement en eau, W3 Évacuation des excréments
A5: Nutrition | B5: Clé - Résultat | C5: N-003 | D5: N1 Prévention et gestion de la malnutrition aiguë | E5: Malnutrition aiguë sévère (MAS) | F5: prévalence (%) de malnutrition aiguë sévère chez les enfants de 6-59 mois en fonction de la présence d’un œdème de piqûres bilatéral et/ou d'un rapport poids/taille inférieur à -3 des écarts-type de la médiane de la population de référence (OMS, 2006) | G5: Individuel | H5: Pourcentage | I5: Nombre total d’enfant âgés de 6-59 mois enquêtés | J5: Nombre d’enfants âgés de 6-59 mois répondant aux critères concernant la malnutrition aiguë sévère | K5: Zone géographique, âge, sexe | L5: Oui | M5: Base de référence, Résultat | N5: Oui | P5: Pas de seuil standard de l'OMS ; ce seuil doit être interprété en tenant compte d'autres indicateurs, notamment la morbidité, la mortalité et la proportion de la MAG ; Référence : Normes OMS de croissance de l’enfant et identification de la malnutrition aiguë sévère chez les nourrissons et les enfants. Une déclaration conjointe par l’Organisation Mondiale de la Santé et le Fonds des Nations Unies pour l’enfance, 2009 | Q5: préparatoire ; Phase III et IV | R5: Doit être basé sur les résultats d'une enquête anthropométrique méthodologiquement solide sur la nutrition et doit inclure des intervalles de confiance | T5: Remarque : les taux P/T et PB ne mesurent pas les mêmes choses et ne sont pas comparables. Les données sur la prévalence de malnutrition aiguë sévère doivent être comparées par sexe afin d’identifier toute discrimination spécifique à laquelle les filles ou les garçons pourraient être confrontés dans l'accès à la nutrition. Dans ce cas, il est important de faire la différence entre le pourcentage de filles et le pourcentage de garçons souffrant de malnutrition, le programme devrait s'attaquer à ces écarts en procédant à une analyse sexospécifique des défis spécifiques auxquels le groupe défavorisé est confronté en matière d'égalité d'accès à la nutrition, y compris une analyse des habitudes et croyances socioculturelles qui pourraient avoir un impact différent sur le bien-être nutritionnel des filles et des garçons. | U5: Enquêtes démographiques avec méthodes d’échantillonnage représentatives (MICS, EDS, SMART) | V5: F1 Aide alimentaire, H1 Services cliniques généraux et soins de traumatologie, H2 Santé infantile, H4.2 Soins maternels et néonatals, W1 Promotion de l’hygiène, W2 Approvisionnement en eau, W3 Évacuation des excréments
A6: Nutrition | B6: Clé - Résultat | C6: N-008 | D6: N1 Prévention et gestion de la malnutrition aiguë | E6: Malnutrition aiguë en fonction du PB et de l'œdème | F6: Prévalence (%) des enfants de 6-59 mois avec un PB inférieur à 125 mm et/ou ayant un œdème bilatéral aiguë | G6: Individuel | H6: Pourcentage | I6: Nombre total d’enfant âgés de 6-59 mois enquêtés | J6: Nombre d’enfants âgés de 6-59 mois répondant aux critères concernant l’émaciation basée sur le PB | K6: Zone géographique, âge, sexe | L6: Oui | M6: Base de référence, Résultat | N6: Oui | P6: Normes OMS de croissance de l’enfant et identification de la malnutrition aiguë sévère chez les nourrissons et les enfants. Une déclaration conjointe par l’Organisation Mondiale de la Santé et le Fonds des Nations Unies pour l’enfance, 2009 | Q6: Phase I, II ; ajoutées aux enquêtes de Phase III, IV | R6: Lorsque cela est possible, utiliser des enquêtes représentatives, alternativement - une évaluation nutritionnelle rapide avec un nombre réduit d'enfants peut donner une idée de la situation - mais ces résultats d'une évaluation nutritionnelle rapide - avec un nombre réduit d'enfants doivent être traités avec prudence et ne doivent PAS être présentés comme une prévalence mais comme un nombre d'enfants | T6: Il convient de fractionner les cas d’œdèmes ; néanmoins il y a un souci d’exactitude et de précision. | U6: Enquêtes démographiques avec méthodes d’échantillonnage représentatives (MICS, EDS, SMART) et évaluation rapide de la nutrition | V6: F1 Aide alimentaire, F3 Accès à l'alimentation, F5 Accès au marché, F7 Utilisation, H2 Santé infantile, H4.2 Soins maternels et néonatals, W1 Promotion de l’hygiène, W2 Approvisionnement en eau, W3 Évacuation des excréments, W4 Lutte antivectorielle
A7: Nutrition | B7: Clé - Résultat | C7: N-010 | D7: N1 Prévention et gestion de la malnutrition aiguë | E7: Malnutrition aiguë modérée en fonction du PB | F7: prévalence (%) des enfants de 6-59 mois avec un PB inférieur à 125 mm mais égal ou supérieur à 115 mm | G7: Individuel | H7: Pourcentage | I7: Nombre total d’enfant âgés de 6-59 mois enquêtés | J7: Nombre d’enfants âgés de 6-59 moins répondant aux critères concernant l’émaciation modérée en fonction du PB | K7: Zone géographique, âge, sexe | L7: Oui | M7: Base de référence, Résultat | N7: Oui | Q7: Phase I, II ; ajoutées aux enquêtes de Phase III, IV | R7: Lorsque cela est possible, utiliser une enquête représentative, alternativement - une évaluation nutritionnelle rapide avec un nombre réduit d'enfants peut vous donner une idée de la situation - mais ces résultats d'une évaluation nutritionnelle rapide - avec un nombre réduit d'enfants doivent être traités avec prudence et ne doivent PAS être présentés comme une prévalence mais comme un nombre d'enfants | S7: Prévalence facile à calculer : soustraction de la Proportion de l’émaciation sévère basée sur un PB faible de la Proportion de l’émaciation basée sur un PB faible | U7: Enquêtes démographiques avec méthodes d’échantillonnage représentatives (MICS, EDS, SMART) | V7: F1 Aide alimentaire, F3 Accès à l'alimentation, F5 Accès au marché, F7 Utilisation, H2 Santé infantile, H4.2 Soins maternels et néonatals, W1 Promotion de l’hygiène, W2 Approvisionnement en eau, W3 Évacuation des excréments, W4 Lutte antivectorielle
A8: Nutrition | B8: Clé - Résultat | C8: N-009 | D8: N1 Prévention et gestion de la malnutrition aiguë | E8: Malnutrition aiguë sévère en fonction du PB et de l’œdème | F8: prévalence (%) des enfants de 6-59 mois avec un PB inférieur à 115 mm et/ou ayant un œdème bilatéral aiguë | G8: Individuel | H8: Pourcentage | I8: Nombre total d’enfant âgés de 6-59 mois enquêtés | J8: Nombre d’enfants âgés de 6-59 mois répondant aux critères concernant l’émaciation sévère basé sur le PB | K8: Zone géographique, âge, sexe | L8: Oui | M8: Base de référence, Résultat | N8: Oui | P8: Normes OMS de croissance de l’enfant et identification de la malnutrition aiguë sévère chez les nourrissons et les enfants. Une déclaration conjointe par l’Organisation Mondiale de la Santé et le Fonds des Nations Unies pour l’enfance, 2009 | Q8: Phase I, II ; ajoutées aux enquêtes de Phase III, IV | R8: Lorsque cela est possible, utiliser des enquêtes représentatives, alternativement - une évaluation nutritionnelle rapide avec un nombre réduit d'enfants peut donner une idée de la situation - mais ces résultats d'une évaluation nutritionnelle rapide - avec un nombre réduit d'enfants doivent être traités avec prudence et ne doivent PAS être présentés comme une prévalence mais comme un nombre d'enfants | T8: Il convient de fractionner les cas d’œdèmes ; néanmoins il y a un souci d’exactitude et de précision. | U8: Enquêtes démographiques avec méthodes d’échantillonnage représentatives (MICS, EDS, SMART) et évaluation rapide de la nutrition | V8: F1 Aide alimentaire, F3 Accès à l'alimentation, F5 Accès au marché, F7 Utilisation, H1 Services cliniques généraux et soins de traumatologie essentiels, H2 Santé infantile, H4.2 Soins maternels et néonatals, W1 Promotion de l’hygiène, W2 Approvisionnement en eau, W3 Évacuation des excréments, W4 Lutte antivectorielle
A9: Nutrition | B9: Clé - Résultat | C9: N-011 | D9: N1 Prévention et gestion de la malnutrition aiguë | E9: Malnutrition aiguë chez les femmes enceintes et allaitantes | F9: prévalence (%) de femmes enceintes et allaitantes avec un PB inférieur à 210-230 mm (Remarque : Les pays utilisent une série de seuils différents en fonction des ressources) | G9: Individuel | H9: Pourcentage | I9: Nombre total de femmes enceintes et allaitantes ayant des nourrissons de 0-5 mois enquêtés | J9: Nombre de femmes enceintes et allaitantes avec des nourrissons âgés de 0-5 mois répondant aux critères concernant la malnutrition aiguë basé sur le PB | K9: Zone géographique | L9: Oui | M9: Base de référence, Résultat | N9: Oui | Q9: Toutes les phases | R9: Il n'existe AUCUN seuil international convenu pour le PB pour les femmes enceintes et allaitantes. Les seuils nationaux du PB peuvent donc varier. Si disponible/possible, utiliser une enquête représentative, sinon - une évaluation rapide de la nutrition avec un nombre réduit de femmes enceintes et allaitantes peut vous donner une certaine idée de la situation | T9: Le nombre de femmes enceintes et allaitantes peut être problématique à définir et à identifier. Les enquêtes SMART fournissent des données pour les femmes ayant des enfants, la définition de l’allaitement doit donc se faire pour les mères ayant des nourrissons de 0-5 mois ; prudence concernant l’exclusion des femmes en première grossesse | U9: Enquêtes démographiques avec méthodes d’échantillonnage représentatives (MICS, EDS, SMART) ou évaluation rapide de la nutrition | V9: F1 Aide alimentaire, F3 Accès à l’alimentation, F4 Accès aux revenus, F5 Accès au marché, F6 Disponibilité, F7 Utilisation, H1 Services cliniques généraux et soins de traumatologie essentiels, H2 Santé infantile, H4.2 Soins maternels et néonatals, W1 Promotion de l’hygiène, W2 Approvisionnement en eau, W4 Évacuation des excréments
A10: Nutrition | B10: Clé - Résultat/Facteur de contribution clé | C10: N-007 | D10: N1 Prévention et gestion de la malnutrition aiguë | E10: Retard de croissance chez les enfants | F10: prévalence (%) de malnutrition aiguë modérée chez les enfants de 0-59 mois en fonction de la présence d’un score z de poids pour taille inférieur à -2 des écarts-type de la médiane de la population de référence (OMS, 2006) | G10: Individuel | H10: Pourcentage | I10: Nombre total d’enfant âgés de 0-59 mois enquêtés | J10: Nombre d’enfants de 0-59 mois répondant au critère de retard de croissance | K10: Zone géographique, âge, sexe | L10: Oui | M10: Base de référence, Résultat | N10: Oui | P10: SEUIL DE L’OMS 854. Classification de la sévérité : 20, 30, 40 % | Q10: préparatoire ; Phase III et IV | R10: Doit être basé sur les résultats d'une enquête anthropométrique méthodologiquement solide sur la nutrition et doit inclure des intervalles de confiance | S10: L'objectif sera d'évaluer le retard de croissance dans toute la tranche d'âge de 0-59 mois | T10: Les données ventilées par sexe et groupe d’âge doivent être visées et les résultats analysés. Remarque : si les enquêtes en cours incluent les 0-59 ans, utilisez cette tranche d'âge - si cela n'est pas le cas - et que l'enquête inclut les 6-59 ans, nous pouvons utiliser les 6-59 ans. La proportion doit être idéalement ajustée pour les 0-59 mois | U10: Enquêtes démographiques avec méthodes d’échantillonnage représentatives (MICS, EDS, SMART) | V10: F1 Aide alimentaire, F2 Aide aux moyens de subsistance, F3 Accès à l'alimentation, F4 Accès aux revenus, H2 Santé infantile, H4.2 Soins maternels et néonatals, W1 Promotion de l’hygiène, W2 Approvisionnement en eau, W3 Évacuation des excréments, W4 Lutte anti-vectorielle
A11: Nutrition | B11: Clé - Facteur de contribution clé | C11: N-030 | D11: N2 Alimentation des nourrissons et des jeunes enfants | E11: Allaitement exclusif jusqu'à 6 mois | F11: Proportion de nourrissons de 0-5 mois qui sont exclusivement nourris au lait maternel | G11: Individuel | H11: Pourcentage | I11: Nombre total de nourrissons âgés de 0-5 mois enquêtés | J11: Nourrissons de 0-5 mois qui ont reçu uniquement du lait maternel le jour précédent | K11: Zone géographique, sexe, âge : 0-1, 2-3, 4-5 mois si disponible | L11: Oui | M11: Base de référence, Résultat | N11: Oui | O11: Sécurité alimentaire et nutrition 4.2.1 | P11: Aucune norme : Une proportion <80 est généralement une priorité. Discuter des désignations élevées, moyennes et basses en groupe | Q11: Pour les phases III et IV, l'indicateur clé de l’OMS devra être mesuré. Dans les phases 1 et 11, il n’est pas possible d’évaluer précisément le taux d’allaitement exclusif dans la population. L'information de la base de référence et le N-40 (non allaité) seront l’information clé dans les phases I et II. | R11: Indicateur clé de l’ANJE de l’OMS. | S11: Pour la phase préparatoire, l’indicateur clé de l’OMS devra être mesuré | T11: Une attention particulière devrait être accordée à la différence potentielle entre l’allaitement des nourrissons de sexe masculin et de sexe féminin. Si des différences sont constatées, celles-ci devraient influencer les messages d’éducation nutritionnelle. | U11: Préparatoire, phase III et IV : enquête représentative de l’ANJE. Les phases I et II utilisent des enquêtes avec des informateurs clés et un échantillonnage opportuniste pour donner une indication d'ALERTE | V11: H2 Santé infantile, H4.2 Soins maternels et néonatals, (R) Reprise rapide
A12: Nutrition | B12: Clé - Facteur de contribution clé | C12: N-040 | D12: N2 Alimentation des nourrissons et des jeunes enfants | E12: Distribution de préparation pour nourrisson, de lait en poudre ou de liquide à la population affectée | F12: Distribution confirmée de préparation pour nourrisson, de lait en poudre ou de liquide à la population affectée | G12: Individuel | H12: Oui/Non | I12: N/C | J12: N/C | K12: Zone géographique | L12: Oui | M12: Base de référence, Résultat | N12: Oui | O12: Sécurité alimentaire et nutrition 4.2.1 | P12: tolérance zéro | Q12: Phases 1,11, 111 et IV. | R12: Il s’agit d'une alerte aux problèmes. Toute distribution générale de ces produits à la population touchée est préoccupante car il existe un risque de trop-plein chez les nourrissons et les jeunes enfants. | U12: Entretiens avec des informateurs clés (inclure la logistique et toutes les agences impliquées dans la distribution, ainsi que le personnel de santé et de nutrition et les soignants). Rapports de distribution. Observations. | V12: H2 Santé infantile, H4.2 Soins maternels et néonatals
A13: Nutrition | B13: Clé - Facteur de contribution clé | C13: N-041 | D13: N2 Alimentation des nourrissons et des jeunes enfants | E13: Distribution inappropriée de préparation pour nourrisson, de lait en poudre ou de liquide pour les enfants de 0-< 2 ans | F13: Distribution confirmée de préparation pour nourrisson, de lait en poudre ou de liquide pour les enfants de 0-< 2 ans | G13: Communauté | H13: Oui/Non | I13: N/C | J13: N/C | K13: Zone géographique | L13: Oui | M13: Base de référence, Résultat | N13: Oui | O13: Sécurité alimentaire et nutrition 4.2.1 | P13: tolérance zéro | Q13: Phases 1,11, 111 et IV. | R13: Il s’agit d'une alerte aux problèmes. Une distribution est inappropriée lorsque la distribution n'est pas conforme aux directives opérationnelles de l'IFE en ce qui concerne le respect des critères d'évaluation des besoins, la disponibilité d'un soutien qualifié, la garantie de continuité des approvisionnements, le suivi individuel, la disponibilité des installations de stockage et de préparation, l'étiquetage approprié et la surveillance des trop-pleins sur les nourrissons allaités. | U13: Entretiens avec des informateurs clés (inclure la logistique et toutes les agences impliquées dans la distribution, ainsi que le personnel de santé et de nutrition et les soignants). Rapports de distribution. Observations. | V13: H2 Santé infantile, H4.2 Soins maternels et néonatals
A14: Nutrition | B14: Clé - Facteur de contribution clé | C14: N-035 | D14: N2 Alimentation des nourrissons et des jeunes enfants | E14: Diversification alimentaire minimale | F14: Proportion d’enfants de 6-23 mois qui reçoivent des aliments de 4 groupes d’aliments ou plus | G14: Individuel | H14: Pourcentage | I14: Nombre total d’enfant de 6-23 mois enquêtés | J14: Nombre d’enfants de 6-23 mois qui ont reçus des aliments des 4 groupes ou plus d’aliments | K14: Zone géographique, sexe | L14: Non | M14: Base de référence, Résultat | N14: Oui | O14: Sécurité alimentaire et nutrition 4.2.2 | P14: Aucune norme : Une proportion <80 est généralement une priorité. Discuter des désignations élevées, moyennes et basses en groupe | Q14: préparatoire ; Phase III et IV | R14: Cet indicateur est adapté de l’indicateur clé de l’ANJE de l’OMS pour les enfants de 6-23 mois. | T14: Les données doivent être comparées par sexe afin d’identifier toute limitation spécifique à laquelle les filles ou les garçons pourraient être confrontés dans l'accès à la diversité alimentaire. Dans le cas où il y aurait une différence importante, le programme devra s'attaquer à ces écarts en procédant à une analyse sexospécifique des défis spécifiques auxquels le groupe défavorisé est confronté, y compris une analyse des habitudes et croyances socioculturelles (c-à-d. les tabous alimentaires) qui pourraient avoir un impact différent sur la diversité alimentaire des filles et des garçons. | U14: Enquête représentative de l’ANJE | V14: F3 Accès à l’alimentation, F4 Accès aux revenus, F5 Accès au marché, F6 Disponibilité, F7 Utilisation, H2 Santé infantile
A15: Nutrition | B15: Clé - Facteur de contribution clé | C15: N-037 | D15: N2 Alimentation des nourrissons et des jeunes enfants | E15: Régime minimum acceptable | F15: Proportion d’enfants de 6-23 mois qui reçoivent un régime alimentaire minimum acceptable (à l’exception du lait maternel) | G15: Individuel | H15: Pourcentage | I15: Nombre total d’enfant de 6-23 mois enquêtés | J15: Nombre d’enfant de 6-23 mois qui ont reçu un régime alimentaire minimum acceptable | K15: Zone géographique, sexe | L15: Oui | M15: Base de référence, Résultat | N15: Oui | O15: Sécurité alimentaire et nutrition 4.2.2 | P15: Aucune norme : Une proportion <80 est généralement une priorité. Discuter des désignations élevées, moyennes et basses en groupe | Q15: préparatoire ; Phase III et IV | R15: Indicateur clé de l’ANJE de l’OMS | U15: Enquête représentative de l’ANJE | V15: F3 Accès à l’alimentation, F4 Accès aux revenus, F5 Accès au marché, F6 Disponibilité, F7 Utilisation, H2 Santé infantile
A16: Nutrition | B16: Clé - Facteur de contribution clé | C16: N-024 | D16: N3 Prévention et contrôle des carences en micronutriments | E16: Prévalence de l’anémie | F16: Proportion d'enfants de moins de 5 ans présentant une concentration d'Hb de < 11 g/dl | G16: Individuel | H16: Pourcentage | I16: Nombre total d’enfant âgés de moins de cinq ans enquêtés | J16: Nombre d'enfants de moins de 5 ans présentant une concentration d'Hb de < 11 g/dl | K16: Zone géographique | L16: Non | M16: Base de référence, Résultat | N16: Oui | O16: Sécurité alimentaire et nutrition 4.1.0 | P16: Importance pour la santé publique : <4.9 Proportion de Normal/Approprié ; 5-19.9 Proportion de Faible ; 20-39.9 Proportion de Moyen ; >40 Proportion de Élevé (réf : OMS 2001). | Q16: préparatoire | R16: Le test de prélèvement sanguin par piqûre au doigt est facile à administrer sur le terrain. Le test peut être facilement intégré au cours d'un examen de santé régulier ou prénatal pour prendre en compte toutes les femmes en âge de procréer. Le coût de l’équipement peut être prohibitif | T16: Directive de l’OMS : who.int/indicators/haemolobin.pdf ; | U16: Données primaires - Enquêtes nationales, études locales, EDS, MICS, données auxiliaires - VMNIS | V16: F1 Aide alimentaire, F3 Accès à l’alimentation, F4 Accès aux revenus, F5 Accès au marché, F6 Disponibilité, F7 Utilisation, H2 Santé infantile, H4.2 Soins maternels et néonatals, H5 Maladies non transmissibles et santé mentale
A17: Nutrition | B17: Clé - Facteur de contribution clé | C17: N-025 | D17: N3 Prévention et contrôle des carences en micronutriments | E17: Prévalence de l’anémie | F17: Proportions de femmes enceintes avec des concentrations en de <11 g/dl | G17: Individuel | H17: Pourcentage | I17: Nombre total de femmes enceinte enquêtées | J17: Nombre total de femmes enceintes anémiques (Hb>11 g/dl pour femmes enceintes) | K17: Zone géographique | L17: Non | M17: Base de référence, Résultat | N17: Oui | O17: Sécurité alimentaire et nutrition 4.1.1 | P17: Importance pour la santé publique : <4.9 Proportion de Normal/Approprié ; 5-19.9 Proportion de Faible ; 20-39.9 Proportion de Moyen ; >40 Proportion de Élevé (réf : OMS 2001). | Q17: préparatoire | R17: Le test de prélèvement sanguin par piqûre au doigt est facile à administrer sur le terrain. Le test peut être facilement intégré au cours d'un examen de santé régulier ou prénatal pour prendre en compte toutes les femmes en âge de procréer. Le coût de l’équipement peut être prohibitif | T17: Directive de l’OMS : who.int/indicators/haemolobin.pdf ; | U17: Données primaires - Enquêtes nationales, études locales, EDS, MICS, données auxiliaires - VMNIS | V17: F1 Aide alimentaire, F3 Accès à l’alimentation, F4 Accès aux revenus, F5 Accès au marché, F6 Disponibilité, F7 Utilisation, H2 Santé infantile, H4.2 Soins maternels et néonatals, H5 Maladies non transmissibles et santé mentale
A18: Nutrition | B18: Clé - Facteur contextuel | C18: N-001 | D18: N4 Prévention et gestion du double fardeau de la malnutrition | E18: Prévalence du surpoids | F18: prévalence (%) de surpoids chez les enfants de 6-59 mois basée sur un rapport poids/taille supérieur à 2 écarts types de la médiane de la population de référence (OMS, 2006) | G18: Individuel | H18: Pourcentage | I18: Nombre total d’enfant âgés de 6-59 mois enquêtés | J18: Nombre d’enfants âgés de 6-59 mois répondant aux critères concernant le surpoids | K18: Zone géographique, âge, sexe | L18: Oui | M18: Base de référence, Résultat | N18: Oui | P18: SEUIL DE L’OMS 854. Classification de la sévérité : 5,10, 15 % | R18: Doit être basé sur les résultats d'une enquête anthropométrique méthodologiquement solide sur la nutrition et doit inclure des intervalles de confiance | U18: Enquêtes démographiques avec méthodes d’échantillonnage représentatives (MICS, EDS, SMART)
A19: Nutrition | B19: Clé - Facteur contextuel | C19: N-015 | D19: N1 Prévention et gestion de la malnutrition aiguë | E19: Malnutrition aiguë pour les personnes âgées | F19: prévalence (%) pour les personnes âgées avec un PB inférieur à 210 mm ou ayant un œdème bilatéral aiguë | G19: Individuel | H19: Pourcentage | I19: Nombre total de personnes âgées enquêtées | J19: Nombre de personnes âgées répondant au critère concernant la malnutrition aiguë | K19: Zone géographique, sexe : en préparation, phase III et IV, ventiler par sévérité (< 185 mm et entre 185 et 209 mm) | L19: Oui | M19: Base de référence, Résultat | N19: Oui | P19: PB > 210 mm ; absence de malnutrition ; MAM : PB < 210 mm MAS : PB < 185 mm ou œdème (Directives Help Age 2013) | Q19: En phase préparatoire ainsi qu’en phase I et II : utiliser des méthodes d’évaluation rapides. En phases III et IV, organiser des enquêtes avec des échantillons plus importants ou utiliser des méthodes d’évaluation rapides, avec un questionnaire à indicateurs multiples | R19: Les méthodes d’évaluation rapides peuvent être utilisées à n’importe quelle phase. Le questionnaire devra inclure des questions sur le statut socio-économique, la santé, la sécurité alimentaire des ménages, l’eau et l’assainissement. | S19: En phase préparatoire : Collecter des données démographiques de base de référence à propos du pourcentage de personnes âgées de 50 et plus (ou 60 et plus) ventilées par sexe et groupes d’âge de 5 ans (50-59, 60-64, 65-69, 70-74, 75-80, 80 et plus). Évaluer la sécurité alimentaire domestique. Organiser des groupes de discussion avec des personnes âgées pour avoir une idée de leur accès à l’alimentation. | T19: La définition de l'ONU désigne les personnes de 60 ans et plus (≥ 60) comme âgées, mais dans certains contextes (par ex., en Somalie, en Éthiopie, au Soudan, etc.), elles peuvent être de 50 ans et plus (car les personnes sont considérées « âgées » à partir de cet âge) ; Remarque : L’œdème nutritionnel chez les personnes âgées peut être difficile à distinguer des autres types d’œdème. Séparer l’IMC et les cas d’œdème si nécessaire. Les données sur les taux de malnutrition aiguë doivent être comparées par sexe afin d’identifier toute discrimination spécifique à laquelle les femmes âgées ou les garçons âgés pourraient être confrontés dans l'accès à la nutrition. Dans ce cas, il est important de faire la différence entre le pourcentage de femmes âgées et le pourcentage d’hommes âgés souffrant de malnutrition aiguë, le programme devrait s'attaquer à ces écarts en procédant à une analyse sexospécifique des défis spécifiques auxquels le groupe défavorisé est confronté, y compris une analyse des habitudes et croyances socioculturelles ainsi que sur les réseaux de soutien social et familial qui leurs sont disponibles et qui pourraient différer, impactant ainsi différemment leur bien-être nutritionnel. | U19: enquêtes : évaluations rapides | V19: F1 Aide alimentaire, F3 Accès à l'alimentation, F4 Accès aux revenus, F5 Accès au marché, F6 Disponibilité, F7 Utilisation, H3 Maladies transmissibles, W1 Promotion de l’hygiène, W2 Approvisionnement en eau, W4 Lutte antivectorielle
A20: Nutrition | B20: Clé - Facteur contextuel | C20: N-014 | D20: N1 Prévention et gestion de la malnutrition aiguë | E20: Sous-nutrition pour les 5 à 19 ans | F20: prévalence (%) d’enfants et d’adolescents de 5-19 ans avec un score z défini comme indice IMC pour l’âge inférieur à -2 écarts-type de la médiane de l’IMC pour une population de référence d’enfants/d’adolescents du même âge et/ou présentant un œdème bilatéral aiguë | G20: Individuel | H20: Pourcentage | I20: Nombre total d’enfant et d’adolescents âgés de 5-19 mois enquêtés | J20: Nombre d’enfants et d’adolescents âgés de 5-19 mois répondant aux critères concernant la sous-nutrition | K20: Zone géographique, sexe | L20: Non | M20: Base de référence, Résultat | N20: Oui | P20: Référence de l’OMS 2007 www.who.int/growthref. | Q20: Préparatoire et phase iv et au-delà | R20: Doit être basé sur les résultats d'une enquête anthropométrique méthodologiquement solide sur la nutrition et doit inclure des intervalles de confiance | T20: Particulièrement important pour les adolescentes. Les données sur les taux de sous-nutrition doivent être comparées par sexe afin d’identifier toute discrimination spécifique à laquelle les filles, les garçons, les adolescentes et les adolescents pourraient être confrontés dans l'accès à la nutrition. Dans ce cas, il est important de faire la différence entre le pourcentage de filles et le pourcentage de garçons souffrant de sous-nutrition, le programme devrait s'attaquer à ces écarts en procédant à une analyse sexospécifique des défis spécifiques auxquels le groupe défavorisé est confronté, y compris une analyse des habitudes et croyances socioculturelles qui pourraient avoir un impact différent sur le bien-être nutritionnel des filles et des garçons. Remarque : l’indicateur comprend les âges de 5-19 ans. Basé sur la population de référence de 2007 de l’OMS | V20: F1 Aide alimentaire, F3 Accès à l'alimentation, F4 Accès aux revenus, F5 Accès au marché, F6 Disponibilité, F7 Utilisation, H3 Maladies transmissibles, H4.2 Soins maternels et néonatals, W1 Promotion de l’hygiène, W2 Approvisionnement en eau, W4 Lutte antivectorielle
A23: INDICATEURS SUPPLÉMENTAIRES À PRENDRE EN COMPTE EN RAISON DU CONTEXTE HUMANITAIRE
A24: Nutrition | B24: Non-clé | C24: N-031 | D24: N2 Alimentation des nourrissons et des jeunes enfants | E24: Poursuite de l’allaitement maternel à 1 an et à 2 ans | F24: Proportion d'enfants âgés de 12-15 mois et de 20-23 mois qui sont nourris au lait maternel | G24: Individuel | H24: Pourcentage | I24: Nombre total de nourrissons de 12-15 mois et nombre total de nourrissons de 20-23 mois enquêtés | J24: Nourrissons âgés de 12-15 mois et de 20-23 mois qui ont reçus du lait maternel | K24: Zone géographique | L24: Non | M24: Base de référence, Résultat | N24: Oui | Q24: préparatoire ; Phase III et IV | R24: L’indicateur clé ANJE de l’OMS indique la poursuite de l’allaitement maternel à 1 an. Dans les situations d'urgence, il est important de surveiller également le taux d'allaitement maternel continu à 2 ans (indicateur facultatif de l'ANJE de l'OMS), car les enfants de 1-2 ans sont également exposés à un risque important d'augmentation de la morbidité et de la mortalité s'ils ne sont pas allaités dans ce contexte. | T24: Une attention particulière devrait être accordée à la différence potentielle entre l’allaitement des nourrissons de sexe masculin et de sexe féminin. Si des différences sont constatées, celles-ci devraient influencer les messages d’éducation nutritionnelle. | U24: Enquête représentative de l’ANJE | V24: H2 Santé infantile, H4.2 Soins maternels et néonatals, (R) Reprise rapide
A25: Nutrition | B25: Non-clé | C25: N-032 | D25: N2 Alimentation des nourrissons et des jeunes enfants | E25: Enfants exclusivement allaités | F25: Proportion d’enfants nés au cours des 24 derniers mois exclusivement allaités | G25: Individuel | H25: Pourcentage | I25: Nombre total de nourrissons nés au cours des 23 mois derniers mois dans la zone enquêtée | J25: Nombre de nourrissons de 0-23 mois ayant uniquement reçu du lait maternel | K25: Zone géographique | L25: Oui | M25: Base de référence, Résultat | N25: Oui | P25: Aucune norme : Une proportion <80 est généralement une priorité. Discuter des désignations élevées, moyennes et basses en groupe | Q25: Un indicateur adapté doit être utilisé pour les mesures en phases 1-IV. Le dénominateur doit représenter les nourrissons nés depuis le début de l’urgence. Au cours des phases 1 et 2, un échantillonnage opportuniste sera nécessaire, par exemple en s'appuyant sur un échantillonnage de la santé génésique, un dépistage anthropométrique ou une évaluation de la sécurité alimentaire. | R25: Indicateur clé de l’ANJE de l’OMS. | S25: Pour la phase préparatoire, l’indicateur clé de l’OMS devra être utilisé comme base de référence où le dénominateur représente les nourrissons nés au cours des 24 derniers mois. | U25: Préparatoire, phase III et IV : enquête représentative de l’ANJE. Les phases I et II utilisent des enquêtes avec des informateurs clés et un échantillonnage opportuniste pour donner une indication d'ALERTE | V25: H2 Santé infantile, H4.2 Soins maternels et néonatals, (R) Reprise rapide
A26: Nutrition | B26: Non-clé | C26: N-033 | D26: N2 Alimentation des nourrissons et des jeunes enfants | E26: Allaitement prédominant jusqu'à 6 mois | F26: Proportion de nourrissons de 0-5 mois qui sont principalement allaités | G26: Individuel | H26: Pourcentage | I26: Nombre total de nourrissons âgés de 0-5 mois enquêtés | J26: Nombre de nourrissons de 0-5 mois qui sont principalement allaités | K26: Zone géographique, sexe | L26: Non | M26: Base de référence | N26: Non | P26: Aucune norme : Une proportion <80 est généralement une priorité. Discuter des désignations élevées, moyennes et basses en groupe | Q26: préparatoire ; Phase III et IV | R26: Indicateur en option ANJE de l’OMS | T26: Une attention particulière devrait être accordée à la différence potentielle entre l’allaitement des nourrissons de sexe masculin et de sexe féminin. Si des différences sont constatées, celles-ci devraient influencer les messages d’éducation nutritionnelle. | U26: Enquête représentative de l’ANJE | V26: H2 Santé infantile, H4.2 Soins maternels et néonatals, (R) Reprise rapide
A27: Nutrition | B27: Non-clé | C27: N-034 | D27: N2 Alimentation des nourrissons et des jeunes enfants | E27: Biberon | F27: Proportion de nourrissons de 0-23 mois qui sont exclusivement nourris au biberon | G27: Individuel | H27: Pourcentage | I27: Nombre total de nourrissons de 0-23 mois enquêtés | J27: Nombre de nourrissons de 0-23 mois qui sont nourris au biberon | K27: Zone géographique, sexe | L27: Oui | M27: Base de référence, Résultat | N27: Oui | O27: Sécurité alimentaire et nutrition 4.2.4 | Q27: préparatoire ; Phase I, II, III et IV | R27: Indicateur en option ANJE de l’OMS. Cet indicateur détermine l’utilisation de biberons présentant un risque ; il ne s'agit pas d'un indicateur de l'utilisation de préparation pour nourrissons ou de substituts du lait maternel, car il enregistre tout article alimenté à l'aide d'un biberon, y compris le lait maternel, eau, semi-solides, etc. | U27: Préparatoire, phase III et IV : enquête représentative de l’ANJE. Les phases I et II des enquêtes avec des informateurs clés et un échantillonnage opportuniste pour donner une indication d'ALERTE | V27: H2 Santé infantile, H4.2 Soins maternels et néonatals, W1 Promotion de l’hygiène, W2 Approvisionnement en eau
A28: Nutrition | B28: Non-clé | C28: N-026 | D28: N3 Prévention et contrôle des carences en micronutriments | E28: prévalence de carence en iode | F28: Concentration moyenne en iode urinaire (?g/L) chez les enfants de 6-12 ans | G28: Individuel | H28: Pourcentage | I28: Nombre total d’enfant âgés de 6-12 ans enquêtés | J28: Concentration moyenne en iode urinaire (?g/L) chez les enfants de 6-12 ans | K28: Zone géographique, âge | L28: Oui | M28: Base de référence | N28: Non | O28: Sécurité alimentaire et nutrition 4.1.1 | P28: Pour les enfants de moins de 5 ans, signification de la Santé Publique si <100µg/l mais inconnue pour les enfants de 6-12 ans (réf. : OMS, UNICEF, Conseil International de lutte des TCI 2007) | Q28: Préparatoire | R28: Une concentration moyenne en iode urinaire dans une population de < 100 ?g/l indique que l’apport en iode est insuffisant. Méthode de mesure non-invasive, le coût des tests d'échantillons de spoturine est abordable. Les enfants d'âge scolaire de 6-12 ans peuvent être facilement testés dans le cadre d'enquêtes de population. | T28: Directives de l’OMS : apps.who.int/iris/bitstream/10665/85972/1/WHO_NMH_NHD_EPG_13.1_eng.pdf ; Selon l'OMS, l'idéal serait d'évaluer également les femmes enceintes et allaitantes | U28: Données primaires - Enquêtes nationales, études locales, données auxiliaires - VMNIS | V28: F1 Aide alimentaire, F6 Disponibilité, H2 Santé infantile, H4.2 Soins maternels et néonatals, H5 Maladies non transmissibles et santé mentale
A29: Nutrition | B29: Non-clé | C29: N-027 | D29: N1 Prévention et gestion de la malnutrition aiguë | E29: Morbidité infantile | F29: Proportion d'enfants de 0-59 mois dont le soignant a déclaré une maladie au cours des deux semaines précédentes | G29: Individuel | H29: Pourcentage | I29: Nombre total d’enfant âgés de 0-59 mois enquêtés | J29: Nombre d'enfants de 0-59 mois dont le soignant a déclaré une maladie au cours des deux semaines précédentes | K29: Zone géographique | L29: Oui | M29: Base de référence | N29: Non | P29: Absence de seuil | Q29: préparatoire ; Phase I et phase II ; phase II et IV | R29: données d’enquête | T29: Cette information peut être disponible par le biais du Cluster Santé mais les enquêtes sur la nutrition peuvent fournir des informations représentatives actualisées. | U29: Enquêtes SMART, systèmes d’alerte précoce des maladies | V29: H1 Services cliniques généraux et soins de traumatologie essentiels, H2 Santé infantile, H3 Maladies transmissibles H4.2 Soins maternels et néonatals, W1 Promotion de l’hygiène, W2 Approvisionnement en eau, W3 Évacuation des excréments
A30: Nutrition | B30: Non-clé | C30: N-028 | D30: N1 Prévention et gestion de la malnutrition aiguë | E30: Mortalité des moins de cinq ans | F30: Taux de mortalité parmi les enfants de moins de 5 ans dans la population | G30: Individuel | H30: Décès pour 10 000 enfants de moins de 5 ans/jour | I30: Nombre total d'enfants de moins de 5 ans multiplié par le nombre de jours sur une tranche de plus de 10 000 personnes | J30: Nombre total de décès d’enfants de moins de 5 ans au cours de la période | K30: Zone géographique | L30: Oui | M30: Base de référence | N30: Non | O30: Action sanitaire 2.2.1 | P30: Consulter le Sphere (http://www.spherehandbook.org/en/essential-health-services-standard-1-prioritising-health-services/) pour les seuils d’urgences des différentes régions. Lorsque le taux de base de référence est inconnu ou d'une validité douteuse, les agences doivent s'efforcer de maintenir le taux de mortalité chez les enfants de moins de 5 ans en dessous de 2/10 000 par jour | Q30: préparatoire ; Phase I, II, III et IV. | R30: Le taux de mortalité des moins de cinq ans tel que défini ici n'est pas à proprement parler un taux (c-à-d. le nombre de décès divisé par le nombre de personnes à risque pendant une certaine période de temps) mais une probabilité de décès dérivée d'une table de survie et exprimée en taux pour 1 000 naissances vivantes | T30: Ces données doivent être tirées du Cluster Santé ou d'enquêtes spécifiques sur la mortalité et des enquêtes représentatives. Un indicateur peut être calculé grâce aux dossiers des établissements de santé et des communautés dans les premières phases de l'urgence. Le taux de mortalité des enfants de moins de 5 ans est utilisé pour évaluer la survie de l’enfant. Il reflète également les conditions sociales, économiques et environnementales dans lesquelles les enfants (et les autres membres de la communauté) vivent, y compris leurs soins de santé. Comme les données sur l'incidence et la prévalence des maladies (données de morbidité) ne sont souvent pas disponibles, les taux de mortalité sont souvent utilisés pour identifier les populations vulnérables. Le taux de mortalité des moins de cinq ans est un indicateur de l’OMD | U30: Enquête représentative et/ou à partir des dossiers des établissements de santé/de la communauté | V30: H1 Services cliniques généraux et soins de traumatologie essentiels, H2 Santé infantile, W1 Promotion de l’hygiène, W2 Approvisionnement en eau, W3 Évacuation des excréments
A31: Nutrition | B31: Non-clé | C31: N-002 | D31: N1 Prévention et gestion de la malnutrition aiguë | E31: Malnutrition aiguë chez les nourrissons de moins de 6 mois | F31: prévalence (%) de malnutrition aiguë globale chez les nourrissons de moins de 6 mois basée sur la présence d’un œdème bilatéral aiguë et/ou d'un rapport poids/taille inférieur à -2 écarts-type de la médiane de la population de référence (OMS, 2006) | G31: Individuel | H31: Pourcentage | I31: Nombre total d’enfant âgés de moins de 6 mois enquêtés | J31: Nombre de nourrissons âgés de 0-5 mois répondant aux critères concernant la malnutrition aiguë globale | K31: Zone géographique, sexe | L31: Oui | M31: Base de référence, Résultat | N31: Oui | P31: SEUIL DE L’OMS 854. Classification de la sévérité : 5,10, 15 % | Q31: préparatoire ; Phase III et IV | R31: Doit être basé sur les résultats d'une enquête anthropométrique méthodologiquement solide sur la nutrition et doit inclure des intervalles de confiance | T31: Remarque : les taux P/T et PB ne mesurent pas les mêmes choses et ne sont pas comparables. Les données sur le taux de malnutrition aiguë doivent être comparées par sexe afin d’identifier toute discrimination spécifique à laquelle les nourrissons filles ou garçons pourraient être confrontés dans l'accès à la nutrition. Dans ce cas, il est important de faire la différence entre le pourcentage de nourrissons filles et le pourcentage de nourrissons garçons souffrant de malnutrition. Le programme devrait s'attaquer à ces écarts en procédant à une analyse sexospécifique des défis spécifiques auxquels le groupe défavorisé est confronté, y compris une analyse des habitudes et croyances socioculturelles sur l’allaitement qui pourraient avoir un impact différent sur le bien-être nutritionnel des bébés filles et garçons. | U31: Enquêtes démographiques avec méthodes d’échantillonnage représentatives (MICS, EDS, SMART) | V31: F1 Aide alimentaire, H2 Santé infantile, H4.2 Soins maternels et néonatals, W1 Promotion de l’hygiène, W2 Approvisionnement en eau, W3 Évacuation des excréments
A32: Nutrition | B32: Non-clé | C32: N-006 | D32: N1 Prévention et gestion de la malnutrition aiguë | E32: Malnutrition aiguë modérée (MAM) chez les nourrissons 0-5 mois | F32: prévalence (%) de malnutrition aiguë modérée chez les nourrissons de moins de 6 mois en fonction d’un rapport poids/taille inférieur à -2 et supérieur ou égal à -3 écarts-type de la médiane de la population de référence (OMS, 2006) | G32: Individuel | H32: Pourcentage | I32: Nombre total d’enfant âgés de moins de 6 mois enquêtés | J32: Nombre d’enfants âgés de 6 mois répondant aux critères concernant la malnutrition aiguë modérée | K32: Zone géographique, sexe | L32: Oui | M32: Base de référence, Résultat | N32: Oui | P32: Pas de seuil standard de l'OMS ; ce seuil doit être interprété en tenant compte d'autres indicateurs, notamment la morbidité, la mortalité et la proportion de la MAG. | Q32: préparatoire ; Phase III et IV | R32: Doit être basé sur les résultats d'une enquête anthropométrique méthodologiquement solide sur la nutrition et doit inclure des intervalles de confiance | S32: Prévalence facile à obtenir en soustrayant la proportion de la MAS de la proportion de la MAG | T32: Remarque : les taux P/T et PB ne mesurent pas les mêmes choses et ne sont pas comparables. Les données sur le taux de malnutrition aiguë modérée doivent être comparées par sexe afin d’identifier toute discrimination spécifique à laquelle les filles ou les garçons pourraient être confrontés dans l'accès à la nutrition. Dans ce cas, il est important de faire la différence entre le pourcentage de nourrissons filles et le pourcentage de nourrissons garçons souffrant de malnutrition. Le programme devrait s'attaquer à ces écarts en procédant à une analyse sexospécifique des défis spécifiques auxquels le groupe défavorisé est confronté, y compris une analyse des habitudes et croyances socioculturelles sur l’allaitement qui pourraient avoir un impact différent sur le bien-être nutritionnel des bébés filles et garçons. | U32: Enquêtes démographiques avec méthodes d’échantillonnage représentatives (MICS, EDS, SMART) | V32: F1 Aide alimentaire, H2 Santé infantile, H4.2 Soins maternels et néonatals, W1 Promotion de l’hygiène, W2 Approvisionnement en eau, W3 Évacuation des excréments
A33: Nutrition | B33: Non-clé | C33: N-004 | D33: N1 Prévention et gestion de la malnutrition aiguë | E33: Malnutrition aiguë sévère (MAS) chez les nourrissons 0-5 mois | F33: prévalence (%) de malnutrition aiguë globale chez les nourrissons de moins de 6 mois basée sur la présence d’un œdème bilatéral aiguë et d'un rapport poids/taille inférieur à -3 écarts-type de la médiane de la population de référence (OMS, 2006) | G33: Individuel | H33: Pourcentage | I33: Nombre total d’enfant de 0-5 mois enquêtés | J33: Nombre de nourrissons âgés de 0-5 mois répondant aux critères concernant la malnutrition aiguë sévère | K33: Zone géographique, sexe | L33: Oui | M33: Base de référence, Résultat | N33: Oui | P33: Pas de seuil standard de l'OMS ; ce seuil doit être interprété en tenant compte d'autres indicateurs, notamment la morbidité, la mortalité et la proportion de la MAG ; Référence : Normes OMS de croissance de l’enfant et identification de la malnutrition aiguë sévère chez les nourrissons et les enfants. Une déclaration conjointe par l’Organisation Mondiale de la Santé et le Fonds des Nations Unies pour l’enfance, 2009 | Q33: préparatoire ; Phase III et IV | R33: Doit être basé sur les résultats d'une enquête anthropométrique méthodologiquement solide sur la nutrition et doit inclure des intervalles de confiance | T33: Remarque : les taux P/T et PB ne mesurent pas les mêmes choses et ne sont pas comparables. Les données sur le taux de malnutrition aiguë sévère doivent être comparées par sexe afin d’identifier toute discrimination spécifique à laquelle les filles ou les garçons pourraient être confrontés dans l'accès à la nutrition. Dans ce cas, il est important de faire la différence entre le pourcentage de nourrissons filles et le pourcentage de nourrissons garçons souffrant de malnutrition. Le programme devrait s'attaquer à ces écarts en procédant à une analyse sexospécifique des défis spécifiques auxquels le groupe défavorisé est confronté, y compris une analyse des habitudes et croyances socioculturelles sur l’allaitement qui pourraient avoir un impact différent sur le bien-être nutritionnel des bébés filles et garçons. | U33: Enquêtes démographiques avec méthodes d’échantillonnage représentatives (MICS, EDS, SMART) | V33: F1 Aide alimentaire, H1 Services cliniques généraux et soins de traumatologie, H2 Santé infantile, H4.2 Soins maternels et néonatals, W1 Promotion de l’hygiène, W2 Approvisionnement en eau, W3 Évacuation des excréments
A34: Nutrition | B34: Non-clé | C34: N-012 | D34: N1 Prévention et gestion de la malnutrition aiguë | E34: Retard de croissance chez les femmes en âge de procréer | F34: prévalence (%) de femmes 15-49 ans qui ont une taille inférieure à 145 cm | G34: Individuel | H34: Pourcentage | I34: Nombre total de femmes de 15-49 ans étudiées | J34: Nombre de femmes âgées de 15-49 ans répondant aux critères concernant le retard de croissance | K34: Zone géographique | L34: Non | M34: Base de référence, Résultat | N34: Oui | Q34: préparatoire ; Phase III et IV | R34: Doit être basé sur les résultats d'une enquête anthropométrique méthodologiquement solide sur la nutrition et doit inclure des intervalles de confiance | U34: Enquêtes démographiques avec méthodes d’échantillonnage représentatives (MICS, EDS, SMART) | V34: F1 Aide alimentaire, F3 Accès à l’alimentation, F4 Accès aux revenus, F5 Accès au marché, F6 Disponibilité, F7 Utilisation, H1 Services cliniques généraux et soins de traumatologie essentiels, H2 Santé infantile, H4.2 Soins maternels et néonatals, W1 Promotion de l’hygiène, W2 Approvisionnement en eau, W4 Évacuation des excréments
A35: Nutrition | B35: Non-clé | C35: N-013 | D35: N1 Prévention et gestion de la malnutrition aiguë | E35: Sous-nutrition chez les adultes | F35: prévalence (%) d’adultes âgés de 19,1-59,9 ans avec un IMC inférieur à 17 kg/m2 et/ou ayant un œdème bilatéral aiguë | G35: Individuel | H35: Pourcentage | I35: Nombre total d’adultes âgés de 19,1-59,9 ans étudiés | J35: Nombre d’adultes âgés de 19,1-59,9 ans répondant aux critères concernant la sous-nutrition | K35: Zone géographique, âge, sexe | L35: Non | M35: Base de référence, Résultat | N35: Oui | P35: Classification du seuil de l’OMS 854 : maigreur légère (IMC = 17 - 18,49 kg/m2), maigreur modérée (IMC = 16 - 16,99 kg/m2) et maigreur sévère (IMC < 16 kg/m2). | Q35: Préparatoire et phase IV et au-delà | R35: Doit être basé sur les résultats d'une enquête anthropométrique méthodologiquement solide sur la nutrition et doit inclure des intervalles de confiance | T35: Les données anthropométriques doivent être interprétées avec une analyse contextuelle des risques nutritionnels associés pour la population en utilisant les causes sous-jacentes. Plus particulièrement, les données sur les taux de sous-malnutrition doivent être comparées par sexe afin d’identifier toute discrimination spécifique à laquelle les femmes adultes ou les hommes adultes pourraient être confrontés dans l'accès à la nutrition. Dans ce cas, il est important de faire la différence entre le pourcentage de femmes et le pourcentage d’hommes souffrant de sous-nutrition. Le programme devrait s'attaquer à ces écarts en procédant à une analyse sexospécifique des défis spécifiques auxquels le groupe défavorisé est confronté, y compris une analyse des habitudes et croyances socioculturelles qui pourraient avoir un impact différent sur le bien-être nutritionnel des femmes et des hommes. | U35: Enquêtes démographiques avec méthodes d’échantillonnage représentatives (MICS, EDS, SMART) | V35: F1 Aide alimentaire, F3 Accès à l'alimentation, F4 Accès aux revenus, F5 Accès au marché, F6 Disponibilité, F7 Utilisation, H3 Maladies transmissibles, H4.2 Soins maternels et néonatals, W1 Promotion de l’hygiène, W2 Approvisionnement en eau, W4 Lutte antivectorielle
A36: Nutrition | B36: Non-clé | C36: N-016 | D36: N1 Prévention et gestion de la malnutrition aiguë | E36: Fréquence minimale des repas pour les enfants 24-59 mois | F36: Proportion d’enfants 24-59 mois qui mangent 3 repas dans une journée ou plus | G36: Individuel | H36: Pourcentage | I36: Nombre total d’enfant de 24-59 mois enquêtés | J36: Nombre d’enfants de 24-59 mois qui mangent 3 repas dans une journée ou plus | K36: Zone géographique, âge, sexe | L36: Non | M36: Base de référence | N36: Non | Q36: préparatoire ; Phase I et phase II ; phase II et IV | R36: Utiliser l'indicateur de la tranche d'âge de 6-23 mois comme indicateur pour la tranche d'âge de 24-59 mois, et supposer que la tranche d'âge supérieure est plus défavorable. Il PEUT être un indicateur d'alerte important dans les premières phases d'une urgence | T36: L’indicateur utilisée pour l’ANJE pour la tranche d’âge de 6-23 mois en fonction de l’indicateur OMS. | U36: enquêtes : évaluations rapides ; | V36: F1 Aide alimentaire, F3 Accès à l’alimentation, F4 Accès aux revenus, F5 Accès au marché, F6 Disponibilité, F7 Utilisation, H2 Santé infantile, H4.2 Soins maternels et néonatals
A37: Nutrition | B37: Non-clé | C37: N-019 | D37: N3 Prévention et contrôle des carences en micronutriments | E37: niveau de risque des carences en micronutriments (élevé, moyen, faible) | F37: Évaluation qualitative du risque nutritionnel de carences courantes en micronutriments (anémie, carence en iode, carence en vitamine A (cécité nocturne), scorbut, béribéri, carence en vitamine D) sur la base d'une analyse des indicateurs composites sur les prévalences, l'analyse du régime alimentaire, la qualité de l'eau et les maladies diarrhéiques, la recherche de cas | G37: Communauté | H37: élevé, moyen, faible | I37: N/C | J37: N/C | K37: Par carence ; zone géographique, sexe, groupes potentiellement vulnérables : femmes enceintes et allaitantes, enfants de 6-59 mois, autres groupes potentiellement vulnérables | L37: Oui | M37: Base de référence | N37: Non | P37: SPHERE 2011, annexe 5 - seuils (http://www.spherehandbook.org/en/appendix-15/) | Q37: Préparatoire ; Phase II, III et IV | R37: Dresser la liste des prévalences du statut des micronutriments connus pour toutes les vitamines et minéraux et recueillir des informations supplémentaires sur le régime alimentaire, la qualité de l'eau et les maladies, afin d'évaluer la gravité du risque pour des groupes de population spécifiques | U37: Utiliser les données d’enquête ; estimation à partir du nombre de population affectées par type de groupes vulnérables | V37: F1 Aide alimentaire, F2 Aide aux moyens de subsistance, F3 Accès à l’alimentation, F4 Accès aux revenus, F5 Accès au marché, F6 Disponibilité, F7 Utilisation, H1 Services cliniques généraux et soins de traumatologie essentiels, H2 Santé infantile, H5 Maladies non transmissibles et santé mentale, (R) Reprise rapide, W1 Promotion de l’hygiène, W2 Approvisionnement en eau, W3 Évacuation des excréments
A38: Nutrition | B38: Non-clé | C38: N-020 | D38: N3 Prévention et contrôle des carences en micronutriments | E38: Couverture en vitamine A chez les enfants de 6 - 59 mois | F38: Proportion d’enfants de 6-59 mois ayant reçus de la vitamine A au cours des 6 derniers mois | G38: Individuel | H38: Pourcentage | I38: Nombre total d’enfant de 6-59 mois enquêtés | J38: Nombre d’enfants de 6-59 mois ayant reçu de la vitamine A au cours des 6 derniers mois (rappel de la mère ou vérification de la carte) | K38: Zone géographique, âge (6-11, 12-23 mois), sexe | L38: Oui | M38: Base de référence, Résultat | N38: Oui | O38: Action sanitaire 2.2.1 | P38: Objectif : 95 %. À l'issue de la campagne de vaccination contre la rougeole, au moins 95 % des enfants âgés de 6-59 mois ont reçu une dose appropriée de vitamine A | Q38: préparatoire ; Phase III et IV | T38: L'indicateur s'applique aux enfants vivant dans des milieux où la CVA est un problème de santé publique. L'OMS suit la recommandation de la GAVA et préconise l'administration de deux doses au cours de la dernière année. Dans le cas où il y aurait une différence importante, le programme devra s'attaquer à ces écarts en procédant à une analyse sexospécifique des défis spécifiques auxquels le groupe défavorisé est confronté, y compris une analyse des habitudes et croyances socioculturelles qui pourraient avoir un impact différent sur le bien-être nutritionnel des filles et des garçons. Il est important de prendre en compte des dates de la supplémentation effective en vitamine A pour avoir une indication du nombre d'enfants non couverts (de 0-5 mois) et qui devraient être inclus dans le nouveau programme de supplémentation. | U38: Enquêtes démographiques avec méthodes d’échantillonnage représentatives (MICS, EDS, SMART) | V38: F1 Aide alimentaire, F3 Accès à l’alimentation, F4 Accès aux revenus, F5 Accès au marché, F6 Disponibilité, F7 Utilisation, H1 Services cliniques généraux et soins de traumatologie essentiels, H2 Santé infantile, H5 Maladies non transmissibles et santé mentale
A39: Nutrition | B39: Non-clé | C39: N-021 | D39: N3 Prévention et contrôle des carences en micronutriments | E39: Taux de couverture de supplémentation en fer chez les enfants | F39: Proportion d'enfants âgés de 6-59 mois recevant des suppléments de micronutriments contenant du fer en quantité suffisante | G39: Individuel | H39: Pourcentage | I39: Nombre total d’enfant de 6-59 mois enquêtés | J39: Nombre d'enfants de 6-59 mois qui ont reçu des suppléments en micronutriments contenant du fer en quantité suffisante lors d'un de leurs repas de la veille | K39: Zone géographique, âge (6-24, 24-59 mois), sexe | L39: Non | M39: Base de référence, Résultat | N39: Oui | O39: Sécurité alimentaire et nutrition 4.1.1 | Q39: préparatoire ; Phase III et IV | U39: Enquêtes démographiques avec méthodes d’échantillonnage représentatives (MICS, EDS, SMART) | V39: F1 Aide alimentaire, F3 Accès à l’alimentation, F4 Accès aux revenus, F5 Accès au marché, F6 Disponibilité, F7 Utilisation, H1 Services cliniques généraux et soins de traumatologie essentiels, H2 Santé infantile, H5 Maladies non transmissibles et santé mentale
A40: Nutrition | B40: Non-clé | C40: N-022 | D40: N3 Prévention et contrôle des carences en micronutriments | E40: Supplémentation en fer et en acide folique chez femmes enceintes | F40: Proportion de femmes enceintes ayant reçues quotidiennement une supplémentation en fer et en acide folique dans les 6 mois précédent/pendant la grossesse | G40: Individuel | H40: Pourcentage | I40: Nombre total de femmes enceinte enquêtées | J40: Nombre de femmes enceintes qui ont acheté ou reçu quotidiennement une supplémentation en fer et en acide folique dans les 6 mois précédent/pendant la grossesse | K40: Zone géographique | L40: Oui | M40: Base de référence, Résultat | N40: Oui | O40: Sécurité alimentaire et nutrition 4.1.1 | Q40: préparatoire ; Phase III et IV | R40: Dans certains pays, la supplémentation en fer et acide folique est remplacée par des micronutriments multiples, c'est pourquoi, selon la situation, l'indicateur doit être remplacé par « a reçu une supplémentation en fer et en acide folique » ou « a reçu des suppléments de micronutriments multiples » | U40: Enquête démographique avec méthodes d’échantillonnage représentatives (MICS, DAH, SMART) | V40: F1 Aide alimentaire, F3 Accès à l’alimentation, F6 Disponibilité, H1 Services cliniques généraux et soins de traumatologie essentiels, H2 Santé infantile, H4.2 Soins maternels et néonatals
A41: Nutrition | B41: Non-clé | C41: N-023 | D41: N3 Prévention et contrôle des carences en micronutriments | E41: Consommation de sel iodé | F41: Proportion de ménages utilisant du sel correctement iodé dans les 6 mois précédent | G41: Ménages | H41: Pourcentage | I41: Nombre total de ménages enquêtés | J41: Nombre de ménages utilisant du sel correctement iodé (20-40 ppm) dans les 6 mois précédents | K41: Zone géographique | L41: Non | M41: Base de référence, Résultat | N41: Non | O41: Sécurité alimentaire et nutrition 4.1.1 | P41: L’indicateur doit être égal ou supérieur à 90Proportion de (référence ?) - Nombre de ménages utilisant du sel correctement iodé (20-40 ppm) dans les 6 mois précédent | Q41: préparatoire ; Phase III et IV | R41: Le sel correctement iodé est du sel contenant 15-40 ppm d’iode au niveau du ménage. Référence : Évaluation des troubles liés à la carence en iode et suivi de leur élimination : un guide pour les responsables de programmes. 3ème édition, OMS, 2008 | T41: L’utilisation de l'expression « utiliser » plutôt que « avoir consommé régulièrement dans les 6 mois précédents » sur la base des méthodes d'évaluation recommandées, qui consiste à mesurer la teneur en iode du sel dans les ménages au moment de l'évaluation et non à recueillir des données rétrospectives (car la teneur en iode du sel consommé ne peut être évaluée et de nombreuses personnes ne peuvent savoir si le sel est/a été iodé). Formulation alternative : « Proportion de ménages utilisant du sel correctement iodé » - voir les références. Apparemment, ce n'est pas un indicateur de sécurité alimentaire ; | V41: F1 Aide alimentaire, F6 Disponibilité, H2 Santé infantile, H5 Maladies non transmissibles et santé mentale
A42: Nutrition | B42: Non-clé | C42: N-024 | D42: N3 Prévention et contrôle des carences en micronutriments | E42: Prévalence de carence en vitamine A | F42: (1) Proportion d'enfants de moins de 5 ans présentant une carence subclinique en vitamine A (2) Proportion de femmes en âge de procréer présentant une carence clinique en vitamine A | G42: Individuel | H42: Pourcentage | I42: Nombre total d’enfant âgés de moins de cinq ans enquêtés ou nombre total de femmes en âge de procréer enquêtées | J42: Nombre d’enfants de moins de 5 ans avec une carence en vitamine A (valeurs en rétinol sérique <0.70µmol/l) ou proportion de femmes en âge de procréer ou de 15-49 ans) avec une carence en vitamine A (valeurs en rétinol sérique <0.70µmol/l) | K42: Zone géographique, garçons et filles de 0-59 mois, femmes en âge de procréer | L42: Oui | M42: Base de référence | N42: Non | O42: Sécurité alimentaire et nutrition 4.1.1 | P42: Importance pour la santé publique : <2 Proportion de Normal ; 2-9.9 Proportion de Faible ; 10-19.9 Proportion de Moyen ; >20 Proportion Élevé (réf : OMS 1996) | Q42: Préparatoire | R42: POUR LES ENFANTS - Le taux de rétinol sérique ou plasmatique mesuré dans des échantillons capillaires ou veineux est un test invasif qui coûte cher s’il est mesuré par HPLC. De nouvelles méthodes pour les tâches de sang séché avec la méthode capillaire sont en train d'émerger. POUR LES FEMMES - Les informations peuvent être vérifiées verbalement. Étant donné que la question vise un sous-ensemble spécifique de femmes, l'indicateur ne parvient pas à saisir toute la gamme des femmes en âge de procréer. Il est nécessaire d'uniformiser la formulation de la question. | T42: Directive de l’OMS : who.int/vmnis/retinol.pdf | U42: Données primaires - Enquêtes nationales, études locales, EDS, MICS, données auxiliaires - VMNIS | V42: F1 Aide alimentaire, F3 Accès à l’alimentation, F4 Accès aux revenus, F5 Accès au marché, F6 Disponibilité, F7 Utilisation, H2 Santé infantile, H4.2 Soins maternels et néonatals, H5 Maladies non transmissibles et santé mentale
A43: Nutrition | B43: Non-clé | C43: N-018 | D43: N3 Prévention et contrôle des carences en micronutriments | E43: Diversité minimum alimentaire pour les enfants de 24-59 mois | F43: Proportion d’enfants de 24-59 mois qui ont reçus des aliments de 4 groupes ou plus d’aliments | G43: Individuel | H43: Pourcentage | I43: Nombre total d’enfant de 24-59 mois enquêtés | J43: Nombre d’enfants de 24-59 mois qui ont reçus des aliments des 4 groupes ou plus d’aliments suivants. | K43: Zone géographique, âge, sexe | L43: Non | M43: Base de référence | N43: Non | O43: Sécurité alimentaire et nutrition 4.1.1 | P43: Aucune norme identifiée, seul indicateur source de l’OMS | Q43: préparatoire ; Phase I et phase II ; phase II et IV | R43: Utiliser l'indicateur de la tranche d'âge de 6-23 mois comme indicateur pour la tranche d'âge de 24-59 mois, et supposer que la tranche d'âge supérieure est plus défavorable. Il PEUT être un indicateur d'alerte important dans les premières phases d'une urgence (l’OMS utilise un paramètre des dernières 24 heures) Les groupes d’aliments sont définis comme suit : (1) céréales, racines et tubercules (2) légumes et noix (3) produits laitiers (lait, yaourt, fromage) (4) aliments à base de chair (viande, poisson, volaille et foie/viandes fraîches) (5) œufs (6) fruits et légumes riches en vitamine A (7) autres fruits et légumes | T43: Indicateur utilisée pour l’ANJE pour la tranche d’âge de 6-23 mois en fonction de l’indicateur OMS | U43: enquêtes : évaluations rapides ; | V43: F1 Aide alimentaire, F3 Accès à l’alimentation, F4 Accès aux revenus, F5 Accès au marché, F6 Disponibilité, F7 Utilisation, H2 Santé infantile, H4.2 Soins maternels et néonatals
A44: Nutrition | B44: Non-clé | C44: N-029 | D44: N2 Alimentation des nourrissons et des jeunes enfants | E44: Initiation précoce de l’allaitement | F44: Proportion d’enfants de 0-23 mois qui ont été allaités dans la première heure après leur naissance. | G44: Individuel | H44: Pourcentage | I44: Nombre total de femmes qui ont eu une naissance vivante dans les X ans précédant l’enquête | J44: Nombre de femmes qui ont eu une naissance vivante dans les X ans précédant l’enquête qui ont allaité leur dernier nouveau-né dans la première heure après la naissance | K44: Zone géographique, sexe | L44: Non | M44: Base de référence | N44: Non | O44: Sécurité alimentaire et nutrition 4.2.1 | P44: Aucune norme : Une proportion <80 est généralement une priorité. Discuter des désignations élevées, moyennes et basses en groupe | Q44: Pour les phases III-IV, un indicateur adapté doit être utilisé lorsque la même méthodologie est utilisée. Le dénominateur doit représenter les nourrissons nés depuis le début de l'urgence. (Proportion d’enfants nés depuis le début de l’urgence qui ont été allaités dans la première heure après leur naissance). Au cours des phases 1 et 11, le dénominateur utilisé doit représenter les nourrissons nés depuis le début de l’urgence. Dans ces phases, un échantillonnage opportuniste sera nécessaire, par exemple dans les établissements fournissant des services obstétriques/support aux nouveau-nés. | R44: Indicateur clé de l’ANJE de l’OMS. | S44: Pour la phase préparatoire, l’indicateur clé de l’OMS sera utilisé comme base de référence où le dénominateur représente les enfants nés au cours 24 mois précédents (proportion d’enfants nés dans les 24 derniers mois qui ont été allaités dans la première heure après leur naissance). | T44: Note : Les données de l’EDS sont basées sur les trois ou cinq dernières années précédant l’enquête et les données du MICS sont basées sur les deux années précédant l’enquête | U44: Préparatoire, phase III et IV : enquête représentative de l’ANJE. Les phases I et II utilisent des enquêtes avec des informateurs clés et un échantillonnage opportuniste pour donner une indication d'ALERTE | V44: H2 Santé infantile, H4.2 Soins maternels et néonatals, (R) Reprise rapide
A45: Nutrition | B45: Non-clé | C45: N-036 | D45: N2 Alimentation des nourrissons et des jeunes enfants | E45: Fréquence minimale des repas | F45: Proportion d’enfants de 6-23 mois qui ont reçu des aliments solides, semi-solides ou mous le nombre minimum de fois ou plus | G45: Individuel | H45: Pourcentage | I45: Nombre total d’enfant de 6-23 mois enquêtés | J45: Nombre d’enfants de 6-23 mois qui ont reçu des aliments solides, semi-solides ou mous le nombre minimum de fois ou plus | K45: Zone géographique, sexe | L45: Non | M45: Base de référence, Résultat | N45: Oui | O45: Sécurité alimentaire et nutrition 4.2.2 | P45: Aucune norme : Une proportion <80 est généralement une priorité. Discuter des désignations élevées, moyennes et basses en groupe | Q45: préparatoire ; Phase III et IV | R45: Indicateur clé de l’ANJE de l’OMS | U45: Enquête représentative de l’ANJE | V45: F3 Accès à l’alimentation, F4 Accès aux revenus, F5 Accès au marché, F6 Disponibilité, F7 Utilisation, H2 Santé infantile
A46: Nutrition | B46: Non-clé | C46: N-038 | D46: N2 Alimentation des nourrissons et des jeunes enfants | E46: Introduction d’aliments solides, semi-solides ou mous | F46: Proportion d’enfants de 6-8 mois qui ont reçu des aliments solides, semi-solides ou mous durant le jour précédent | G46: Individuel | H46: Pourcentage | I46: Nombre total de nourrissons de 5-8 mois enquêtés | J46: Nombre de nourrissons de 5-8 mois qui ont reçu des aliments solides, semi-solides ou mous durant le jour précédent | K46: Zone géographique, sexe | L46: Non | M46: Base de référence, Résultat | N46: Oui | P46: Aucune norme : Une proportion <80 est généralement une priorité. Discuter des désignations élevées, moyennes et basses en groupe | Q46: préparatoire ; Phase III et IV | R46: Indicateur clé de l’ANJE de l’OMS. Besoin d'orientation sur la taille de l’échantillon | U46: Enquête représentative de l’ANJE | V46: F3 Accès à l’alimentation, F4 Accès aux revenus, F5 Accès au marché, F6 Disponibilité, F7 Utilisation, H2 Santé infantile
A47: Nutrition | B47: Non-clé | C47: N-039 | D47: N2 Alimentation des nourrissons et des jeunes enfants | E47: Non allaité | F47: Proportion d’enfants de 0<12 mois et de 12<24 mois qui n’ont pas été allaité | G47: Individuel | H47: Pourcentage | I47: Nombre total d’enfant de 0<12 mois et de 12<24 mois enquêtés | J47: Nombre d’enfants de 0-12 mois et de 12-24 mois qui n’ont pas été allaité | K47: Zone géographique ; 0-<12 mois, 12-<24 mois, sexe | L47: Oui | M47: Base de référence, Résultat | N47: Oui | Q47: Calculer cet indicateur en fonction des données normalisées collectées. Dans les phases 1 et 11, une indication de la proportion de nourrissons non allaités au sein devrait être estimée sur la base d'enquêtes avec des informateurs clés et d'un échantillonnage opportuniste. | R47: Ce n’est pas un indicateur standard. Toutefois, il est possible de calculer cet indicateur en utilisant les données normalisées collectées pour produire les indicateurs clé de l’ANJE de l’OMS. | S47: Préparatoire : calculer cet indicateur en fonction des données normalisées collectées. Dans les phases 1 et 11, une indication de la proportion de nourrissons non allaités au sein devrait être estimée sur la base d'enquêtes avec des informateurs clés et d'un échantillonnage opportuniste. | T47: Il est nécessaire d'aborder cette question avec l'OMS pour voir comment nous pourrions en faire un indicateur de référence à utiliser dans les situations d'urgence. | U47: Préparatoire ; Phase 111 et IV ; Indicateur produit à partir des données collectées auprès des MICS/de l’EDS Les phases I et II utiliseront des enquêtes avec des informateurs clés et un échantillonnage opportuniste pour donner une indication d'ALERTE | V47: H2 Santé infantile, H4.2 Soins maternels et néonatals, W1 Promotion de l’hygiène, W2 Approvisionnement en eau

Sheet Seuils de classification
A1: Seuils de classification pour les indicateurs clés | F1: Échelle de gravité basée sur les phases IPC/OCHA
D2: Conséquence Humanitaire | F2: Phase 1 | G2: Phase 2 | H2: Phase 3 | I2: Phase 4 | J2: Phase 5 | K2: Sources
A3: Catégorie | B3: Alignement avec le cadre de l’IPC de l'AMN | C3: Nom/Libellé de l'indicateur de résultat | D3: MAG ≥ 5 % chez les enfants de moins de 5 ans (Scénarios 1 et 2) | E3: MAG ≥ 5 % chez les enfants de moins de 5 ans (Scénario 3) | F3: Acceptable/ Minimale | G3: Alerte/Stress | H3: Grave/Sévère | I3: Critique/Extrême | J3: Extrêmement critique/Catastrophique
A4: Principaux résultats | B4: Malnutrition aiguë et chronique | C4: Prévalence de la malnutrition aiguë globale (MAG) basée sur le Z-score du poids-pour-taille (P/T)< -2 et/ou présence d’œdèmes bilatéraux chez les enfants 0-59 mois (en l’absence de données, utiliser 6-59 mois) | D4: Bien-être physique et mental | F4: <5% | G4: 5-9.9% | H4: 10-14.9% | I4: 15-29.9% | J4: ≥30% | K4: Basé sur les Directives de la version 3 de la malnutrition de l'IPC de l'AM
C5: Prévalence de la malnutrition aiguë globale (MAG) en fonction du périmètre brachial (PB) < 125 mm et/ou présence d’œdèmes bilatéraux chez les enfants de 6-59 mois | D5: Bien-être physique et mental | F5: <5% | K5: Seuils préliminaires suggéré par la directive sur la Malnutrition aiguë de l’IPC, Version 3
G6: 5-9.9%
H7: 10-14.9%
I8: ≥15%
C9: Prévalence de la malnutrition aiguë globale (MAG) basée sur le périmètre brachial (PB) < 210-230 mm (selon les contextes) et/ou présence d’œdèmes bilatéraux chez les femmes enceintes et allaitantes | D9: Bien-être physique et mental | F9: <12.5% | G9: 12.6%-19.9% | H9: 20-24.9% | I9: 25-34.9% | J9: ≥35% | K9: Seuils préliminaires basés sur l’unité d’analyse de la sécurité alimentaire et de la nutrition de la Somalie (FSNAU)
C10: Prévalence du retard de croissance basée sur le Z-score du rapport taille-pour-âge (T/A) <-2 parmi les enfants de 0-59 mois | D10: Conditions de vie | E10: Bien-être physique et mental | F10: <10% | G10: 10-19.9% | H10: 20-29.9% | I10: ≥30% | K10: De Onis et al (2018) Seuils de prévalence de l’émaciation, du surpoids et du retard de croissance chez les enfants de moins de 5 ans
A11: Facteurs contextuels* *facultatif et en fonction de la situation humanitaire | B11: Autres causes | C11: Prévalence de surpoids sur le score z du poids pour taille (P/T) >2 parmi les enfants de 0-59 mois | D11: Conditions de vie | E11: Bien-être physique et mental | F11: <2.5% | G11: 2.5-4.9% | H11: 5-9.9% | I11: 10-14.9% | J11: ≥15% | K11: De Onis et al (2018) Seuils de prévalence de l’émaciation, du surpoids et du retard de croissance chez les enfants de moins de 5 ans
B12: Malnutrition aiguë | C12: Prévalence de la malnutrition aiguë globale (MAG) basée sur le périmètre brachial (PB) < 210mm parmi les personnes âgées | D12: Bien-être physique et mental | F12: <5% | G12: 5-9.9% | H12: 10-14.9% OU 5-9.9%* | I12: ≥15% OU 10-14.9%* | K12: Basé sur les Interventions nutritionnelles de HelpAge pour les personnes âgées en situation d'urgences
C13: Prévalence de la malnutrition aiguë globale (MAG) basée sur le Z-score de l’IMC-pour-l'âge <-2 chez les adolescents | D13: Bien-être physique et mental | F13: <2.5% | G13: 2.5-4.9% | H13: 5-9.9% | I13: 10-14.9% | J13: ≥15% | K13: Seuils préliminaires suggérés par le Groupe de travail et le NISWG
B14: Carences en micronutriments | C14: Prévalence d’anémie Hb <11 g/dl chez les enfants de 6-59 mois | D14: Bien-être physique et mental | F14: <5% | G14: 5-19.9% | H14: 20-39.9% | I14: ≥40% | K14: OMS (2011) Concentrations d'hémoglobine pour le diagnostic de l’anémie et l’évaluation de la sévérité
C15: Prévalence d’anémie Hb <11 g/dl chez les femmes enceintes | D15: Bien-être physique et mental | F15: <5% | G15: 5-19.9% | H15: 20-39.9% | I15: ≥40% | K15: OMS (2011) Concentrations en hémoglobine pour le diagnostic de l’anémie et l’évaluation de la sévérité.
B16: Indicateurs de mortalité | C16: Taux de décès brut (décès/ 10 000 personnes/jour) | D16: Bien-être physique et mental | F16: <0.5 | H16: 0.5-0.9 | I16: 1-1.9 | J16: ≥2 | K16: Basé sur les Directives de la version 3 de la malnutrition de l'IPC de l'AM
C17: Taux de décès des moins de 5 ans (décès/10 000 enfants de moins de 5 ans/jour) | D17: Bien-être physique et mental | F17: <1 | H17: 1-1.9 | I17: 2-3.9 | J17: ≥4 | K17: Basé sur les Directives de la version 3 de la malnutrition de l'IPC de l'AM
A18: Principaux facteurs contributifs | B18: Causes immédiates (Consommation alimentaire) | C18: Diversité alimentaire minimale chez les enfants de 6-23 mois | D18: Conditions de vie | F18: ≥70% | G18: 40-70% | H18: 20-40% | I18: 10-20% | J18: <10% | K18: Seuils préliminaires suggérés par l'IFE Core Group
C19: Régime alimentaire minimum acceptable chez les enfants de 6-23 mois* *Nécessite une Fréquence minimale des repas chez les enfants de 6-23 mois pour obtenir cet indicateur | D19: Conditions de vie | F19: ≥70% | G19: 40-70% | H19: 20-40% | I19: 10-20% | J19: <10% | K19: Seuils préliminaires suggérés par l'IFE Core Group
C20: Allaitement maternel exclusif pour les nourrissons de 0-5 mois | D20: Conditions de vie | F20: ≥70% | G20: 50-70% | H20: 30 -50% | I20: 11-30% | J20: <11% | K20: Seuils inspirés de la fiche d’évaluation de l’UNICEF sur l’allaitement maternel
B21: Causes sous-jacentes (Pratiques de soins et d’alimentation) | C21: Nourrissons de 0-5 mois non allaités et ayant accès à l’approvisionnement en substituts de lait maternel (SLM) conformément au Code et aux normes et recommandations OG de l’IFE | D21: Conditions de vie | F21: ≥60% | G21: 40-60% | H21: 20-40% | I21: 10-20% | J21: <10% | K21: Seuils préliminaires suggérés par l'IFE Core Group
C22: Nourrissons de 6-11 mois non allaités et ayant accès à l’approvisionnement en substituts de lait maternel (SLM) conformément au Code et aux normes et recommandations OG de l’IFE | D22: Conditions de vie | F22: ≥60% | G22: 40-60% | H22: 20-40% | I22: 10-20% | J22: <10% | K22: Seuils préliminaires suggérés par l'IFE Core Group
B23: Causes sous-jacentes (WASH) | C23: % des ménages ayant accès à une source d’eau assainie | D23: Conditions de vie | F23: L'eau provient d'une source d'eau assainie située sur le site | G23: L’eau provient d’une source d’eau assainie, à condition que le temps de collecte ne dépasse pas 30 minutes pour un aller-retour, y compris le temps d’attente | H23: L’eau provient d’une source assainie pour laquelle le temps de collecte dépasse 30 minutes pour un aller-retour, y compris le temps d’attente | I23: L’eau provient d’une source d’eau non assainie | J23: L’eau provient directement des rivières, des lacs, des étangs, etc. | K23: En conformité avec le pourcentage majoritaire de réponses aux évaluations spécifiques de l’AEPAH (MSNA/DTM), tel que suggéré par nos collègues de l’AEPAH du JIAF. Voir aussi Limitations sur la feuille de travail Instructions. Si vous utilisez ces indicateurs dans l’analyse des facteurs contributifs, prendre contact avec le Cluster local du Global AEPAH.
C24: % des ménages ayant accès à une quantité suffisante d’eau pour la boisson, la cuisine, le bain, la toilette ou d’autres usages domestiques | D24: Conditions de vie | F24: Suffisamment d’eau pour la boisson, la cuisson, l’hygiène personnelle et d‘autres usages domestiques OU plus de 50 l/j/p | G24: Suffisamment d’eau pour la boisson ET la cuisson ET l’hygiène personnelle, MAIS PAS pour d’autres usages domestiques OU 15 l ou plus mais moins de 50 l/j/p | H24: Suffisamment d’eau pour la boisson ET SOIT pour la cuisson SOIT pour l’hygiène personnelle SOIT 9 l ou plus mais moins de 15 l/j/p | I24: Suffisamment d’eau pour la boisson MAIS PAS pour la cuisson ET l’hygiène personnelle OU 3 l ou plus mais moins de 9 l/j/p | J24: Pas assez d’eau pour la boisson OU moins de 3 l/j/p | K24: En conformité avec le pourcentage majoritaire de réponses aux évaluations spécifiques de l’AEPAH (MSNA/DTM), tel que suggéré par nos collègues de l’AEPAH du JIAF. Voir aussi Limitations sur la feuille de travail Instructions. Si vous utilisez ces indicateurs dans l’analyse des facteurs contributifs, prendre contact avec le Cluster local du Global AEPAH.
C25: % des ménages ayant accès à des installations sanitaires fonctionnelles et améliorées | D25: Conditions de vie | F25: Accès à des installations sanitaires améliorées, non partagées avec d’autres ménages | G25: Accès à des installations sanitaires améliorées, partagées avec moins de 20 personnes | H25: Accès à des installations sanitaires améliorées, partagées avec plus de 20 personnes | I25: Accès à des installations non améliorées OU accès à des installations améliorées partagées avec plus de 50 personnes | J25: Élimination des excréments humains dans des espaces ouverts ou avec les déchets solides | K25: En conformité avec le pourcentage majoritaire de réponses aux évaluations spécifiques de l’AEPAH (MSNA/DTM), tel que suggéré par nos collègues de l’AEPAH du JIAF. Voir aussi Limitations sur la feuille de travail Instructions. Si vous utilisez ces indicateurs dans l’analyse des facteurs contributifs, prendre contact avec le Cluster local du Global AEPAH.
C26: % des ménages ayant accès à des installations de lavage des mains fonctionnelles, avec de l’eau et du savon disponibles ou % des ménages ayant accès à du savon | D26: Conditions de vie | F26: Savon disponible au domicile ET installation de lavage des mains sur place avec de l'eau et du savon disponibles | H26: Savon disponible au domicile MAIS aucune installation de lavage des mains sur place avec de l’eau et du savon disponibles | J26: Savon disponible au domicile | K26: En conformité avec le pourcentage majoritaire de réponses aux évaluations spécifiques de l’AEPAH (MSNA/DTM), tel que suggéré par nos collègues de l’AEPAH du JIAF. Voir aussi Limitations sur la feuille de travail Instructions. Si vous utilisez ces indicateurs dans l’analyse des facteurs contributifs, prendre contact avec le Cluster local du Global AEPAH.
B27: Causes sous-jacentes (Immunisation) | C27: Couverture du DTC3 (DPT3/PENTA3) chez les enfants < 1 an, par unité administrative (%) | D27: Bien-être physique et mental | F27: > 90% | G27: 85% - 90% | H27: 75% - 85% | I27: 65% - 75% | J27: < 65% | K27: Ces données peuvent être disponibles par le biais de projections, mais si c'est le cas, la qualité des données doit être vérifiée et notée. Dans certaines enquêtes, les données sont recueillies auprès d’enfants âgés de 12-23 mois. Veuillez vous assurer de mentionner la tranche d'âge sur laquelle portent les données. Seul le premier seuil a été testé et a été étayé par des preuves. Les autres ont été choisis arbitrairement et ne doivent pas être considérés comme des mesures précises à ce stade
C28: Couverture vaccinale systématique contre la rougeole (%) | D28: Bien-être physique et mental | F28: Pas de seuils proposés | K28: Ne provient pas de la liste officielle du Cluster Santé de leurs indicateurs clefs. Utilisez le consensus et le jugement des experts au niveau des pays pour analyser les facteurs contributifs.
C29: Couverture vaccinale systématique contre la polio (%) | D29: Bien-être physique et mental | F29: Pas de seuils proposés | K29: Ne provient pas de la liste officielle du Cluster Santé de leurs indicateurs clefs. Utilisez le consensus et le jugement des experts au niveau des pays pour analyser les facteurs contributifs.
C30: Couverture de supplémentation systématique en vitamine A (%) | D30: Bien-être physique et mental | F30: Pas de seuils proposés | K30: Ne provient pas de la liste officielle du Cluster Santé de leurs indicateurs clefs. Utilisez le consensus et le jugement des experts au niveau des pays pour analyser les facteurs contributifs.
C31: Couverture de la campagne de vaccination contre la rougeole (%) | D31: Bien-être physique et mental | F31: Pas de seuils proposés | K31: Ne provient pas de la liste officielle du Cluster Santé de leurs indicateurs clefs. Utilisez le consensus et le jugement des experts au niveau des pays pour analyser les facteurs contributifs.
C32: Couverture de la campagne de vaccination contre la polio (%) | D32: Bien-être physique et mental | F32: Pas de seuils proposés | K32: Ne provient pas de la liste officielle du Cluster Santé de leurs indicateurs clefs. Utilisez le consensus et le jugement des experts au niveau des pays pour analyser les facteurs contributifs.
C33: Couverture de la campagne de supplémentation en vitamine A (%) | D33: Bien-être physique et mental | F33: Pas de seuils proposés | K33: Ne provient pas de la liste officielle du Cluster Santé de leurs indicateurs clefs. Utilisez le consensus et le jugement des experts au niveau des pays pour analyser les facteurs contributifs.
C34: Couverture vaccinale contre la rougeole à partir des enquêtes (%) | D34: Bien-être physique et mental | F34: Pas de seuils proposés | K34: Ne provient pas de la liste officielle du Cluster Santé de leurs indicateurs clefs. Utilisez le consensus et le jugement des experts au niveau des pays pour analyser les facteurs contributifs.
C35: Couverture vaccinale contre la polio d'après les enquêtes (%) | D35: Bien-être physique et mental | F35: Pas de seuils proposés | K35: Ne provient pas de la liste officielle du Cluster Santé de leurs indicateurs clefs. Utilisez le consensus et le jugement des experts au niveau des pays pour analyser les facteurs contributifs.
C36: Couverture de la supplémentation en vitamine A à partir des enquêtes (%) | D36: Bien-être physique et mental | F36: Pas de seuils proposés | K36: Ne provient pas de la liste officielle du Cluster Santé de leurs indicateurs clefs. Utilisez le consensus et le jugement des experts au niveau des pays pour analyser les facteurs contributifs.
C37: Couverture de tous les vaccins de base à partir des enquêtes (%) | D37: Bien-être physique et mental | F37: Pas de seuils proposés | K37: Ne provient pas de la liste officielle du Cluster Santé de leurs indicateurs clefs. Utilisez le consensus et le jugement des experts au niveau des pays pour analyser les facteurs contributifs.
C38: Pourcentage d’enfants âgés de 6 mois à 15 ans ayant été vaccinés contre la rougeole | D38: Bien-être physique et mental | F38: > 95 % dans les camps /zones urbaines > 90 % dans les zones dispersées ou rurales | G38: < 94 - 85 % dans les zones urbaines et les camps < 89 - 84 % dans les zones dispersées ou rurales | H38: 75 % - 85 % | I38: 65 % - 75 % | J38: <65% | K38: Cet indicateur est utilisé pour estimer la couverture vaccinale de la stratégie totale de l'EPI. Pour éviter toute surestimation, la couverture vaccinale contre la rougeole est utilisée comme approximation puisqu'elle est généralement inférieure à la couverture du DTC3. Ces deux indicateurs doivent être calculés sur une base annuelle et peuvent donner une bonne indication des performances du système de santé. Il est nécessaire d’évaluer la qualité des données disponibles. Seul le premier seuil a été testé et a été étayé par des preuves. Les autres ont été choisis arbitrairement et ne doivent pas être considérés comme des mesures précises à ce stade
B39: Causes immédiates (État de santé) | C39: Nombre de cas pour certaines maladies pertinentes dans le contexte local (par ex., le choléra, la rougeole, la méningite aiguë, la COVID-19) | D39: Bien-être physique et mental | F39: Pas de seuils proposés | K39: Cet indicateur est principalement une mesure au niveau national et ne peut pas être facilement agrégé pour être utilisé à des niveaux plus élevés. La liste des maladies est spécifique au contexte. La collecte de données peut être problématique car la surveillance des établissements de santé peut être peu sensible à des affections qui ne sont pas habituellement traitées en clinique. L’accès aux services de santé est un autre facteur. Prendre contact avec les collègues du Cluster Santé local si vous utilisez cet indicateur.
C40: Taux de létalité pour certaines maladies pertinentes | D40: Bien-être physique et mental | F40: Pas de seuils proposés | K40: Mélange de sévérité de la maladie et de la qualité du soin de santé. Probable biais vers le haut attendu car seuls les cas les plus sévères se retrouvent en établissement hospitalier. Cet indicateur est avant tout une mesure au niveau des pays et ne saurait être agrégée facilement à des niveaux plus globaux. La liste des maladies est à replacer dans le contexte local et la collecte de données peut être problématique, sauf pour les cas traités en établissement hospitalier. L’accès à ceux-ci est un autre facteur. Prendre contact avec les collègues du Cluster Santé local si vous utilisez cet indicateur.
C41: Proportion d’enfants de moins de 5 ans ayant souffert de diarrhée au cours des deux dernières semaines | D41: Bien-être physique et mental | F41: Pas de seuils proposés | K41: Ne provient pas de la liste officielle du Cluster Santé de leurs indicateurs clefs. Utilisez le consensus et le jugement des experts au niveau des pays pour analyser les facteurs contributifs.
C42: Prévalence de VIH/SIDA | D42: Bien-être physique et mental | F42: Pas de seuils proposés | K42: Ne provient pas de la liste officielle du Cluster Santé de leurs indicateurs clefs. Utilisez le consensus et le jugement des experts au niveau des pays pour analyser les facteurs contributifs.
C43: Proportion d’enfants de moins de 5 ans souffrant de fièvre dans les zones à risque de paludisme | D43: Bien-être physique et mental | F43: Pas de seuils proposés | K43: Ne provient pas de la liste officielle du Cluster Santé de leurs indicateurs clefs. Utilisez le consensus et le jugement des experts au niveau des pays pour analyser les facteurs contributifs.
C44: Proportion d’enfants de moins de 5 ans qui ont présentés des infections respiratoires aiguës (IRA) au cours des deux dernières semaines | D44: Bien-être physique et mental | F44: Pas de seuils proposés | K44: Ne provient pas de la liste officielle du Cluster Santé de leurs indicateurs clefs. Utilisez le consensus et le jugement des experts au niveau des pays pour analyser les facteurs contributifs.
C45: Nombre de cas signalés de choléra ou de Diarrhée aqueuse aiguë (AWD) | D45: Bien-être physique et mental | F45: Pas de seuils proposés | K45: Ne provient pas de la liste officielle du Cluster Santé de leurs indicateurs clefs. Utilisez le consensus et le jugement des experts au niveau des pays pour analyser les facteurs contributifs.
B46: Causes sous-jacentes (Disponibilité et accès aux services de santé) | C46: Pourcentage d'établissements de soins de santé qui fournissent un ensemble de services de santé de base (incluant la nutrition) | D46: Conditions de vie | F46: Pas de seuils proposés | K46: Ne provient pas de la liste officielle du Cluster Santé de leurs indicateurs clefs. Utilisez le consensus et le jugement des experts au niveau des pays pour analyser les facteurs contributifs.
C47: Bonne hygiène de vie selon les enquêtes de population | D47: Conditions de vie | F47: Pas de seuils proposés | K47: Ne provient pas de la liste officielle du Cluster Santé de leurs indicateurs clefs. Utilisez le consensus et le jugement des experts au niveau des pays pour analyser les facteurs contributifs.
C48: Pourcentage de la population ayant accès à des soins de santé primaires à moins d’une heure de marche de son domicile | D48: Conditions de vie | F48: ≥ 80% | G48: 75% - 80% | H48: 70% - 75% | I48: 65% - 70% | J48: < 65% | K48: Selon les directives de JIAF. Seul le premier seuil a été testé et a été étayé par des preuves. Les autres ont été choisis arbitrairement et ne doivent pas être considérés comme des mesures précises à ce stade
C49: Nombre de centres de santé avec soins obstétriques d’urgence de base/500 000 habitants, par unité administrative | D49: Conditions de vie | F49: 4+ | G49: 3--4 | H49: 2--3 | I49: 1--2 | J49: < 1 | K49: Selon les directives de JIAF. Indicateurs de substitution pour la disponibilité physique et l’accessibilité géographique des services obstétricaux d’urgence et leur répartition dans les districts des zones affectées. Un déséquilibre entre la disponibilité des BEmOC et des CEmOC (avec trop peu de BEmOC) est souvent observé. Seul le premier seuil a été testé et a été étayé par des preuves. Les autres ont été choisis arbitrairement et ne doivent pas être considérés comme des mesures précises à ce stade
C50: Nombre de personnel qualifié pour les accouchements (médecins, infirmières, sages-femmes certifiées) pour 10 000 habitants | D50: Conditions de vie | F50: >= 23 | G50: >= 20 | H50: >= 17 | I50: >= 14 | J50: >= 11 | K50: Selon les directives de JIAF.
B51: Causes immédiates (Consommation alimentaire) | C51: PRIORITÉ : Cluster Sécurité Alimentaire/Analyse sectorielle | D51: Conditions de vie | F51: 1 | G51: 2 | H51: 3 | I51: 4 | J51: 5 | K51: À harmoniser avec l’analyse finale ou les résultats de l’analyse d’IPC sur la sécurité alimentaire en termes de phases fournies par les collègues de la sécurité alimentaire dans le pays
C52: Score de consommation alimentaire | D52: Conditions de vie | F52: Acceptable et stable | G52: Acceptable mais détérioration par rapport au niveau typique | H52: Valeur limite | I52: Pauvre | J52: Pauvre | K52: Sous-ensemble suggéré par les collègues de la Sécurité alimentaire pour le JIAF – voir Limitations sur la feuille de travail Instructions
C53: Indice domestique de la faim | D53: Conditions de vie | F53: 0 (aucun) | G53: 1 (léger) | H53: 2 ou 3 (modéré) | I53: 4 (sévère) | J53: 5 ou 6 (sévère) | K53: Sous-ensemble suggéré par les collègues de la Sécurité alimentaire pour le JIAF – voir Limitations sur la feuille de travail Instructions
C54: Indice de stratégie d’adaptation réduit | D54: Conditions de vie | F54: 0-3 | G54: 4-18 | H54: ≥ 19 | I54: ≥ 19 | J54: ≥ 19 | K54: Sous-ensemble suggéré par les collègues de la Sécurité alimentaire pour le JIAF – voir Limitations sur la feuille de travail Instructions
C55: Score de diversité alimentaire des ménages | D55: Conditions de vie | F55: 5-12 groupes d’aliments et stabilité | G55: 5-GA mais détérioration > 1 / niveau typique | H55: 3-4 GA | I55: 0-2 GA | J55: 0-2 GA | K55: Sous-ensemble suggéré par les collègues de la Sécurité alimentaire pour le JIAF – voir Limitations sur la feuille de travail Instructions

Sheet Dépôt de preuves, fiabilité
A1: Dépôt et fiabilité des preuves utilisées | G1: Tableau des scores de fiabilité de l’IPC AM - voir la Figure 2 à la p. 6
C2: PREUVE UTILISÉE | G2: Période pertinente | H2: Période pertinente | I2: Période non pertinente | J2: Période non pertinente
C3: Nom du rapport | D3: Source du rapport | E3: Période de collecte des données | F3: Date de publication | G3: Pertinence de la méthode | H3: Méthode limitée | I3: Pertinence de la méthode | J3: Méthode limitée | K3: Observations et données brutes [Indiquer la représentativité, la qualité, etc. ; l'état du rapport, par exemple préliminaire ; si rien à mettre en évidence, laisser en blanc]
A4: Secteur | B4: Nom/Libellé de l'indicateur de résultat | C4: [Écrire le nom exact du rapport] | D4: (Écrire le ou les noms de ou des agences qui ont publié le rapport) | E4: [Écrire les dates auxquelles les données ont été collectées] | F4: [Écrire la date à laquelle le rapport a été publié] | G4: Fiable - R2 | H4: Assez fiable - R1+ | I4: Assez fiable - R1- | J4: X
A5: Nutrition | B5: Prévalence de la malnutrition aiguë globale (MAG) basée sur le Z-score du poids-pour-taille (P/T)< -2 et/ou présence d’œdèmes bilatéraux chez les enfants 0-59 mois (en l’absence de données, utiliser 6-59 mois) | G5: X
B6: Prévalence de la malnutrition aiguë globale (MAG) en fonction du périmètre brachial (PB) < 125 mm et/ou présence d’œdèmes bilatéraux chez les enfants de 6-59 mois | H6: X
B7: Prévalence de la malnutrition aiguë globale (MAG) basée sur le périmètre brachial (PB) < 210-230 mm (selon les contextes) et/ou présence d’œdèmes bilatéraux chez les femmes enceintes et allaitantes
B8: Prévalence du retard de croissance basée sur le Z-score du rapport taille-pour-âge (T/A) <-2 parmi les enfants de 0-59 mois
B9: Prévalence de surpoids sur le score z du poids pour taille (P/T) >2 parmi les enfants de 0-59 mois
B10: Prévalence de la malnutrition aiguë globale (MAG) basée sur le périmètre brachial (PB) < 210mm parmi les personnes âgées
B11: Prévalence de la malnutrition aiguë globale (MAG) basée sur le Z-score de l’IMC-pour-l'âge <-2 chez les adolescents
B12: Prévalence d’anémie Hb <11 g/dl chez les enfants de 6-59 mois
B13: Prévalence d’anémie Hb <11 g/dl chez les femmes enceintes
B14: Taux de décès brut (décès/ 10 000 personnes/jour)
B15: Taux de décès des moins de 5 ans (décès/10 000 enfants de moins de 5 ans/jour)
A16: Pratiques de l’ANJE | B16: Diversité alimentaire minimale chez les enfants de 6-23 mois
B17: Régime alimentaire minimum acceptable chez les enfants de 6-23 mois* *Nécessite une Fréquence minimale des repas chez les enfants de 6-23 mois pour obtenir cet indicateur
B18: Allaitement maternel exclusif pour les nourrissons de 0-5 mois
B19: Nourrissons de 0-5 mois non allaités et ayant accès à l’approvisionnement en substituts de lait maternel (SLM) conformément au Code et aux normes et recommandations OG de l’IFE
B20: Nourrissons de 6-11 mois non allaités et ayant accès à l’approvisionnement en substituts de lait maternel (SLM) conformément au Code et aux normes et recommandations OG de l’IFE
A21: WASH | B21: % des ménages ayant accès à une source d’eau assainie
B22: % des ménages ayant accès à une quantité suffisante d’eau pour la boisson, la cuisine, le bain, la toilette ou d’autres usages domestiques
B23: % des ménages ayant accès à des installations sanitaires fonctionnelles et améliorées
B24: % des ménages ayant accès à des installations de lavage des mains fonctionnelles, avec de l’eau et du savon disponibles ou % des ménages ayant accès à du savon
A25: Santé | B25: Couverture du DTC3 (DPT3/PENTA3) chez les enfants < 1 an, par unité administrative (%)
B26: Couverture vaccinale systématique contre la rougeole (%)
B27: Couverture vaccinale systématique contre la polio (%)
B28: Couverture de supplémentation systématique en vitamine A (%)
B29: Couverture de la campagne de vaccination contre la rougeole (%)
B30: Couverture de la campagne de vaccination contre la polio (%)
B31: Couverture de la campagne de supplémentation en vitamine A (%)
B32: Couverture vaccinale contre la rougeole à partir des enquêtes (%)
B33: Couverture vaccinale contre la polio d'après les enquêtes (%)
B34: Couverture de la supplémentation en vitamine A à partir des enquêtes (%)
B35: Couverture de tous les vaccins de base à partir des enquêtes (%)
B36: Pourcentage d’enfants âgés de 6 mois à 15 ans ayant été vaccinés contre la rougeole
B37: Nombre de cas pour certaines maladies pertinentes dans le contexte local (par ex., le choléra, la rougeole, la méningite aiguë, la COVID-19)
B38: Taux de létalité pour certaines maladies pertinentes
B39: Proportion d’enfants de moins de 5 ans ayant souffert de diarrhée au cours des deux dernières semaines
B40: Prévalence de VIH/SIDA
B41: Proportion d’enfants de moins de 5 ans souffrant de fièvre dans les zones à risque de paludisme
B42: Proportion d’enfants de moins de 5 ans qui ont présentés des infections respiratoires aiguës (IRA) au cours des deux dernières semaines
B43: Nombre de cas signalés de choléra ou de Diarrhée aqueuse aiguë (AWD)
B44: Pourcentage d'établissements de soins de santé qui fournissent un ensemble de services de santé de base (incluant la nutrition)
B45: Bonne hygiène de vie selon les enquêtes de population
B46: Percentage of population that can access primary healthcare within one hour’s walk from dwellings
B47: Number of HF with Basic Emergency Obstetric Care/ 500,000 population, by administrative unit
B48: Nombre de personnel qualifié pour les accouchements (médecins, infirmières, sages-femmes certifiées) pour 10 000 habitants
A49: Sécurité alimentaire | B49: PRIORITÉ : Cluster Sécurité Alimentaire/Analyse sectorielle
B50: Score de consommation alimentaire
B51: Indice domestique de la faim
B52: Indice de stratégie d’adaptation réduit
B53: Score de diversité alimentaire des ménages

Sheet Composition_équipe d'analyse
A1: MATRICE DE COMPOSITION DE L’ÉQUIPE D’ANALYSE
E2: (Adaptée depuis l’IPC de l'AMN)
A3: Coordinateur du Cluster Nutrition : | C3: Représentation de l'organisation actionnaire
A4: Facilitateur(s) : | C4: Membres du Groupe de travail technique sur les systèmes d'information nutritionnelle (Oui/Non) | D4: (Indiquer le nom, la fonction et l’agence)
D5: Gouvernement national | E5: ONG nationales/Société civile/Secteur privé | F5: Agences techniques/Institutions académiques | G5: ONG internationales | H5: Agences des Nations Unies
D6: (à tous les niveaux concernés)
A7: Zone d’expertise (à inclure comme approprié pour l’analyse) | B7: Nutrition
B8: Sécurité alimentaire/Moyens de subsistance
B9: Santé
B10: WASH
B11: Genre
B12: Statistiques
B13: Autre 1
B14: Autre 2
B15: Autre 3

Sheet Scénario 2 - Analyse Nut.
A1: BIEN-ÊTRE PHYSIQUE ET MENTAL | D1: SCÉNARIO 2 avec une MAG ≥ 5% chez les enfants de moins de 5 ans
B2: Reliability Scores
B3: Based on soundness of method and time relevance (see Figure 2) R2 - Reliable R1 - Somewhat reliable | C3: Based on soundness of method and time relevance (see Figure 2) R2 - Reliable R1 - Somewhat reliable | D3: Based on soundness of method and time relevance (see Figure 2) R2 - Reliable R1 - Somewhat reliable | E3: Based on soundness of method and time relevance (see Figure 2) R2 - Reliable R1 - Somewhat reliable | F3: Based on soundness of method and time relevance (see Figure 2) R2 - Reliable R1 - Somewhat reliable
A5: Admin pour les zones d'intérêt « affectées » | B5: Prévalence de la MAG en % (P/T) pour les enfants de 0-59 mois | C5: UNIQUEMENT SI LA MAG (P/T) n’est pas disponible : Prévalence de la MAG en % (PB) pour les enfants 6-59 mois | D5: Prévalence de la MAG en % pour les femmes enceintes et allaitantes (PB<210mm)* | E5: Analyse de sévérité basée sur la prévalance % de MAG | F5: Justification si la MAG basée sur le PB a été utilisée
A6: Utiliser les noms d’adm. à partir des COD | B6: Insérer les données de prévalence - Classification automatique (voir la feuille de travail Seuils de classification) | C6: Insérer les données de prévalence - Classification automatique (voir la feuille de travail Seuils de classification) | D6: Insérer les données de prévalence - Classification automatique (voir la feuille de travail Seuils de classification) | E6: Classification automatique | G6: * adapter avec un seuil au niveau du pays si différent
A7: Badakhshan | E7: =IF(B7<>"", (IF(B7<5%,'Seuils de classification'!$F$2, IF(B7<10%,'Seuils de classification'!$G$2, IF(B7<15%,'Seuils de classification'!$H$2,IF(B7<30%,'Seuils de classification'!$I$2,IF(B7>29%,'Seuils de classification'!$J$2,"")))))), IF(C7<>"",(IF(C7<5%,"Provide justification for value", IF(C7<10%,"Provide justification for value", IF(C7<15%,"Provide justification for value", IF(C7<30%,"Provide justification for value",""))))), IF(D7<>"",(IF(D7<12.5%,'Seuils de classification'!$F$2, IF(D7<20%,'Seuils de classification'!$G$2, IF(D7<25%,'Seuils de classification'!$H$2, IF(D7<35%,'Seuils de classification'!$I$2,IF(D7>34%,'Seuils de classification'!$J$2,"")))))),""))) -> 
A8: Badghis | E8: =IF(B8<>"", (IF(B8<5%,'Seuils de classification'!$F$2, IF(B8<10%,'Seuils de classification'!$G$2, IF(B8<15%,'Seuils de classification'!$H$2,IF(B8<30%,'Seuils de classification'!$I$2,IF(B8>29%,'Seuils de classification'!$J$2,"")))))), IF(C8<>"",(IF(C8<5%,"Provide justification for value", IF(C8<10%,"Provide justification for value", IF(C8<15%,"Provide justification for value", IF(C8<30%,"Provide justification for value",""))))), IF(D8<>"",(IF(D8<12.5%,'Seuils de classification'!$F$2, IF(D8<20%,'Seuils de classification'!$G$2, IF(D8<25%,'Seuils de classification'!$H$2, IF(D8<35%,'Seuils de classification'!$I$2,IF(D8>34%,'Seuils de classification'!$J$2,"")))))),""))) -> 
A9: Baghlan | E9: =IF(B9<>"", (IF(B9<5%,'Seuils de classification'!$F$2, IF(B9<10%,'Seuils de classification'!$G$2, IF(B9<15%,'Seuils de classification'!$H$2,IF(B9<30%,'Seuils de classification'!$I$2,IF(B9>29%,'Seuils de classification'!$J$2,"")))))), IF(C9<>"",(IF(C9<5%,"Provide justification for value", IF(C9<10%,"Provide justification for value", IF(C9<15%,"Provide justification for value", IF(C9<30%,"Provide justification for value",""))))), IF(D9<>"",(IF(D9<12.5%,'Seuils de classification'!$F$2, IF(D9<20%,'Seuils de classification'!$G$2, IF(D9<25%,'Seuils de classification'!$H$2, IF(D9<35%,'Seuils de classification'!$I$2,IF(D9>34%,'Seuils de classification'!$J$2,"")))))),""))) -> 
A10: Balkh | E10: =IF(B10<>"", (IF(B10<5%,'Seuils de classification'!$F$2, IF(B10<10%,'Seuils de classification'!$G$2, IF(B10<15%,'Seuils de classification'!$H$2,IF(B10<30%,'Seuils de classification'!$I$2,IF(B10>29%,'Seuils de classification'!$J$2,"")))))), IF(C10<>"",(IF(C10<5%,"Provide justification for value", IF(C10<10%,"Provide justification for value", IF(C10<15%,"Provide justification for value", IF(C10<30%,"Provide justification for value",""))))), IF(D10<>"",(IF(D10<12.5%,'Seuils de classification'!$F$2, IF(D10<20%,'Seuils de classification'!$G$2, IF(D10<25%,'Seuils de classification'!$H$2, IF(D10<35%,'Seuils de classification'!$I$2,IF(D10>34%,'Seuils de classification'!$J$2,"")))))),""))) -> 
A11: Bamyan | E11: =IF(B11<>"", (IF(B11<5%,'Seuils de classification'!$F$2, IF(B11<10%,'Seuils de classification'!$G$2, IF(B11<15%,'Seuils de classification'!$H$2,IF(B11<30%,'Seuils de classification'!$I$2,IF(B11>29%,'Seuils de classification'!$J$2,"")))))), IF(C11<>"",(IF(C11<5%,"Provide justification for value", IF(C11<10%,"Provide justification for value", IF(C11<15%,"Provide justification for value", IF(C11<30%,"Provide justification for value",""))))), IF(D11<>"",(IF(D11<12.5%,'Seuils de classification'!$F$2, IF(D11<20%,'Seuils de classification'!$G$2, IF(D11<25%,'Seuils de classification'!$H$2, IF(D11<35%,'Seuils de classification'!$I$2,IF(D11>34%,'Seuils de classification'!$J$2,"")))))),""))) -> 
A12: Dykundi | E12: =IF(B12<>"", (IF(B12<5%,'Seuils de classification'!$F$2, IF(B12<10%,'Seuils de classification'!$G$2, IF(B12<15%,'Seuils de classification'!$H$2,IF(B12<30%,'Seuils de classification'!$I$2,IF(B12>29%,'Seuils de classification'!$J$2,"")))))), IF(C12<>"",(IF(C12<5%,"Provide justification for value", IF(C12<10%,"Provide justification for value", IF(C12<15%,"Provide justification for value", IF(C12<30%,"Provide justification for value",""))))), IF(D12<>"",(IF(D12<12.5%,'Seuils de classification'!$F$2, IF(D12<20%,'Seuils de classification'!$G$2, IF(D12<25%,'Seuils de classification'!$H$2, IF(D12<35%,'Seuils de classification'!$I$2,IF(D12>34%,'Seuils de classification'!$J$2,"")))))),""))) -> 
A13: Farah | E13: =IF(B13<>"", (IF(B13<5%,'Seuils de classification'!$F$2, IF(B13<10%,'Seuils de classification'!$G$2, IF(B13<15%,'Seuils de classification'!$H$2,IF(B13<30%,'Seuils de classification'!$I$2,IF(B13>29%,'Seuils de classification'!$J$2,"")))))), IF(C13<>"",(IF(C13<5%,"Provide justification for value", IF(C13<10%,"Provide justification for value", IF(C13<15%,"Provide justification for value", IF(C13<30%,"Provide justification for value",""))))), IF(D13<>"",(IF(D13<12.5%,'Seuils de classification'!$F$2, IF(D13<20%,'Seuils de classification'!$G$2, IF(D13<25%,'Seuils de classification'!$H$2, IF(D13<35%,'Seuils de classification'!$I$2,IF(D13>34%,'Seuils de classification'!$J$2,"")))))),""))) -> 
A14: Faryab | E14: =IF(B14<>"", (IF(B14<5%,'Seuils de classification'!$F$2, IF(B14<10%,'Seuils de classification'!$G$2, IF(B14<15%,'Seuils de classification'!$H$2,IF(B14<30%,'Seuils de classification'!$I$2,IF(B14>29%,'Seuils de classification'!$J$2,"")))))), IF(C14<>"",(IF(C14<5%,"Provide justification for value", IF(C14<10%,"Provide justification for value", IF(C14<15%,"Provide justification for value", IF(C14<30%,"Provide justification for value",""))))), IF(D14<>"",(IF(D14<12.5%,'Seuils de classification'!$F$2, IF(D14<20%,'Seuils de classification'!$G$2, IF(D14<25%,'Seuils de classification'!$H$2, IF(D14<35%,'Seuils de classification'!$I$2,IF(D14>34%,'Seuils de classification'!$J$2,"")))))),""))) -> 
A15: Ghazni | E15: =IF(B15<>"", (IF(B15<5%,'Seuils de classification'!$F$2, IF(B15<10%,'Seuils de classification'!$G$2, IF(B15<15%,'Seuils de classification'!$H$2,IF(B15<30%,'Seuils de classification'!$I$2,IF(B15>29%,'Seuils de classification'!$J$2,"")))))), IF(C15<>"",(IF(C15<5%,"Provide justification for value", IF(C15<10%,"Provide justification for value", IF(C15<15%,"Provide justification for value", IF(C15<30%,"Provide justification for value",""))))), IF(D15<>"",(IF(D15<12.5%,'Seuils de classification'!$F$2, IF(D15<20%,'Seuils de classification'!$G$2, IF(D15<25%,'Seuils de classification'!$H$2, IF(D15<35%,'Seuils de classification'!$I$2,IF(D15>34%,'Seuils de classification'!$J$2,"")))))),""))) -> 
A16: Ghor | E16: =IF(B16<>"", (IF(B16<5%,'Seuils de classification'!$F$2, IF(B16<10%,'Seuils de classification'!$G$2, IF(B16<15%,'Seuils de classification'!$H$2,IF(B16<30%,'Seuils de classification'!$I$2,IF(B16>29%,'Seuils de classification'!$J$2,"")))))), IF(C16<>"",(IF(C16<5%,"Provide justification for value", IF(C16<10%,"Provide justification for value", IF(C16<15%,"Provide justification for value", IF(C16<30%,"Provide justification for value",""))))), IF(D16<>"",(IF(D16<12.5%,'Seuils de classification'!$F$2, IF(D16<20%,'Seuils de classification'!$G$2, IF(D16<25%,'Seuils de classification'!$H$2, IF(D16<35%,'Seuils de classification'!$I$2,IF(D16>34%,'Seuils de classification'!$J$2,"")))))),""))) -> 
A17: Helmand | E17: =IF(B17<>"", (IF(B17<5%,'Seuils de classification'!$F$2, IF(B17<10%,'Seuils de classification'!$G$2, IF(B17<15%,'Seuils de classification'!$H$2,IF(B17<30%,'Seuils de classification'!$I$2,IF(B17>29%,'Seuils de classification'!$J$2,"")))))), IF(C17<>"",(IF(C17<5%,"Provide justification for value", IF(C17<10%,"Provide justification for value", IF(C17<15%,"Provide justification for value", IF(C17<30%,"Provide justification for value",""))))), IF(D17<>"",(IF(D17<12.5%,'Seuils de classification'!$F$2, IF(D17<20%,'Seuils de classification'!$G$2, IF(D17<25%,'Seuils de classification'!$H$2, IF(D17<35%,'Seuils de classification'!$I$2,IF(D17>34%,'Seuils de classification'!$J$2,"")))))),""))) -> 
A18: Hirat | E18: =IF(B18<>"", (IF(B18<5%,'Seuils de classification'!$F$2, IF(B18<10%,'Seuils de classification'!$G$2, IF(B18<15%,'Seuils de classification'!$H$2,IF(B18<30%,'Seuils de classification'!$I$2,IF(B18>29%,'Seuils de classification'!$J$2,"")))))), IF(C18<>"",(IF(C18<5%,"Provide justification for value", IF(C18<10%,"Provide justification for value", IF(C18<15%,"Provide justification for value", IF(C18<30%,"Provide justification for value",""))))), IF(D18<>"",(IF(D18<12.5%,'Seuils de classification'!$F$2, IF(D18<20%,'Seuils de classification'!$G$2, IF(D18<25%,'Seuils de classification'!$H$2, IF(D18<35%,'Seuils de classification'!$I$2,IF(D18>34%,'Seuils de classification'!$J$2,"")))))),""))) -> 
A19: Jawzjan | E19: =IF(B19<>"", (IF(B19<5%,'Seuils de classification'!$F$2, IF(B19<10%,'Seuils de classification'!$G$2, IF(B19<15%,'Seuils de classification'!$H$2,IF(B19<30%,'Seuils de classification'!$I$2,IF(B19>29%,'Seuils de classification'!$J$2,"")))))), IF(C19<>"",(IF(C19<5%,"Provide justification for value", IF(C19<10%,"Provide justification for value", IF(C19<15%,"Provide justification for value", IF(C19<30%,"Provide justification for value",""))))), IF(D19<>"",(IF(D19<12.5%,'Seuils de classification'!$F$2, IF(D19<20%,'Seuils de classification'!$G$2, IF(D19<25%,'Seuils de classification'!$H$2, IF(D19<35%,'Seuils de classification'!$I$2,IF(D19>34%,'Seuils de classification'!$J$2,"")))))),""))) -> 
A20: Kabul | E20: =IF(B20<>"", (IF(B20<5%,'Seuils de classification'!$F$2, IF(B20<10%,'Seuils de classification'!$G$2, IF(B20<15%,'Seuils de classification'!$H$2,IF(B20<30%,'Seuils de classification'!$I$2,IF(B20>29%,'Seuils de classification'!$J$2,"")))))), IF(C20<>"",(IF(C20<5%,"Provide justification for value", IF(C20<10%,"Provide justification for value", IF(C20<15%,"Provide justification for value", IF(C20<30%,"Provide justification for value",""))))), IF(D20<>"",(IF(D20<12.5%,'Seuils de classification'!$F$2, IF(D20<20%,'Seuils de classification'!$G$2, IF(D20<25%,'Seuils de classification'!$H$2, IF(D20<35%,'Seuils de classification'!$I$2,IF(D20>34%,'Seuils de classification'!$J$2,"")))))),""))) -> 
A21: Kandahar | E21: =IF(B21<>"", (IF(B21<5%,'Seuils de classification'!$F$2, IF(B21<10%,'Seuils de classification'!$G$2, IF(B21<15%,'Seuils de classification'!$H$2,IF(B21<30%,'Seuils de classification'!$I$2,IF(B21>29%,'Seuils de classification'!$J$2,"")))))), IF(C21<>"",(IF(C21<5%,"Provide justification for value", IF(C21<10%,"Provide justification for value", IF(C21<15%,"Provide justification for value", IF(C21<30%,"Provide justification for value",""))))), IF(D21<>"",(IF(D21<12.5%,'Seuils de classification'!$F$2, IF(D21<20%,'Seuils de classification'!$G$2, IF(D21<25%,'Seuils de classification'!$H$2, IF(D21<35%,'Seuils de classification'!$I$2,IF(D21>34%,'Seuils de classification'!$J$2,"")))))),""))) -> 
A22: Kapisa | E22: =IF(B22<>"", (IF(B22<5%,'Seuils de classification'!$F$2, IF(B22<10%,'Seuils de classification'!$G$2, IF(B22<15%,'Seuils de classification'!$H$2,IF(B22<30%,'Seuils de classification'!$I$2,IF(B22>29%,'Seuils de classification'!$J$2,"")))))), IF(C22<>"",(IF(C22<5%,"Provide justification for value", IF(C22<10%,"Provide justification for value", IF(C22<15%,"Provide justification for value", IF(C22<30%,"Provide justification for value",""))))), IF(D22<>"",(IF(D22<12.5%,'Seuils de classification'!$F$2, IF(D22<20%,'Seuils de classification'!$G$2, IF(D22<25%,'Seuils de classification'!$H$2, IF(D22<35%,'Seuils de classification'!$I$2,IF(D22>34%,'Seuils de classification'!$J$2,"")))))),""))) -> 
A23: Khost | E23: =IF(B23<>"", (IF(B23<5%,'Seuils de classification'!$F$2, IF(B23<10%,'Seuils de classification'!$G$2, IF(B23<15%,'Seuils de classification'!$H$2,IF(B23<30%,'Seuils de classification'!$I$2,IF(B23>29%,'Seuils de classification'!$J$2,"")))))), IF(C23<>"",(IF(C23<5%,"Provide justification for value", IF(C23<10%,"Provide justification for value", IF(C23<15%,"Provide justification for value", IF(C23<30%,"Provide justification for value",""))))), IF(D23<>"",(IF(D23<12.5%,'Seuils de classification'!$F$2, IF(D23<20%,'Seuils de classification'!$G$2, IF(D23<25%,'Seuils de classification'!$H$2, IF(D23<35%,'Seuils de classification'!$I$2,IF(D23>34%,'Seuils de classification'!$J$2,"")))))),""))) -> 
A24: Kunar | E24: =IF(B24<>"", (IF(B24<5%,'Seuils de classification'!$F$2, IF(B24<10%,'Seuils de classification'!$G$2, IF(B24<15%,'Seuils de classification'!$H$2,IF(B24<30%,'Seuils de classification'!$I$2,IF(B24>29%,'Seuils de classification'!$J$2,"")))))), IF(C24<>"",(IF(C24<5%,"Provide justification for value", IF(C24<10%,"Provide justification for value", IF(C24<15%,"Provide justification for value", IF(C24<30%,"Provide justification for value",""))))), IF(D24<>"",(IF(D24<12.5%,'Seuils de classification'!$F$2, IF(D24<20%,'Seuils de classification'!$G$2, IF(D24<25%,'Seuils de classification'!$H$2, IF(D24<35%,'Seuils de classification'!$I$2,IF(D24>34%,'Seuils de classification'!$J$2,"")))))),""))) -> 
A25: Kunduz | E25: =IF(B25<>"", (IF(B25<5%,'Seuils de classification'!$F$2, IF(B25<10%,'Seuils de classification'!$G$2, IF(B25<15%,'Seuils de classification'!$H$2,IF(B25<30%,'Seuils de classification'!$I$2,IF(B25>29%,'Seuils de classification'!$J$2,"")))))), IF(C25<>"",(IF(C25<5%,"Provide justification for value", IF(C25<10%,"Provide justification for value", IF(C25<15%,"Provide justification for value", IF(C25<30%,"Provide justification for value",""))))), IF(D25<>"",(IF(D25<12.5%,'Seuils de classification'!$F$2, IF(D25<20%,'Seuils de classification'!$G$2, IF(D25<25%,'Seuils de classification'!$H$2, IF(D25<35%,'Seuils de classification'!$I$2,IF(D25>34%,'Seuils de classification'!$J$2,"")))))),""))) -> 
A26: Laghman | E26: =IF(B26<>"", (IF(B26<5%,'Seuils de classification'!$F$2, IF(B26<10%,'Seuils de classification'!$G$2, IF(B26<15%,'Seuils de classification'!$H$2,IF(B26<30%,'Seuils de classification'!$I$2,IF(B26>29%,'Seuils de classification'!$J$2,"")))))), IF(C26<>"",(IF(C26<5%,"Provide justification for value", IF(C26<10%,"Provide justification for value", IF(C26<15%,"Provide justification for value", IF(C26<30%,"Provide justification for value",""))))), IF(D26<>"",(IF(D26<12.5%,'Seuils de classification'!$F$2, IF(D26<20%,'Seuils de classification'!$G$2, IF(D26<25%,'Seuils de classification'!$H$2, IF(D26<35%,'Seuils de classification'!$I$2,IF(D26>34%,'Seuils de classification'!$J$2,"")))))),""))) -> 
A27: Logar | E27: =IF(B27<>"", (IF(B27<5%,'Seuils de classification'!$F$2, IF(B27<10%,'Seuils de classification'!$G$2, IF(B27<15%,'Seuils de classification'!$H$2,IF(B27<30%,'Seuils de classification'!$I$2,IF(B27>29%,'Seuils de classification'!$J$2,"")))))), IF(C27<>"",(IF(C27<5%,"Provide justification for value", IF(C27<10%,"Provide justification for value", IF(C27<15%,"Provide justification for value", IF(C27<30%,"Provide justification for value",""))))), IF(D27<>"",(IF(D27<12.5%,'Seuils de classification'!$F$2, IF(D27<20%,'Seuils de classification'!$G$2, IF(D27<25%,'Seuils de classification'!$H$2, IF(D27<35%,'Seuils de classification'!$I$2,IF(D27>34%,'Seuils de classification'!$J$2,"")))))),""))) -> 
A28: Nangarhar | E28: =IF(B28<>"", (IF(B28<5%,'Seuils de classification'!$F$2, IF(B28<10%,'Seuils de classification'!$G$2, IF(B28<15%,'Seuils de classification'!$H$2,IF(B28<30%,'Seuils de classification'!$I$2,IF(B28>29%,'Seuils de classification'!$J$2,"")))))), IF(C28<>"",(IF(C28<5%,"Provide justification for value", IF(C28<10%,"Provide justification for value", IF(C28<15%,"Provide justification for value", IF(C28<30%,"Provide justification for value",""))))), IF(D28<>"",(IF(D28<12.5%,'Seuils de classification'!$F$2, IF(D28<20%,'Seuils de classification'!$G$2, IF(D28<25%,'Seuils de classification'!$H$2, IF(D28<35%,'Seuils de classification'!$I$2,IF(D28>34%,'Seuils de classification'!$J$2,"")))))),""))) -> 
A29: Nimroz | E29: =IF(B29<>"", (IF(B29<5%,'Seuils de classification'!$F$2, IF(B29<10%,'Seuils de classification'!$G$2, IF(B29<15%,'Seuils de classification'!$H$2,IF(B29<30%,'Seuils de classification'!$I$2,IF(B29>29%,'Seuils de classification'!$J$2,"")))))), IF(C29<>"",(IF(C29<5%,"Provide justification for value", IF(C29<10%,"Provide justification for value", IF(C29<15%,"Provide justification for value", IF(C29<30%,"Provide justification for value",""))))), IF(D29<>"",(IF(D29<12.5%,'Seuils de classification'!$F$2, IF(D29<20%,'Seuils de classification'!$G$2, IF(D29<25%,'Seuils de classification'!$H$2, IF(D29<35%,'Seuils de classification'!$I$2,IF(D29>34%,'Seuils de classification'!$J$2,"")))))),""))) -> 
A30: Nuristan | E30: =IF(B30<>"", (IF(B30<5%,'Seuils de classification'!$F$2, IF(B30<10%,'Seuils de classification'!$G$2, IF(B30<15%,'Seuils de classification'!$H$2,IF(B30<30%,'Seuils de classification'!$I$2,IF(B30>29%,'Seuils de classification'!$J$2,"")))))), IF(C30<>"",(IF(C30<5%,"Provide justification for value", IF(C30<10%,"Provide justification for value", IF(C30<15%,"Provide justification for value", IF(C30<30%,"Provide justification for value",""))))), IF(D30<>"",(IF(D30<12.5%,'Seuils de classification'!$F$2, IF(D30<20%,'Seuils de classification'!$G$2, IF(D30<25%,'Seuils de classification'!$H$2, IF(D30<35%,'Seuils de classification'!$I$2,IF(D30>34%,'Seuils de classification'!$J$2,"")))))),""))) -> 
A31: Paktika | E31: =IF(B31<>"", (IF(B31<5%,'Seuils de classification'!$F$2, IF(B31<10%,'Seuils de classification'!$G$2, IF(B31<15%,'Seuils de classification'!$H$2,IF(B31<30%,'Seuils de classification'!$I$2,IF(B31>29%,'Seuils de classification'!$J$2,"")))))), IF(C31<>"",(IF(C31<5%,"Provide justification for value", IF(C31<10%,"Provide justification for value", IF(C31<15%,"Provide justification for value", IF(C31<30%,"Provide justification for value",""))))), IF(D31<>"",(IF(D31<12.5%,'Seuils de classification'!$F$2, IF(D31<20%,'Seuils de classification'!$G$2, IF(D31<25%,'Seuils de classification'!$H$2, IF(D31<35%,'Seuils de classification'!$I$2,IF(D31>34%,'Seuils de classification'!$J$2,"")))))),""))) -> 
A32: Paktya | E32: =IF(B32<>"", (IF(B32<5%,'Seuils de classification'!$F$2, IF(B32<10%,'Seuils de classification'!$G$2, IF(B32<15%,'Seuils de classification'!$H$2,IF(B32<30%,'Seuils de classification'!$I$2,IF(B32>29%,'Seuils de classification'!$J$2,"")))))), IF(C32<>"",(IF(C32<5%,"Provide justification for value", IF(C32<10%,"Provide justification for value", IF(C32<15%,"Provide justification for value", IF(C32<30%,"Provide justification for value",""))))), IF(D32<>"",(IF(D32<12.5%,'Seuils de classification'!$F$2, IF(D32<20%,'Seuils de classification'!$G$2, IF(D32<25%,'Seuils de classification'!$H$2, IF(D32<35%,'Seuils de classification'!$I$2,IF(D32>34%,'Seuils de classification'!$J$2,"")))))),""))) -> 
A33: Panjsher | E33: =IF(B33<>"", (IF(B33<5%,'Seuils de classification'!$F$2, IF(B33<10%,'Seuils de classification'!$G$2, IF(B33<15%,'Seuils de classification'!$H$2,IF(B33<30%,'Seuils de classification'!$I$2,IF(B33>29%,'Seuils de classification'!$J$2,"")))))), IF(C33<>"",(IF(C33<5%,"Provide justification for value", IF(C33<10%,"Provide justification for value", IF(C33<15%,"Provide justification for value", IF(C33<30%,"Provide justification for value",""))))), IF(D33<>"",(IF(D33<12.5%,'Seuils de classification'!$F$2, IF(D33<20%,'Seuils de classification'!$G$2, IF(D33<25%,'Seuils de classification'!$H$2, IF(D33<35%,'Seuils de classification'!$I$2,IF(D33>34%,'Seuils de classification'!$J$2,"")))))),""))) -> 
A34: Parwan | E34: =IF(B34<>"", (IF(B34<5%,'Seuils de classification'!$F$2, IF(B34<10%,'Seuils de classification'!$G$2, IF(B34<15%,'Seuils de classification'!$H$2,IF(B34<30%,'Seuils de classification'!$I$2,IF(B34>29%,'Seuils de classification'!$J$2,"")))))), IF(C34<>"",(IF(C34<5%,"Provide justification for value", IF(C34<10%,"Provide justification for value", IF(C34<15%,"Provide justification for value", IF(C34<30%,"Provide justification for value",""))))), IF(D34<>"",(IF(D34<12.5%,'Seuils de classification'!$F$2, IF(D34<20%,'Seuils de classification'!$G$2, IF(D34<25%,'Seuils de classification'!$H$2, IF(D34<35%,'Seuils de classification'!$I$2,IF(D34>34%,'Seuils de classification'!$J$2,"")))))),""))) -> 
A35: Samangan | E35: =IF(B35<>"", (IF(B35<5%,'Seuils de classification'!$F$2, IF(B35<10%,'Seuils de classification'!$G$2, IF(B35<15%,'Seuils de classification'!$H$2,IF(B35<30%,'Seuils de classification'!$I$2,IF(B35>29%,'Seuils de classification'!$J$2,"")))))), IF(C35<>"",(IF(C35<5%,"Provide justification for value", IF(C35<10%,"Provide justification for value", IF(C35<15%,"Provide justification for value", IF(C35<30%,"Provide justification for value",""))))), IF(D35<>"",(IF(D35<12.5%,'Seuils de classification'!$F$2, IF(D35<20%,'Seuils de classification'!$G$2, IF(D35<25%,'Seuils de classification'!$H$2, IF(D35<35%,'Seuils de classification'!$I$2,IF(D35>34%,'Seuils de classification'!$J$2,"")))))),""))) -> 
A36: Sar-e-Pul | E36: =IF(B36<>"", (IF(B36<5%,'Seuils de classification'!$F$2, IF(B36<10%,'Seuils de classification'!$G$2, IF(B36<15%,'Seuils de classification'!$H$2,IF(B36<30%,'Seuils de classification'!$I$2,IF(B36>29%,'Seuils de classification'!$J$2,"")))))), IF(C36<>"",(IF(C36<5%,"Provide justification for value", IF(C36<10%,"Provide justification for value", IF(C36<15%,"Provide justification for value", IF(C36<30%,"Provide justification for value",""))))), IF(D36<>"",(IF(D36<12.5%,'Seuils de classification'!$F$2, IF(D36<20%,'Seuils de classification'!$G$2, IF(D36<25%,'Seuils de classification'!$H$2, IF(D36<35%,'Seuils de classification'!$I$2,IF(D36>34%,'Seuils de classification'!$J$2,"")))))),""))) -> 
E37: =IF(B37<>"", (IF(B37<5%,'Seuils de classification'!$F$2, IF(B37<10%,'Seuils de classification'!$G$2, IF(B37<15%,'Seuils de classification'!$H$2,IF(B37<30%,'Seuils de classification'!$I$2,IF(B37>29%,'Seuils de classification'!$J$2,"")))))), IF(C37<>"",(IF(C37<5%,"Provide justification for value", IF(C37<10%,"Provide justification for value", IF(C37<15%,"Provide justification for value", IF(C37<30%,"Provide justification for value",""))))), IF(D37<>"",(IF(D37<12.5%,'Seuils de classification'!$F$2, IF(D37<20%,'Seuils de classification'!$G$2, IF(D37<25%,'Seuils de classification'!$H$2, IF(D37<35%,'Seuils de classification'!$I$2,IF(D37>34%,'Seuils de classification'!$J$2,"")))))),""))) -> 
E38: =IF(B38<>"", (IF(B38<5%,'Seuils de classification'!$F$2, IF(B38<10%,'Seuils de classification'!$G$2, IF(B38<15%,'Seuils de classification'!$H$2,IF(B38<30%,'Seuils de classification'!$I$2,IF(B38>29%,'Seuils de classification'!$J$2,"")))))), IF(C38<>"",(IF(C38<5%,"Provide justification for value", IF(C38<10%,"Provide justification for value", IF(C38<15%,"Provide justification for value", IF(C38<30%,"Provide justification for value",""))))), IF(D38<>"",(IF(D38<12.5%,'Seuils de classification'!$F$2, IF(D38<20%,'Seuils de classification'!$G$2, IF(D38<25%,'Seuils de classification'!$H$2, IF(D38<35%,'Seuils de classification'!$I$2,IF(D38>34%,'Seuils de classification'!$J$2,"")))))),""))) -> 
E39: =IF(B39<>"", (IF(B39<5%,'Seuils de classification'!$F$2, IF(B39<10%,'Seuils de classification'!$G$2, IF(B39<15%,'Seuils de classification'!$H$2,IF(B39<30%,'Seuils de classification'!$I$2,IF(B39>29%,'Seuils de classification'!$J$2,"")))))), IF(C39<>"",(IF(C39<5%,"Provide justification for value", IF(C39<10%,"Provide justification for value", IF(C39<15%,"Provide justification for value", IF(C39<30%,"Provide justification for value",""))))), IF(D39<>"",(IF(D39<12.5%,'Seuils de classification'!$F$2, IF(D39<20%,'Seuils de classification'!$G$2, IF(D39<25%,'Seuils de classification'!$H$2, IF(D39<35%,'Seuils de classification'!$I$2,IF(D39>34%,'Seuils de classification'!$J$2,"")))))),""))) -> 
E40: =IF(B40<>"", (IF(B40<5%,'Seuils de classification'!$F$2, IF(B40<10%,'Seuils de classification'!$G$2, IF(B40<15%,'Seuils de classification'!$H$2,IF(B40<30%,'Seuils de classification'!$I$2,IF(B40>29%,'Seuils de classification'!$J$2,"")))))), IF(C40<>"",(IF(C40<5%,"Provide justification for value", IF(C40<10%,"Provide justification for value", IF(C40<15%,"Provide justification for value", IF(C40<30%,"Provide justification for value",""))))), IF(D40<>"",(IF(D40<12.5%,'Seuils de classification'!$F$2, IF(D40<20%,'Seuils de classification'!$G$2, IF(D40<25%,'Seuils de classification'!$H$2, IF(D40<35%,'Seuils de classification'!$I$2,IF(D40>34%,'Seuils de classification'!$J$2,"")))))),""))) -> 
E41: =IF(B41<>"", (IF(B41<5%,'Seuils de classification'!$F$2, IF(B41<10%,'Seuils de classification'!$G$2, IF(B41<15%,'Seuils de classification'!$H$2,IF(B41<30%,'Seuils de classification'!$I$2,IF(B41>29%,'Seuils de classification'!$J$2,"")))))), IF(C41<>"",(IF(C41<5%,"Provide justification for value", IF(C41<10%,"Provide justification for value", IF(C41<15%,"Provide justification for value", IF(C41<30%,"Provide justification for value",""))))), IF(D41<>"",(IF(D41<12.5%,'Seuils de classification'!$F$2, IF(D41<20%,'Seuils de classification'!$G$2, IF(D41<25%,'Seuils de classification'!$H$2, IF(D41<35%,'Seuils de classification'!$I$2,IF(D41>34%,'Seuils de classification'!$J$2,"")))))),""))) -> 
E42: =IF(B42<>"", (IF(B42<5%,'Seuils de classification'!$F$2, IF(B42<10%,'Seuils de classification'!$G$2, IF(B42<15%,'Seuils de classification'!$H$2,IF(B42<30%,'Seuils de classification'!$I$2,IF(B42>29%,'Seuils de classification'!$J$2,"")))))), IF(C42<>"",(IF(C42<5%,"Provide justification for value", IF(C42<10%,"Provide justification for value", IF(C42<15%,"Provide justification for value", IF(C42<30%,"Provide justification for value",""))))), IF(D42<>"",(IF(D42<12.5%,'Seuils de classification'!$F$2, IF(D42<20%,'Seuils de classification'!$G$2, IF(D42<25%,'Seuils de classification'!$H$2, IF(D42<35%,'Seuils de classification'!$I$2,IF(D42>34%,'Seuils de classification'!$J$2,"")))))),""))) -> 
E43: =IF(B43<>"", (IF(B43<5%,'Seuils de classification'!$F$2, IF(B43<10%,'Seuils de classification'!$G$2, IF(B43<15%,'Seuils de classification'!$H$2,IF(B43<30%,'Seuils de classification'!$I$2,IF(B43>29%,'Seuils de classification'!$J$2,"")))))), IF(C43<>"",(IF(C43<5%,"Provide justification for value", IF(C43<10%,"Provide justification for value", IF(C43<15%,"Provide justification for value", IF(C43<30%,"Provide justification for value",""))))), IF(D43<>"",(IF(D43<12.5%,'Seuils de classification'!$F$2, IF(D43<20%,'Seuils de classification'!$G$2, IF(D43<25%,'Seuils de classification'!$H$2, IF(D43<35%,'Seuils de classification'!$I$2,IF(D43>34%,'Seuils de classification'!$J$2,"")))))),""))) -> 
E44: =IF(B44<>"", (IF(B44<5%,'Seuils de classification'!$F$2, IF(B44<10%,'Seuils de classification'!$G$2, IF(B44<15%,'Seuils de classification'!$H$2,IF(B44<30%,'Seuils de classification'!$I$2,IF(B44>29%,'Seuils de classification'!$J$2,"")))))), IF(C44<>"",(IF(C44<5%,"Provide justification for value", IF(C44<10%,"Provide justification for value", IF(C44<15%,"Provide justification for value", IF(C44<30%,"Provide justification for value",""))))), IF(D44<>"",(IF(D44<12.5%,'Seuils de classification'!$F$2, IF(D44<20%,'Seuils de classification'!$G$2, IF(D44<25%,'Seuils de classification'!$H$2, IF(D44<35%,'Seuils de classification'!$I$2,IF(D44>34%,'Seuils de classification'!$J$2,"")))))),""))) -> 

Sheet Scénario 2 Facteurs contributif
A1: ANALYSE DES FACTEURS CONTRIBUTIFS | F1: Phase 1 | G1: Phase 2 | H1: Phase 3 | I1: Phase 4 | J1: Phase 5 | K1: Aucune donnée
D2: SYSTÈME DE NOTATION PROPOSÉ | F2: Acceptable/Minimale | G2: Alerte/Stress | H2: Grave/Sévère | I2: Critique/Extrême | J2: Extrêmement critique/Catastrophique
E3: Semblable à la classification IPC | F3: Aucun facteur contributif | G3: Facteur contributif mineur | H3: Facteur contributif majeur | I3: Facteur contributif critique
B5: UNIQUEMENT POUR LE SCÉNARIO 2 | M5: Facteurs contextuels | O5: Sécurité alimentaire | T5: WASH | X5: Santé
A6: Admin pour les zones d'intérêt « affectées » | B6: Prévalence du retard de croissance en % (T/A) pour les enfants de 0-59 mois | C6: Prévalence du surpoids chez les enfants de 0-59 mois | D6: Prévalence d’anémie chez les enfants de 6-59 mois | E6: Prévalence d’anémie chez les femmes enceintes | F6: Prévalence de la MAG en % pour les personnes âgées (MUAC<210mm) | G6: Prévalence de la MAG en % pour les adolescents (IMC-pour-l'âge) | H6: Prévalence en % de l’allaitement exclusif chez les enfants de 0-5 mois | I6: % des nourrissons de 0-5 mois non allaités et ayant accès à l’approvisionnement en substituts de lait maternel (SLM) | J6: % des nourrissons de 6-11 mois non allaités et ayant accès à l’approvisionnement en substituts de lait maternel (SLM) | K6: Diversité alimentaire minimale chez les enfants de 6-23 mois | L6: Fréquence minimale des repas chez les enfants de 6-23 mois | M6: Taux de décès brut (en excluant les traumatismes) | N6: Taux de décès chez les enfants de moins de 5 ans (en excluant les traumatismes) | O6: Cluster Sécurité Alimentaire/Analyse sectorielle | P6: Score de consommation alimentaire | Q6: Indice domestique de la faim | R6: Indice de stratégie d’adaptation réduit | S6: Score de diversité alimentaire des ménages | T6: % des ménages ayant accès à une source d’eau assainie | U6: % des ménages ayant accès à une quantité suffisante d’eau pour la boisson, la cuisine, le bain, la toilette ou d’autres usages domestiques | V6: % des ménages ayant accès à des installations sanitaires fonctionnelles et améliorées | W6: % des ménages ayant accès à des installations de lavage des mains fonctionnelles, avec de l’eau et du savon disponibles ou % des ménages ayant accès à du savon | X6: Couverture du DTC3 (DPT3/PENTA3) chez les enfants < 1 an, par unité administrative (%) | Y6: Pourcentage d’enfants âgés de 6 mois à 15 ans ayant été vaccinés contre la rougeole | Z6: Couverture vaccinale systématique contre la rougeole (%) | AA6: Couverture vaccinale systématique contre la polio (%) | AB6: Couverture de supplémentation systématique en vitamine A (%) | AC6: Couverture de la campagne de vaccination contre la rougeole (%) | AD6: Couverture de la campagne de vaccination contre la polio (%) | AE6: Couverture de la campagne de supplémentation en vitamine A (%) | AF6: Couverture vaccinale contre la rougeole à partir des enquêtes (%) | AG6: Couverture vaccinale contre la polio d'après les enquêtes (%) | AH6: Couverture de la supplémentation en vitamine A à partir des enquêtes (%) | AI6: Couverture de tous les vaccins de base à partir des enquêtes (%) | AJ6: Nombre de cas pour certaines maladies pertinentes dans le contexte local (par ex., le choléra, la rougeole, la méningite aiguë, la COVID-19) | AK6: Taux de létalité pour certaines maladies pertinentes | AL6: Pourcentage d'établissements de soins de santé qui fournissent un ensemble de services de santé de base | AM6: Bonne hygiène de vie selon les enquêtes de population | AN6: Pourcentage de la population ayant accès à des soins de santé primaires à moins d’une heure de marche de son domicile | AO6: Nombre de centres de santé avec soins obstétriques d’urgence de base/500 000 habitants, par unité administrative | AP6: Nombre de personnel qualifié pour les accouchements (médecins, infirmières, sages-femmes certifiées) pour 10 000 habitants | AQ6: Proportion d’enfants de moins de 5 ans ayant souffert de diarrhée au cours des deux dernières semaines | AR6: Prévalence de VIH/SIDA | AS6: Proportion d’enfants de moins de 5 ans souffrant de fièvre dans les zones à risque de paludisme | AT6: Proportion d’enfants de moins de 5 ans qui ont présentés des infections respiratoires aiguës (IRA) au cours des deux dernières semaines | AU6: Nombre de cas signalés de choléra ou de Diarrhée aqueuse aiguë (AWD)
A7: Utiliser les noms d’adm. à partir des COD | B7: Insérer les données de prévalence - Classification automatique | C7: Insérer les données de prévalence - Classification automatique | D7: Insérer les données de prévalence - Classification automatique | E7: Insérer les données de prévalence - Classification automatique | F7: Insérer les données de prévalence - Classification automatique | G7: Insérer les données de prévalence - Classification automatique | H7: Insérer les données de prévalence - Classification automatique | I7: Insérer les données de prévalence - Classification automatique | J7: Insérer les données de prévalence - Classification automatique | K7: Insérer les données de prévalence - Classification automatique | L7: Insérer les données de prévalence - Classification automatique | M7: Insérer le taux - Classification automatique | N7: Insérer le taux - Classification automatique | O7: Insérer manuellement le numéro de phase en fonction des Seuils de classification | P7: Insérer manuellement le numéro de phase en fonction des Seuils de classification | Q7: Insérer manuellement le numéro de phase en fonction des Seuils de classification | R7: Insérer manuellement le numéro de phase en fonction des Seuils de classification | S7: Insérer manuellement le numéro de phase en fonction des Seuils de classification | T7: Insérer manuellement le numéro de phase en fonction des Seuils de classification | U7: Insérer manuellement le numéro de phase en fonction des Seuils de classification | V7: Insérer manuellement le numéro de phase en fonction des Seuils de classification | W7: Insérer manuellement le numéro de phase en fonction des Seuils de classification | X7: Insérer manuellement le numéro de phase en fonction des Seuils de classification | Y7: Utiliser le consensus ou l’avis de l’expert pour déterminer la phase | Z7: Utiliser le consensus ou l’avis de l’expert pour déterminer la phase | AA7: Utiliser le consensus ou l’avis de l’expert pour déterminer la phase | AB7: Utiliser le consensus ou l’avis de l’expert pour déterminer la phase | AC7: Utiliser le consensus ou l’avis de l’expert pour déterminer la phase | AD7: Utiliser le consensus ou l’avis de l’expert pour déterminer la phase | AE7: Utiliser le consensus ou l’avis de l’expert pour déterminer la phase | AF7: Utiliser le consensus ou l’avis de l’expert pour déterminer la phase | AG7: Utiliser le consensus ou l’avis de l’expert pour déterminer la phase | AH7: Utiliser le consensus ou l’avis de l’expert pour déterminer la phase | AI7: Utiliser le consensus ou l’avis de l’expert pour déterminer la phase | AJ7: Utiliser le consensus ou l’avis de l’expert pour déterminer la phase | AK7: Utiliser le consensus ou l’avis de l’expert pour déterminer la phase | AL7: Utiliser le consensus ou l’avis de l’expert pour déterminer la phase | AM7: Utiliser le consensus ou l’avis de l’expert pour déterminer la phase | AN7: Insérer manuellement le numéro de phase en fonction des Seuils de classification | AO7: Insérer manuellement le numéro de phase en fonction des Seuils de classification | AP7: Insérer manuellement le numéro de phase en fonction des Seuils de classification | AQ7: Utiliser le consensus ou l’avis de l’expert pour déterminer la phase | AR7: Utiliser le consensus ou l’avis de l’expert pour déterminer la phase | AS7: Utiliser le consensus ou l’avis de l’expert pour déterminer la phase | AT7: Utiliser le consensus ou l’avis de l’expert pour déterminer la phase | AU7: Utiliser le consensus ou l’avis de l’expert pour déterminer la phase
A8: Badakhshan | M8: 2 | N8: 2 | O8: 1 | P8: 1 | Q8: 1 | R8: 1 | S8: 1 | T8: 1 | U8: 1 | V8: 1 | W8: 1 | X8: 1 | Y8: 1 | Z8: 1 | AA8: 1 | AB8: 1 | AC8: 1 | AD8: 1 | AE8: 1 | AF8: 1 | AG8: 1 | AH8: 1 | AI8: 1 | AJ8: 1 | AK8: 1 | AL8: 1 | AM8: 1 | AN8: 1 | AO8: 1 | AP8: 1 | AQ8: 1 | AR8: 1 | AS8: 1 | AT8: 1 | AU8: 1
A9: Badghis | M9: 1 | N9: 1 | O9: 2 | P9: 2 | Q9: 2 | R9: 2 | S9: 2 | T9: 2 | U9: 2 | V9: 2 | W9: 2 | X9: 2 | Y9: 2 | Z9: 2 | AA9: 2 | AB9: 2 | AC9: 2 | AD9: 2 | AE9: 2 | AF9: 2 | AG9: 2 | AH9: 2 | AI9: 2 | AJ9: 2 | AK9: 2 | AL9: 2 | AM9: 2 | AN9: 2 | AO9: 2 | AP9: 2 | AQ9: 2 | AR9: 2 | AS9: 2 | AT9: 2 | AU9: 2
A10: Baghlan | M10: 1 | N10: 1 | O10: 3 | P10: 3 | Q10: 3 | R10: 3 | S10: 3 | T10: 3 | U10: 3 | V10: 3 | W10: 3 | X10: 3 | Y10: 3 | Z10: 3 | AA10: 3 | AB10: 3 | AC10: 3 | AD10: 3 | AE10: 3 | AF10: 3 | AG10: 3 | AH10: 3 | AI10: 3 | AJ10: 3 | AK10: 3 | AL10: 3 | AM10: 3 | AN10: 3 | AO10: 3 | AP10: 3 | AQ10: 3 | AR10: 3 | AS10: 3 | AT10: 3 | AU10: 3
A11: Balkh | M11: 1 | N11: 1 | O11: 4 | P11: 4 | Q11: 4 | R11: 4 | S11: 4 | T11: 4 | U11: 4 | V11: 4 | W11: 4 | X11: 4 | Y11: 4 | Z11: 4 | AA11: 4 | AB11: 4 | AC11: 4 | AD11: 4 | AE11: 4 | AF11: 4 | AG11: 4 | AH11: 4 | AI11: 4 | AJ11: 4 | AK11: 4 | AL11: 4 | AM11: 4 | AN11: 4 | AO11: 4 | AP11: 4 | AQ11: 4 | AR11: 4 | AS11: 4 | AT11: 4 | AU11: 4
A12: Bamyan | M12: 2 | N12: 2 | O12: 5 | P12: 5 | Q12: 5 | R12: 5 | S12: 5 | T12: 5 | U12: 5 | V12: 5 | W12: 5 | X12: 5 | Y12: 5 | Z12: 5 | AA12: 5 | AB12: 5 | AC12: 5 | AD12: 5 | AE12: 5 | AF12: 5 | AG12: 5 | AH12: 5 | AI12: 5 | AJ12: 5 | AK12: 5 | AL12: 5 | AM12: 5 | AN12: 5 | AO12: 5 | AP12: 5 | AQ12: 5 | AR12: 5 | AS12: 5 | AT12: 5 | AU12: 5
A13: Dykundi | M13: 2 | N13: 2 | O13: 1 | P13: 1 | Q13: 1 | R13: 1 | S13: 1 | T13: 1 | U13: 1 | V13: 1 | W13: 1 | X13: 1 | Y13: 1 | Z13: 1 | AA13: 1 | AB13: 1 | AC13: 1 | AD13: 1 | AE13: 1 | AF13: 1 | AG13: 1 | AH13: 1 | AI13: 1 | AJ13: 1 | AK13: 1 | AL13: 1 | AM13: 1 | AN13: 1 | AO13: 1 | AP13: 1 | AQ13: 1 | AR13: 1 | AS13: 1 | AT13: 1 | AU13: 1
A14: Farah | M14: 2 | N14: 2 | O14: 2 | P14: 2 | Q14: 2 | R14: 2 | S14: 2 | T14: 2 | U14: 2 | V14: 2 | W14: 2 | X14: 2 | Y14: 2 | Z14: 2 | AA14: 2 | AB14: 2 | AC14: 2 | AD14: 2 | AE14: 2 | AF14: 2 | AG14: 2 | AH14: 2 | AI14: 2 | AJ14: 2 | AK14: 2 | AL14: 2 | AM14: 2 | AN14: 2 | AO14: 2 | AP14: 2 | AQ14: 2 | AR14: 2 | AS14: 2 | AT14: 2 | AU14: 2
A15: Faryab | M15: 2 | N15: 2 | O15: 3 | P15: 3 | Q15: 3 | R15: 3 | S15: 3 | T15: 3 | U15: 3 | V15: 3 | W15: 3 | X15: 3 | Y15: 3 | Z15: 3 | AA15: 3 | AB15: 3 | AC15: 3 | AD15: 3 | AE15: 3 | AF15: 3 | AG15: 3 | AH15: 3 | AI15: 3 | AJ15: 3 | AK15: 3 | AL15: 3 | AM15: 3 | AN15: 3 | AO15: 3 | AP15: 3 | AQ15: 3 | AR15: 3 | AS15: 3 | AT15: 3 | AU15: 3
A16: Ghazni | M16: 2 | N16: 2 | O16: 4 | P16: 4 | Q16: 4 | R16: 4 | S16: 4 | T16: 4 | U16: 4 | V16: 4 | W16: 4 | X16: 4 | Y16: 4 | Z16: 4 | AA16: 4 | AB16: 4 | AC16: 4 | AD16: 4 | AE16: 4 | AF16: 4 | AG16: 4 | AH16: 4 | AI16: 4 | AJ16: 4 | AK16: 4 | AL16: 4 | AM16: 4 | AN16: 4 | AO16: 4 | AP16: 4 | AQ16: 4 | AR16: 4 | AS16: 4 | AT16: 4 | AU16: 4
A17: Ghor | M17: 2 | N17: 2 | O17: 5 | P17: 5 | Q17: 5 | R17: 5 | S17: 5 | T17: 5 | U17: 5 | V17: 5 | W17: 5 | X17: 5 | Y17: 5 | Z17: 5 | AA17: 5 | AB17: 5 | AC17: 5 | AD17: 5 | AE17: 5 | AF17: 5 | AG17: 5 | AH17: 5 | AI17: 5 | AJ17: 5 | AK17: 5 | AL17: 5 | AM17: 5 | AN17: 5 | AO17: 5 | AP17: 5 | AQ17: 5 | AR17: 5 | AS17: 5 | AT17: 5 | AU17: 5
A18: Helmand | M18: 2 | N18: 2 | O18: 1 | P18: 1 | Q18: 1 | R18: 1 | S18: 1 | T18: 1 | U18: 1 | V18: 1 | W18: 1 | X18: 1 | Y18: 1 | Z18: 1 | AA18: 1 | AB18: 1 | AC18: 1 | AD18: 1 | AE18: 1 | AF18: 1 | AG18: 1 | AH18: 1 | AI18: 1 | AJ18: 1 | AK18: 1 | AL18: 1 | AM18: 1 | AN18: 1 | AO18: 1 | AP18: 1 | AQ18: 1 | AR18: 1 | AS18: 1 | AT18: 1 | AU18: 1
A19: Hirat | M19: 1 | N19: 1 | O19: 2 | P19: 2 | Q19: 2 | R19: 2 | S19: 2 | T19: 2 | U19: 2 | V19: 2 | W19: 2 | X19: 2 | Y19: 2 | Z19: 2 | AA19: 2 | AB19: 2 | AC19: 2 | AD19: 2 | AE19: 2 | AF19: 2 | AG19: 2 | AH19: 2 | AI19: 2 | AJ19: 2 | AK19: 2 | AL19: 2 | AM19: 2 | AN19: 2 | AO19: 2 | AP19: 2 | AQ19: 2 | AR19: 2 | AS19: 2 | AT19: 2 | AU19: 2
A20: Jawzjan | M20: 0.5 | N20: 0.5 | O20: 3 | P20: 3 | Q20: 3 | R20: 3 | S20: 3 | T20: 3 | U20: 3 | V20: 3 | W20: 3 | X20: 3 | Y20: 3 | Z20: 3 | AA20: 3 | AB20: 3 | AC20: 3 | AD20: 3 | AE20: 3 | AF20: 3 | AG20: 3 | AH20: 3 | AI20: 3 | AJ20: 3 | AK20: 3 | AL20: 3 | AM20: 3 | AN20: 3 | AO20: 3 | AP20: 3 | AQ20: 3 | AR20: 3 | AS20: 3 | AT20: 3 | AU20: 3
A21: Kabul | M21: 0.4 | N21: 0.5 | O21: 4 | P21: 4 | Q21: 4 | R21: 4 | S21: 4 | T21: 4 | U21: 4 | V21: 4 | W21: 4 | X21: 4 | Y21: 4 | Z21: 4 | AA21: 4 | AB21: 4 | AC21: 4 | AD21: 4 | AE21: 4 | AF21: 4 | AG21: 4 | AH21: 4 | AI21: 4 | AJ21: 4 | AK21: 4 | AL21: 4 | AM21: 4 | AN21: 4 | AO21: 4 | AP21: 4 | AQ21: 4 | AR21: 4 | AS21: 4 | AT21: 4 | AU21: 4
A22: Kandahar | M22: 0.4 | N22: 0.5 | O22: 5 | P22: 5 | Q22: 5 | R22: 5 | S22: 5 | T22: 5 | U22: 5 | V22: 5 | W22: 5 | X22: 5 | Y22: 5 | Z22: 5 | AA22: 5 | AB22: 5 | AC22: 5 | AD22: 5 | AE22: 5 | AF22: 5 | AG22: 5 | AH22: 5 | AI22: 5 | AJ22: 5 | AK22: 5 | AL22: 5 | AM22: 5 | AN22: 5 | AO22: 5 | AP22: 5 | AQ22: 5 | AR22: 5 | AS22: 5 | AT22: 5 | AU22: 5
A23: Kapisa | M23: 0.4 | N23: 0.5 | O23: 1 | P23: 1 | Q23: 1 | R23: 1 | S23: 1 | T23: 1 | U23: 1 | V23: 1 | W23: 1 | X23: 1 | Y23: 1 | Z23: 1 | AA23: 1 | AB23: 1 | AC23: 1 | AD23: 1 | AE23: 1 | AF23: 1 | AG23: 1 | AH23: 1 | AI23: 1 | AJ23: 1 | AK23: 1 | AL23: 1 | AM23: 1 | AN23: 1 | AO23: 1 | AP23: 1 | AQ23: 1 | AR23: 1 | AS23: 1 | AT23: 1 | AU23: 1
A24: Khost | M24: 0.4 | N24: 0.5 | O24: 2 | P24: 2 | Q24: 2 | R24: 2 | S24: 2 | T24: 2 | U24: 2 | V24: 2 | W24: 2 | X24: 2 | Y24: 2 | Z24: 2 | AA24: 2 | AB24: 2 | AC24: 2 | AD24: 2 | AE24: 2 | AF24: 2 | AG24: 2 | AH24: 2 | AI24: 2 | AJ24: 2 | AK24: 2 | AL24: 2 | AM24: 2 | AN24: 2 | AO24: 2 | AP24: 2 | AQ24: 2 | AR24: 2 | AS24: 2 | AT24: 2 | AU24: 2
A25: Kunar | M25: 0.4 | N25: 0.5 | O25: 3 | P25: 3 | Q25: 3 | R25: 3 | S25: 3 | T25: 3 | U25: 3 | V25: 3 | W25: 3 | X25: 3 | Y25: 3 | Z25: 3 | AA25: 3 | AB25: 3 | AC25: 3 | AD25: 3 | AE25: 3 | AF25: 3 | AG25: 3 | AH25: 3 | AI25: 3 | AJ25: 3 | AK25: 3 | AL25: 3 | AM25: 3 | AN25: 3 | AO25: 3 | AP25: 3 | AQ25: 3 | AR25: 3 | AS25: 3 | AT25: 3 | AU25: 3
A26: Kunduz | M26: 0.4 | N26: 0.5 | O26: 4 | P26: 4 | Q26: 4 | R26: 4 | S26: 4 | T26: 4 | U26: 4 | V26: 4 | W26: 4 | X26: 4 | Y26: 4 | Z26: 4 | AA26: 4 | AB26: 4 | AC26: 4 | AD26: 4 | AE26: 4 | AF26: 4 | AG26: 4 | AH26: 4 | AI26: 4 | AJ26: 4 | AK26: 4 | AL26: 4 | AM26: 4 | AN26: 4 | AO26: 4 | AP26: 4 | AQ26: 4 | AR26: 4 | AS26: 4 | AT26: 4 | AU26: 4
A27: Laghman | M27: 0.4 | N27: 0.5 | O27: 5 | P27: 5 | Q27: 5 | R27: 5 | S27: 5 | T27: 5 | U27: 5 | V27: 5 | W27: 5 | X27: 5 | Y27: 5 | Z27: 5 | AA27: 5 | AB27: 5 | AC27: 5 | AD27: 5 | AE27: 5 | AF27: 5 | AG27: 5 | AH27: 5 | AI27: 5 | AJ27: 5 | AK27: 5 | AL27: 5 | AM27: 5 | AN27: 5 | AO27: 5 | AP27: 5 | AQ27: 5 | AR27: 5 | AS27: 5 | AT27: 5 | AU27: 5
A28: Logar | M28: 0.4 | N28: 0.5 | O28: 1 | P28: 1 | Q28: 1 | R28: 1 | S28: 1 | T28: 1 | U28: 1 | V28: 1 | W28: 1 | X28: 1 | Y28: 1 | Z28: 1 | AA28: 1 | AB28: 1 | AC28: 1 | AD28: 1 | AE28: 1 | AF28: 1 | AG28: 1 | AH28: 1 | AI28: 1 | AJ28: 1 | AK28: 1 | AL28: 1 | AM28: 1 | AN28: 1 | AO28: 1 | AP28: 1 | AQ28: 1 | AR28: 1 | AS28: 1 | AT28: 1 | AU28: 1
A29: Nangarhar | M29: 0.4 | N29: 0.5 | O29: 2 | P29: 2 | Q29: 2 | R29: 2 | S29: 2 | T29: 2 | U29: 2 | V29: 2 | W29: 2 | X29: 2 | Y29: 2 | Z29: 2 | AA29: 2 | AB29: 2 | AC29: 2 | AD29: 2 | AE29: 2 | AF29: 2 | AG29: 2 | AH29: 2 | AI29: 2 | AJ29: 2 | AK29: 2 | AL29: 2 | AM29: 2 | AN29: 2 | AO29: 2 | AP29: 2 | AQ29: 2 | AR29: 2 | AS29: 2 | AT29: 2 | AU29: 2
A30: Nimroz | M30: 0.4 | N30: 0.5 | O30: 3 | P30: 3 | Q30: 3 | R30: 3 | S30: 3 | T30: 3 | U30: 3 | V30: 3 | W30: 3 | X30: 3 | Y30: 3 | Z30: 3 | AA30: 3 | AB30: 3 | AC30: 3 | AD30: 3 | AE30: 3 | AF30: 3 | AG30: 3 | AH30: 3 | AI30: 3 | AJ30: 3 | AK30: 3 | AL30: 3 | AM30: 3 | AN30: 3 | AO30: 3 | AP30: 3 | AQ30: 3 | AR30: 3 | AS30: 3 | AT30: 3 | AU30: 3
A31: Nuristan | M31: 0.4 | N31: 0.5 | O31: 4 | P31: 4 | Q31: 4 | R31: 4 | S31: 4 | T31: 4 | U31: 4 | V31: 4 | W31: 4 | X31: 4 | Y31: 4 | Z31: 4 | AA31: 4 | AB31: 4 | AC31: 4 | AD31: 4 | AE31: 4 | AF31: 4 | AG31: 4 | AH31: 4 | AI31: 4 | AJ31: 4 | AK31: 4 | AL31: 4 | AM31: 4 | AN31: 4 | AO31: 4 | AP31: 4 | AQ31: 4 | AR31: 4 | AS31: 4 | AT31: 4 | AU31: 4
A32: Paktika | M32: 0.4 | N32: 0.5 | O32: 5 | P32: 5 | Q32: 5 | R32: 5 | S32: 5 | T32: 5 | U32: 5 | V32: 5 | W32: 5 | X32: 5 | Y32: 5 | Z32: 5 | AA32: 5 | AB32: 5 | AC32: 5 | AD32: 5 | AE32: 5 | AF32: 5 | AG32: 5 | AH32: 5 | AI32: 5 | AJ32: 5 | AK32: 5 | AL32: 5 | AM32: 5 | AN32: 5 | AO32: 5 | AP32: 5 | AQ32: 5 | AR32: 5 | AS32: 5 | AT32: 5 | AU32: 5
A33: Paktya | M33: 0.4 | N33: 0.5 | O33: 1 | P33: 1 | Q33: 1 | R33: 1 | S33: 1 | T33: 1 | U33: 1 | V33: 1 | W33: 1 | X33: 1 | Y33: 1 | Z33: 1 | AA33: 1 | AB33: 1 | AC33: 1 | AD33: 1 | AE33: 1 | AF33: 1 | AG33: 1 | AH33: 1 | AI33: 1 | AJ33: 1 | AK33: 1 | AL33: 1 | AM33: 1 | AN33: 1 | AO33: 1 | AP33: 1 | AQ33: 1 | AR33: 1 | AS33: 1 | AT33: 1 | AU33: 1
A34: Panjsher | M34: 0.4 | N34: 0.5 | O34: 2 | P34: 2 | Q34: 2 | R34: 2 | S34: 2 | T34: 2 | U34: 2 | V34: 2 | W34: 2 | X34: 2 | Y34: 2 | Z34: 2 | AA34: 2 | AB34: 2 | AC34: 2 | AD34: 2 | AE34: 2 | AF34: 2 | AG34: 2 | AH34: 2 | AI34: 2 | AJ34: 2 | AK34: 2 | AL34: 2 | AM34: 2 | AN34: 2 | AO34: 2 | AP34: 2 | AQ34: 2 | AR34: 2 | AS34: 2 | AT34: 2 | AU34: 2
A35: Parwan | M35: 0.4 | N35: 0.5 | O35: 3 | P35: 3 | Q35: 3 | R35: 3 | S35: 3 | T35: 3 | U35: 3 | V35: 3 | W35: 3 | X35: 3 | Y35: 3 | Z35: 3 | AA35: 3 | AB35: 3 | AC35: 3 | AD35: 3 | AE35: 3 | AF35: 3 | AG35: 3 | AH35: 3 | AI35: 3 | AJ35: 3 | AK35: 3 | AL35: 3 | AM35: 3 | AN35: 3 | AO35: 3 | AP35: 3 | AQ35: 3 | AR35: 3 | AS35: 3 | AT35: 3 | AU35: 3
A36: Samangan | M36: 0.4 | N36: 0.5 | O36: 4 | P36: 4 | Q36: 4 | R36: 4 | S36: 4 | T36: 4 | U36: 4 | V36: 4 | W36: 4 | X36: 4 | Y36: 4 | Z36: 4 | AA36: 4 | AB36: 4 | AC36: 4 | AD36: 4 | AE36: 4 | AF36: 4 | AG36: 4 | AH36: 4 | AI36: 4 | AJ36: 4 | AK36: 4 | AL36: 4 | AM36: 4 | AN36: 4 | AO36: 4 | AP36: 4 | AQ36: 4 | AR36: 4 | AS36: 4 | AT36: 4 | AU36: 4
A37: Sar-e-Pul | M37: 0.4 | N37: 0.5 | O37: 5 | P37: 5 | Q37: 5 | R37: 5 | S37: 5 | T37: 5 | U37: 5 | V37: 5 | W37: 5 | X37: 5 | Y37: 5 | Z37: 5 | AA37: 5 | AB37: 5 | AC37: 5 | AD37: 5 | AE37: 5 | AF37: 5 | AG37: 5 | AH37: 5 | AI37: 5 | AJ37: 5 | AK37: 5 | AL37: 5 | AM37: 5 | AN37: 5 | AO37: 5 | AP37: 5 | AQ37: 5 | AR37: 5 | AS37: 5 | AT37: 5 | AU37: 5

Sheet Scénario 3 - Analyse Nut.
C1: SCENARIO 3 - NUTRITION SITUATION ANALYSIS | Q1: Phase 1 | R1: Phase 2 | S1: Phase 3 | T1: Phase 4 | U1: Phase 5
A2: Admin pour les zones d'intérêt « affectées » | B2: Prévalence en % de l’allaitement exclusif chez les enfants de 0-5 mois | C2: Diversité alimentaire minimale chez les enfants de 6-23 mois (si disponible, utiliser le Régime alimentaire minimum acceptable chez les enfants âgés de 6-23 mois) | D2: Prévalence du retard de croissance en % (T/A) pour les enfants de 0-59 mois | E2: Prévalence du surpoids chez les enfants de 0-59 mois | F2: Prévalence d’anémie chez les enfants de 6-59 mois | G2: Prévalence d’anémie chez les femmes enceintes | H2: % des nourrissons de 0-5 mois non allaités et ayant accès à l’approvisionnement en substituts de lait maternel (SLM) | I2: % des nourrissons de 6-11 mois non allaités et ayant accès à l’approvisionnement en substituts de lait maternel (SLM) | J2: Prévalence de la MAG en % pour les personnes âgées (MUAC<210mm) | K2: Prévalence de la MAG en % pour les adolescents (IMC-pour-l'âge) | L2: (Optionel) Revoir les indicateurs dans les directives et leur pertinence | M2: NOTE | N2: Classification de la sévérité par zone géographique | P2: SYSTEME DE NOTATION PRELIMINAIRE* | Q2: Acceptable/ Minimale | R2: Alerte/Stress | S2: Grave/Sévère | T2: Critique/ Extrême | U2: Extrêmement critique/ Catastrophique
A3: Utiliser les noms d’adm. à partir des COD | B3: Insérer les données de prévalence - Classification automatique (voir la feuille de travail Seuils de classification) | C3: Insérer les données de prévalence - Classification automatique (voir la feuille de travail Seuils de classification) | D3: Insérer les données de prévalence - Classification automatique (voir la feuille de travail Seuils de classification) | E3: Insérer les données de prévalence - Classification automatique (voir la feuille de travail Seuils de classification) | F3: Insérer les données de prévalence - Classification automatique (voir la feuille de travail Seuils de classification) | G3: Insérer les données de prévalence - Classification automatique (voir la feuille de travail Seuils de classification) | H3: Insérer les données de prévalence - Classification automatique (voir la feuille de travail Seuils de classification) | I3: Insérer les données de prévalence - Classification automatique (voir la feuille de travail Seuils de classification) | J3: Insérer les données de prévalence - Classification automatique en supposant qu’il n’y ait pas de facteurs aggravants (voir la feuille de travail Seuils de classification) | K3: Insérer les données de prévalence - Classification automatique (voir la feuille de travail Seuils de classification) | L3: Insérer manuellement le numéro de phase en fonction des Seuils de classification | N3: Automatique | P3: 100 | Q3: 1 | R3: 5 | S3: 14 | T3: 30 | U3: 50
A4: Badakhshan | M4: 0.95 | N4: =IF(M4<5, "Phase 1", IF(M4<14, "Phase 2", IF(M4<30, "Phase 3", IF(M4<50, "Phase 4", "Phase 5")))) -> Phase 1 | P4: Prévalence en % de l’allaitement exclusif chez les enfants de 0-5 mois | Q4: =$Q$3*$V$4/5 -> 0.11 | R4: =$R$3*$V$4/5 -> 0.55 | S4: =$S$3*$V$4/5 -> 1.54 | T4: =$T$3*$V$4/5 -> 3.3 | U4: =$U$3*$V$4/3 -> 9.166666667 | V4: 0.55
A5: Badghis | M5: 0.95 | N5: =IF(M5<5, "Phase 1", IF(M5<14, "Phase 2", IF(M5<30, "Phase 3", IF(M5<50, "Phase 4", "Phase 5")))) -> Phase 1 | P5: Diversité alimentaire minimale chez les enfants de 6-23 mois (si disponible, utiliser le Régime alimentaire minimum acceptable chez les enfants âgés de 6-23 mois) | Q5: =$Q$3*$V$4/5 -> 0.11 | R5: =$R$3*$V$4/5 -> 0.55 | S5: =$S$3*$V$4/5 -> 1.54 | T5: =$T$3*$V$4/5 -> 3.3 | U5: =$U$3*$V$4/3 -> 9.166666667
A6: Baghlan | M6: 0.95 | N6: =IF(M6<5, "Phase 1", IF(M6<14, "Phase 2", IF(M6<30, "Phase 3", IF(M6<50, "Phase 4", "Phase 5")))) -> Phase 1 | P6: Prévalence du retard de croissance en % (T/A) pour les enfants de 0-59 mois | Q6: =$Q$3*$V$4/5 -> 0.11 | R6: =$R$3*$V$4/5 -> 0.55 | S6: =$S$3*$V$4/5 -> 1.54 | T6: =$T$3*$V$4/5 -> 3.3
A7: Balkh | M7: 0.95 | N7: Phase 1 | P7: Prévalence du surpoids chez les enfants de 0-59 mois | Q7: =$Q$3*$V$4/5 -> 0.11 | R7: =$R$3*$V$4/5 -> 0.55 | S7: =$S$3*$V$4/5 -> 1.54 | T7: =$T$3*$V$4/5 -> 3.3 | U7: =$U$3*$V$4/3 -> 9.166666667
A8: Bamyan | M8: 0.95 | N8: Phase 1 | P8: Prévalence d’anémie chez les enfants de 6-59 mois | Q8: =$Q$3*$V$4/5 -> 0.11 | R8: =$R$3*$V$4/5 -> 0.55 | S8: =$S$3*$V$4/5 -> 1.54 | T8: =$T$3*$V$4/5 -> 3.3
A9: Dykundi | M9: 0.95 | N9: Phase 1 | P9: Prévalence d’anémie chez les femmes enceintes | Q9: =$Q$3*$V$9/3 -> 0.1 | R9: =$R$3*$V$9/3 -> 0.5 | S9: =$S$3*$V$9/3 -> 1.4 | T9: =$T$3*$V$9/3 -> 3 | V9: 0.3
A10: Farah | M10: 0.95 | N10: Phase 1 | P10: % des nourrissons de 0-5 mois non allaités et ayant accès à l’approvisionnement en substituts de lait maternel (SLM) | Q10: =$Q$3*$V$9/3 -> 0.1 | R10: =$R$3*$V$9/3 -> 0.5 | S10: =$S$3*$V$9/3 -> 1.4 | T10: =$T$3*$V$9/3 -> 3 | U10: =$U$3*$V$9/3 -> 5
A11: Faryab | M11: 0.95 | N11: Phase 1 | P11: % des nourrissons de 6-11 mois non allaités et ayant accès à l’approvisionnement en substituts de lait maternel (SLM) | Q11: =$Q$3*$V$9/3 -> 0.1 | R11: =$R$3*$V$9/3 -> 0.5 | S11: =$S$3*$V$9/3 -> 1.4 | T11: =$T$3*$V$9/3 -> 3 | U11: =$U$3*$V$9/3 -> 5
A12: Ghazni | M12: 0.95 | N12: Phase 1 | P12: Prévalence de la MAG en % pour les personnes âgées (MUAC<210mm) | Q12: =$Q$3*$V$12/3 -> 0.05 | R12: =$R$3*$V$12/3 -> 0.25 | S12: =$S$3*$V$12/3 -> 0.7 | T12: =T3*V12/3 -> 1.5 | V12: 0.15
A13: Ghor | M13: 0.95 | N13: Phase 1 | P13: Prévalence de la MAG en % pour les adolescents (IMC-pour-l'âge) | Q13: =$Q$3*$V$12/3 -> 0.05 | R13: =$R$3*$V$12/3 -> 0.25 | S13: =$S$3*$V$12/3 -> 0.7 | T13: =$T$3*$V$12/3 -> 1.5 | U13: =$U$3*$V$12/2 -> 3.75
A14: Helmand | M14: 0.95 | N14: Phase 1 | P14: Contribution du pays (voir colonne L) | Q14: 0.05 | R14: 0.25 | S14: 0.7 | T14: =$T$3*$V$12/3 -> 1.5 | U14: =$U$3*$V$12/2 -> 3.75
A15: Hirat | M15: 0.95 | N15: Phase 1
A16: Jawzjan | M16: 0.95 | N16: Phase 1 | Q16: Phase 1 | R16: Phase 2 | S16: Phase 3 | T16: Phase 4 | U16: Phase 5
A17: Kabul | M17: 0.95 | N17: Phase 1 | P17: TABLEAU D'INTERPRETATION | Q17: Acceptable/ Minimale | R17: Alerte/Stress | S17: Grave/Sévère | T17: Critique/ Extrême | U17: Extrêmement critique/ Catastrophique
A18: Kandahar | M18: 0.95 | N18: Phase 1 | P18: SEUILS PRÉLIMINAIRES BASÉS SUR L'ÉVALUATION DE LA SÉVÉRITÉ | Q18: <=4 | R18: 5-13 | S18: 14-29 | T18: 30-49 | U18: >=50
A19: Kapisa | M19: 0.95 | N19: Phase 1
A20: Khost | M20: 0.95 | N20: Phase 1 | P20: Configuration
A21: Kunar | M21: 0.95 | N21: Phase 1 | P21: Nombre de rangées total | Q21: 33
A22: Kunduz | M22: 0.95 | N22: Phase 1
A23: Laghman | M23: 0.95 | N23: Phase 1
A24: Logar | M24: 0.95 | N24: Phase 1
A25: Nangarhar | M25: 0.95 | N25: Phase 1 | P25: *La logique provient d’un système à points proposé par le Groupe de Travail du GNC en vertu duquel les indicateurs en pourpre représentent 55% du nombre total de points par phase, ceux en bleu, 30% et ceux en vert 15% seulement. Par exemple, si la prévalence du retard de croissance de moins de 5 ans est en Phase 3, 1.54 points seront attribués tandis que pour une prévalence de MAG chez les personnes âgées, l’allocation n’est que de 0.7 points. Pour des données manquantes, la calculatrice affecte automatiquement le statut de Phase 1 à l’indicateur. Une telle séparation n’est pas fondée sur des réalités solides du terrain mais plutôt sur une vulnérabilité et performance supposées pour les 10 indicateurs de ce Scénario. (Voir aussi le paragraphe Limitations en page 3 sur ce même sujet).
A26: Nimroz | M26: 0.95 | N26: Phase 1
A27: Nuristan | M27: 0.95 | N27: Phase 1
A28: Paktika | M28: 0.95 | N28: Phase 1
A29: Paktya | M29: 0.95 | N29: Phase 1
A30: Panjsher | M30: 0.95 | N30: Phase 1
A31: Parwan | M31: 0.95 | N31: Phase 1
A32: Samangan | M32: 0.95 | N32: Phase 1
A33: Sar-e-Pul | M33: 0.95 | N33: Phase 1

Sheet Scénario 3 Facteurs contributif
A1: ANALYSE DES FACTEURS CONTRIBUTIFS | F1: Phase 1 | G1: Phase 2 | H1: Phase 3 | I1: Phase 4 | J1: Phase 5 | K1: Aucune donnée
D2: SYSTÈME DE NOTATION PROPOSÉ | F2: Acceptable/Minimale | G2: Alerte/Stress | H2: Grave/Sévère | I2: Critique/Extrême | J2: Extrêmement critique/Catastrophique
D3: Semblable à la classification IPC | F3: Aucun facteur contributif | G3: Facteur contributif mineur | H3: Facteur contributif majeur | I3: Facteur contributif critique
B5: Facteurs contextuels | D5: Sécurité alimentaire | I5: WASH | M5: Santé
A6: Admin pour les zones d'intérêt « affectées » | B6: Taux de décès brut (en excluant les traumatismes) | C6: Taux de décès chez les enfants de moins de 5 ans (en excluant les traumatismes) | D6: Cluster Sécurité Alimentaire/Analyse sectorielle | E6: Score de consommation alimentaire | F6: Indice domestique de la faim | G6: Indice de stratégie d’adaptation réduit | H6: Score de diversité alimentaire des ménages | I6: % des ménages ayant accès à une source d’eau assainie | J6: % des ménages ayant accès à une quantité suffisante d’eau pour la boisson, la cuisine, le bain, la toilette ou d’autres usages domestiques | K6: % des ménages ayant accès à des installations sanitaires fonctionnelles et améliorées | L6: % des ménages ayant accès à des installations de lavage des mains fonctionnelles, avec de l’eau et du savon disponibles ou % des ménages ayant accès à du savon | M6: Couverture du DTC3 (DPT3/PENTA3) chez les enfants < 1 an, par unité administrative (%) | N6: Pourcentage d’enfants âgés de 6 mois à 15 ans ayant été vaccinés contre la rougeole | O6: Couverture vaccinale systématique contre la rougeole (%) | P6: Couverture vaccinale systématique contre la polio (%) | Q6: Couverture de supplémentation systématique en vitamine A (%) | R6: Couverture de la campagne de vaccination contre la rougeole (%) | S6: Couverture de la campagne de vaccination contre la polio (%) | T6: Couverture de la campagne de supplémentation en vitamine A (%) | U6: Couverture vaccinale contre la rougeole à partir des enquêtes (%) | V6: Couverture vaccinale contre la polio d'après les enquêtes (%) | W6: Couverture de la supplémentation en vitamine A à partir des enquêtes (%) | X6: Couverture de tous les vaccins de base à partir des enquêtes (%) | Y6: Nombre de cas pour certaines maladies pertinentes dans le contexte local (par ex., le choléra, la rougeole, la méningite aiguë, la COVID-19) | Z6: Taux de létalité pour certaines maladies pertinentes | AA6: Pourcentage d'établissements de soins de santé qui fournissent un ensemble de services de santé de base | AB6: Bonne hygiène de vie selon les enquêtes de population | AC6: Pourcentage de la population ayant accès à des soins de santé primaires à moins d’une heure de marche de son domicile | AD6: Nombre de centres de santé avec soins obstétriques d’urgence de base/500 000 habitants, par unité administrative | AE6: Nombre de personnel qualifié pour les accouchements (médecins, infirmières, sages-femmes certifiées) pour 10 000 habitants | AF6: Proportion d’enfants de moins de 5 ans ayant souffert de diarrhée au cours des deux dernières semaines | AG6: Prévalence de VIH/SIDA | AH6: Proportion d’enfants de moins de 5 ans souffrant de fièvre dans les zones à risque de paludisme | AI6: Proportion d’enfants de moins de 5 ans qui ont présentés des infections respiratoires aiguës (IRA) au cours des deux dernières semaines | AJ6: Nombre de cas signalés de choléra ou de Diarrhée aqueuse aiguë (AWD)
A7: Utiliser les noms d’adm. à partir des COD | B7: Insérer le taux - Classification automatique | C7: Insérer le taux - Classification automatique | D7: Insérer manuellement le numéro de phase en fonction des Seuils de classification | E7: Insérer manuellement le numéro de phase en fonction des Seuils de classification | F7: Insérer manuellement le numéro de phase en fonction des Seuils de classification | G7: Insérer manuellement le numéro de phase en fonction des Seuils de classification | H7: Insérer manuellement le numéro de phase en fonction des Seuils de classification | I7: Insérer manuellement le numéro de phase en fonction des Seuils de classification | J7: Insérer manuellement le numéro de phase en fonction des Seuils de classification | K7: Insérer manuellement le numéro de phase en fonction des Seuils de classification | L7: Insérer manuellement le numéro de phase en fonction des Seuils de classification | M7: Insérer manuellement le numéro de phase en fonction des Seuils de classification | N7: Utiliser le consensus ou l’avis de l’expert pour déterminer la phase | O7: Utiliser le consensus ou l’avis de l’expert pour déterminer la phase | P7: Utiliser le consensus ou l’avis de l’expert pour déterminer la phase | Q7: Utiliser le consensus ou l’avis de l’expert pour déterminer la phase | R7: Utiliser le consensus ou l’avis de l’expert pour déterminer la phase | S7: Utiliser le consensus ou l’avis de l’expert pour déterminer la phase | T7: Utiliser le consensus ou l’avis de l’expert pour déterminer la phase | U7: Utiliser le consensus ou l’avis de l’expert pour déterminer la phase | V7: Utiliser le consensus ou l’avis de l’expert pour déterminer la phase | W7: Utiliser le consensus ou l’avis de l’expert pour déterminer la phase | X7: Utiliser le consensus ou l’avis de l’expert pour déterminer la phase | Y7: Utiliser le consensus ou l’avis de l’expert pour déterminer la phase | Z7: Utiliser le consensus ou l’avis de l’expert pour déterminer la phase | AA7: Utiliser le consensus ou l’avis de l’expert pour déterminer la phase | AB7: Utiliser le consensus ou l’avis de l’expert pour déterminer la phase | AC7: Insérer manuellement le numéro de phase en fonction des Seuils de classification | AD7: Insérer manuellement le numéro de phase en fonction des Seuils de classification | AE7: Insérer manuellement le numéro de phase en fonction des Seuils de classification | AF7: Utiliser le consensus ou l’avis de l’expert pour déterminer la phase | AG7: Utiliser le consensus ou l’avis de l’expert pour déterminer la phase | AH7: Utiliser le consensus ou l’avis de l’expert pour déterminer la phase | AI7: Utiliser le consensus ou l’avis de l’expert pour déterminer la phase | AJ7: Utiliser le consensus ou l’avis de l’expert pour déterminer la phase
A8: Badakhshan | B8: 2 | C8: 2 | D8: 1 | E8: 1 | F8: 1 | G8: 1 | H8: 1 | I8: 1 | J8: 1 | K8: 1 | L8: 1 | M8: 1 | N8: 1 | O8: 1 | P8: 1 | Q8: 1 | R8: 1 | S8: 1 | T8: 1 | U8: 1 | V8: 1 | W8: 1 | X8: 1 | Y8: 1 | Z8: 1 | AA8: 1 | AB8: 1 | AC8: 1 | AD8: 1 | AE8: 1 | AF8: 1 | AG8: 1 | AH8: 1 | AI8: 1 | AJ8: 1
A9: Badghis | B9: 1 | C9: 1 | D9: 2 | E9: 2 | F9: 2 | G9: 2 | H9: 2 | I9: 2 | J9: 2 | K9: 2 | L9: 2 | M9: 2 | N9: 2 | O9: 2 | P9: 2 | Q9: 2 | R9: 2 | S9: 2 | T9: 2 | U9: 2 | V9: 2 | W9: 2 | X9: 2 | Y9: 2 | Z9: 2 | AA9: 2 | AB9: 2 | AC9: 2 | AD9: 2 | AE9: 2 | AF9: 2 | AG9: 2 | AH9: 2 | AI9: 2 | AJ9: 2
A10: Baghlan | B10: 1 | C10: 1 | D10: 3 | E10: 3 | F10: 3 | G10: 3 | H10: 3 | I10: 3 | J10: 3 | K10: 3 | L10: 3 | M10: 3 | N10: 3 | O10: 3 | P10: 3 | Q10: 3 | R10: 3 | S10: 3 | T10: 3 | U10: 3 | V10: 3 | W10: 3 | X10: 3 | Y10: 3 | Z10: 3 | AA10: 3 | AB10: 3 | AC10: 3 | AD10: 3 | AE10: 3 | AF10: 3 | AG10: 3 | AH10: 3 | AI10: 3 | AJ10: 3
A11: Balkh | B11: 1 | C11: 1 | D11: 4 | E11: 4 | F11: 4 | G11: 4 | H11: 4 | I11: 4 | J11: 4 | K11: 4 | L11: 4 | M11: 4 | N11: 4 | O11: 4 | P11: 4 | Q11: 4 | R11: 4 | S11: 4 | T11: 4 | U11: 4 | V11: 4 | W11: 4 | X11: 4 | Y11: 4 | Z11: 4 | AA11: 4 | AB11: 4 | AC11: 4 | AD11: 4 | AE11: 4 | AF11: 4 | AG11: 4 | AH11: 4 | AI11: 4 | AJ11: 4
A12: Bamyan | B12: 2 | C12: 2 | D12: 5 | E12: 5 | F12: 5 | G12: 5 | H12: 5 | I12: 5 | J12: 5 | K12: 5 | L12: 5 | M12: 5 | N12: 5 | O12: 5 | P12: 5 | Q12: 5 | R12: 5 | S12: 5 | T12: 5 | U12: 5 | V12: 5 | W12: 5 | X12: 5 | Y12: 5 | Z12: 5 | AA12: 5 | AB12: 5 | AC12: 5 | AD12: 5 | AE12: 5 | AF12: 5 | AG12: 5 | AH12: 5 | AI12: 5 | AJ12: 5
A13: Dykundi | B13: 2 | C13: 2 | D13: 1 | E13: 1 | F13: 1 | G13: 1 | H13: 1 | I13: 1 | J13: 1 | K13: 1 | L13: 1 | M13: 1 | N13: 1 | O13: 1 | P13: 1 | Q13: 1 | R13: 1 | S13: 1 | T13: 1 | U13: 1 | V13: 1 | W13: 1 | X13: 1 | Y13: 1 | Z13: 1 | AA13: 1 | AB13: 1 | AC13: 1 | AD13: 1 | AE13: 1 | AF13: 1 | AG13: 1 | AH13: 1 | AI13: 1 | AJ13: 1
A14: Farah | B14: 2 | C14: 2 | D14: 2 | E14: 2 | F14: 2 | G14: 2 | H14: 2 | I14: 2 | J14: 2 | K14: 2 | L14: 2 | M14: 2 | N14: 2 | O14: 2 | P14: 2 | Q14: 2 | R14: 2 | S14: 2 | T14: 2 | U14: 2 | V14: 2 | W14: 2 | X14: 2 | Y14: 2 | Z14: 2 | AA14: 2 | AB14: 2 | AC14: 2 | AD14: 2 | AE14: 2 | AF14: 2 | AG14: 2 | AH14: 2 | AI14: 2 | AJ14: 2
A15: Faryab | B15: 2 | C15: 2 | D15: 3 | E15: 3 | F15: 3 | G15: 3 | H15: 3 | I15: 3 | J15: 3 | K15: 3 | L15: 3 | M15: 3 | N15: 3 | O15: 3 | P15: 3 | Q15: 3 | R15: 3 | S15: 3 | T15: 3 | U15: 3 | V15: 3 | W15: 3 | X15: 3 | Y15: 3 | Z15: 3 | AA15: 3 | AB15: 3 | AC15: 3 | AD15: 3 | AE15: 3 | AF15: 3 | AG15: 3 | AH15: 3 | AI15: 3 | AJ15: 3
A16: Ghazni | B16: 2 | C16: 2 | D16: 4 | E16: 4 | F16: 4 | G16: 4 | H16: 4 | I16: 4 | J16: 4 | K16: 4 | L16: 4 | M16: 4 | N16: 4 | O16: 4 | P16: 4 | Q16: 4 | R16: 4 | S16: 4 | T16: 4 | U16: 4 | V16: 4 | W16: 4 | X16: 4 | Y16: 4 | Z16: 4 | AA16: 4 | AB16: 4 | AC16: 4 | AD16: 4 | AE16: 4 | AF16: 4 | AG16: 4 | AH16: 4 | AI16: 4 | AJ16: 4
A17: Ghor | B17: 2 | C17: 2 | D17: 5 | E17: 5 | F17: 5 | G17: 5 | H17: 5 | I17: 5 | J17: 5 | K17: 5 | L17: 5 | M17: 5 | N17: 5 | O17: 5 | P17: 5 | Q17: 5 | R17: 5 | S17: 5 | T17: 5 | U17: 5 | V17: 5 | W17: 5 | X17: 5 | Y17: 5 | Z17: 5 | AA17: 5 | AB17: 5 | AC17: 5 | AD17: 5 | AE17: 5 | AF17: 5 | AG17: 5 | AH17: 5 | AI17: 5 | AJ17: 5
A18: Helmand | B18: 2 | C18: 2 | D18: 1 | E18: 1 | F18: 1 | G18: 1 | H18: 1 | I18: 1 | J18: 1 | K18: 1 | L18: 1 | M18: 1 | N18: 1 | O18: 1 | P18: 1 | Q18: 1 | R18: 1 | S18: 1 | T18: 1 | U18: 1 | V18: 1 | W18: 1 | X18: 1 | Y18: 1 | Z18: 1 | AA18: 1 | AB18: 1 | AC18: 1 | AD18: 1 | AE18: 1 | AF18: 1 | AG18: 1 | AH18: 1 | AI18: 1 | AJ18: 1
A19: Hirat | B19: 1 | C19: 1 | D19: 2 | E19: 2 | F19: 2 | G19: 2 | H19: 2 | I19: 2 | J19: 2 | K19: 2 | L19: 2 | M19: 2 | N19: 2 | O19: 2 | P19: 2 | Q19: 2 | R19: 2 | S19: 2 | T19: 2 | U19: 2 | V19: 2 | W19: 2 | X19: 2 | Y19: 2 | Z19: 2 | AA19: 2 | AB19: 2 | AC19: 2 | AD19: 2 | AE19: 2 | AF19: 2 | AG19: 2 | AH19: 2 | AI19: 2 | AJ19: 2
A20: Jawzjan | B20: 0.5 | C20: 0.5 | D20: 3 | E20: 3 | F20: 3 | G20: 3 | H20: 3 | I20: 3 | J20: 3 | K20: 3 | L20: 3 | M20: 3 | N20: 3 | O20: 3 | P20: 3 | Q20: 3 | R20: 3 | S20: 3 | T20: 3 | U20: 3 | V20: 3 | W20: 3 | X20: 3 | Y20: 3 | Z20: 3 | AA20: 3 | AB20: 3 | AC20: 3 | AD20: 3 | AE20: 3 | AF20: 3 | AG20: 3 | AH20: 3 | AI20: 3 | AJ20: 3
A21: Kabul | B21: 0.4 | C21: 0.5 | D21: 4 | E21: 4 | F21: 4 | G21: 4 | H21: 4 | I21: 4 | J21: 4 | K21: 4 | L21: 4 | M21: 4 | N21: 4 | O21: 4 | P21: 4 | Q21: 4 | R21: 4 | S21: 4 | T21: 4 | U21: 4 | V21: 4 | W21: 4 | X21: 4 | Y21: 4 | Z21: 4 | AA21: 4 | AB21: 4 | AC21: 4 | AD21: 4 | AE21: 4 | AF21: 4 | AG21: 4 | AH21: 4 | AI21: 4 | AJ21: 4
A22: Kandahar | B22: 0.4 | C22: 0.5 | D22: 5 | E22: 5 | F22: 5 | G22: 5 | H22: 5 | I22: 5 | J22: 5 | K22: 5 | L22: 5 | M22: 5 | N22: 5 | O22: 5 | P22: 5 | Q22: 5 | R22: 5 | S22: 5 | T22: 5 | U22: 5 | V22: 5 | W22: 5 | X22: 5 | Y22: 5 | Z22: 5 | AA22: 5 | AB22: 5 | AC22: 5 | AD22: 5 | AE22: 5 | AF22: 5 | AG22: 5 | AH22: 5 | AI22: 5 | AJ22: 5
A23: Kapisa | B23: 0.4 | C23: 0.5 | D23: 1 | E23: 1 | F23: 1 | G23: 1 | H23: 1 | I23: 1 | J23: 1 | K23: 1 | L23: 1 | M23: 1 | N23: 1 | O23: 1 | P23: 1 | Q23: 1 | R23: 1 | S23: 1 | T23: 1 | U23: 1 | V23: 1 | W23: 1 | X23: 1 | Y23: 1 | Z23: 1 | AA23: 1 | AB23: 1 | AC23: 1 | AD23: 1 | AE23: 1 | AF23: 1 | AG23: 1 | AH23: 1 | AI23: 1 | AJ23: 1
A24: Khost | B24: 0.4 | C24: 0.5 | D24: 2 | E24: 2 | F24: 2 | G24: 2 | H24: 2 | I24: 2 | J24: 2 | K24: 2 | L24: 2 | M24: 2 | N24: 2 | O24: 2 | P24: 2 | Q24: 2 | R24: 2 | S24: 2 | T24: 2 | U24: 2 | V24: 2 | W24: 2 | X24: 2 | Y24: 2 | Z24: 2 | AA24: 2 | AB24: 2 | AC24: 2 | AD24: 2 | AE24: 2 | AF24: 2 | AG24: 2 | AH24: 2 | AI24: 2 | AJ24: 2
A25: Kunar | B25: 0.4 | C25: 0.5 | D25: 3 | E25: 3 | F25: 3 | G25: 3 | H25: 3 | I25: 3 | J25: 3 | K25: 3 | L25: 3 | M25: 3 | N25: 3 | O25: 3 | P25: 3 | Q25: 3 | R25: 3 | S25: 3 | T25: 3 | U25: 3 | V25: 3 | W25: 3 | X25: 3 | Y25: 3 | Z25: 3 | AA25: 3 | AB25: 3 | AC25: 3 | AD25: 3 | AE25: 3 | AF25: 3 | AG25: 3 | AH25: 3 | AI25: 3 | AJ25: 3
A26: Kunduz | B26: 0.4 | C26: 0.5 | D26: 4 | E26: 4 | F26: 4 | G26: 4 | H26: 4 | I26: 4 | J26: 4 | K26: 4 | L26: 4 | M26: 4 | N26: 4 | O26: 4 | P26: 4 | Q26: 4 | R26: 4 | S26: 4 | T26: 4 | U26: 4 | V26: 4 | W26: 4 | X26: 4 | Y26: 4 | Z26: 4 | AA26: 4 | AB26: 4 | AC26: 4 | AD26: 4 | AE26: 4 | AF26: 4 | AG26: 4 | AH26: 4 | AI26: 4 | AJ26: 4
A27: Laghman | B27: 0.4 | C27: 0.5 | D27: 5 | E27: 5 | F27: 5 | G27: 5 | H27: 5 | I27: 5 | J27: 5 | K27: 5 | L27: 5 | M27: 5 | N27: 5 | O27: 5 | P27: 5 | Q27: 5 | R27: 5 | S27: 5 | T27: 5 | U27: 5 | V27: 5 | W27: 5 | X27: 5 | Y27: 5 | Z27: 5 | AA27: 5 | AB27: 5 | AC27: 5 | AD27: 5 | AE27: 5 | AF27: 5 | AG27: 5 | AH27: 5 | AI27: 5 | AJ27: 5
A28: Logar | B28: 0.4 | C28: 0.5 | D28: 1 | E28: 1 | F28: 1 | G28: 1 | H28: 1 | I28: 1 | J28: 1 | K28: 1 | L28: 1 | M28: 1 | N28: 1 | O28: 1 | P28: 1 | Q28: 1 | R28: 1 | S28: 1 | T28: 1 | U28: 1 | V28: 1 | W28: 1 | X28: 1 | Y28: 1 | Z28: 1 | AA28: 1 | AB28: 1 | AC28: 1 | AD28: 1 | AE28: 1 | AF28: 1 | AG28: 1 | AH28: 1 | AI28: 1 | AJ28: 1
A29: Nangarhar | B29: 0.4 | C29: 0.5 | D29: 2 | E29: 2 | F29: 2 | G29: 2 | H29: 2 | I29: 2 | J29: 2 | K29: 2 | L29: 2 | M29: 2 | N29: 2 | O29: 2 | P29: 2 | Q29: 2 | R29: 2 | S29: 2 | T29: 2 | U29: 2 | V29: 2 | W29: 2 | X29: 2 | Y29: 2 | Z29: 2 | AA29: 2 | AB29: 2 | AC29: 2 | AD29: 2 | AE29: 2 | AF29: 2 | AG29: 2 | AH29: 2 | AI29: 2 | AJ29: 2
A30: Nimroz | B30: 0.4 | C30: 0.5 | D30: 3 | E30: 3 | F30: 3 | G30: 3 | H30: 3 | I30: 3 | J30: 3 | K30: 3 | L30: 3 | M30: 3 | N30: 3 | O30: 3 | P30: 3 | Q30: 3 | R30: 3 | S30: 3 | T30: 3 | U30: 3 | V30: 3 | W30: 3 | X30: 3 | Y30: 3 | Z30: 3 | AA30: 3 | AB30: 3 | AC30: 3 | AD30: 3 | AE30: 3 | AF30: 3 | AG30: 3 | AH30: 3 | AI30: 3 | AJ30: 3
A31: Nuristan | B31: 0.4 | C31: 0.5 | D31: 4 | E31: 4 | F31: 4 | G31: 4 | H31: 4 | I31: 4 | J31: 4 | K31: 4 | L31: 4 | M31: 4 | N31: 4 | O31: 4 | P31: 4 | Q31: 4 | R31: 4 | S31: 4 | T31: 4 | U31: 4 | V31: 4 | W31: 4 | X31: 4 | Y31: 4 | Z31: 4 | AA31: 4 | AB31: 4 | AC31: 4 | AD31: 4 | AE31: 4 | AF31: 4 | AG31: 4 | AH31: 4 | AI31: 4 | AJ31: 4
A32: Paktika | B32: 0.4 | C32: 0.5 | D32: 5 | E32: 5 | F32: 5 | G32: 5 | H32: 5 | I32: 5 | J32: 5 | K32: 5 | L32: 5 | M32: 5 | N32: 5 | O32: 5 | P32: 5 | Q32: 5 | R32: 5 | S32: 5 | T32: 5 | U32: 5 | V32: 5 | W32: 5 | X32: 5 | Y32: 5 | Z32: 5 | AA32: 5 | AB32: 5 | AC32: 5 | AD32: 5 | AE32: 5 | AF32: 5 | AG32: 5 | AH32: 5 | AI32: 5 | AJ32: 5
A33: Paktya | B33: 0.4 | C33: 0.5 | D33: 1 | E33: 1 | F33: 1 | G33: 1 | H33: 1 | I33: 1 | J33: 1 | K33: 1 | L33: 1 | M33: 1 | N33: 1 | O33: 1 | P33: 1 | Q33: 1 | R33: 1 | S33: 1 | T33: 1 | U33: 1 | V33: 1 | W33: 1 | X33: 1 | Y33: 1 | Z33: 1 | AA33: 1 | AB33: 1 | AC33: 1 | AD33: 1 | AE33: 1 | AF33: 1 | AG33: 1 | AH33: 1 | AI33: 1 | AJ33: 1
A34: Panjsher | B34: 0.4 | C34: 0.5 | D34: 2 | E34: 2 | F34: 2 | G34: 2 | H34: 2 | I34: 2 | J34: 2 | K34: 2 | L34: 2 | M34: 2 | N34: 2 | O34: 2 | P34: 2 | Q34: 2 | R34: 2 | S34: 2 | T34: 2 | U34: 2 | V34: 2 | W34: 2 | X34: 2 | Y34: 2 | Z34: 2 | AA34: 2 | AB34: 2 | AC34: 2 | AD34: 2 | AE34: 2 | AF34: 2 | AG34: 2 | AH34: 2 | AI34: 2 | AJ34: 2
A35: Parwan | B35: 0.4 | C35: 0.5 | D35: 3 | E35: 3 | F35: 3 | G35: 3 | H35: 3 | I35: 3 | J35: 3 | K35: 3 | L35: 3 | M35: 3 | N35: 3 | O35: 3 | P35: 3 | Q35: 3 | R35: 3 | S35: 3 | T35: 3 | U35: 3 | V35: 3 | W35: 3 | X35: 3 | Y35: 3 | Z35: 3 | AA35: 3 | AB35: 3 | AC35: 3 | AD35: 3 | AE35: 3 | AF35: 3 | AG35: 3 | AH35: 3 | AI35: 3 | AJ35: 3
A36: Samangan | B36: 0.4 | C36: 0.5 | D36: 4 | E36: 4 | F36: 4 | G36: 4 | H36: 4 | I36: 4 | J36: 4 | K36: 4 | L36: 4 | M36: 4 | N36: 4 | O36: 4 | P36: 4 | Q36: 4 | R36: 4 | S36: 4 | T36: 4 | U36: 4 | V36: 4 | W36: 4 | X36: 4 | Y36: 4 | Z36: 4 | AA36: 4 | AB36: 4 | AC36: 4 | AD36: 4 | AE36: 4 | AF36: 4 | AG36: 4 | AH36: 4 | AI36: 4 | AJ36: 4
A37: Sar-e-Pul | B37: 0.4 | C37: 0.5 | D37: 5 | E37: 5 | F37: 5 | G37: 5 | H37: 5 | I37: 5 | J37: 5 | K37: 5 | L37: 5 | M37: 5 | N37: 5 | O37: 5 | P37: 5 | Q37: 5 | R37: 5 | S37: 5 | T37: 5 | U37: 5 | V37: 5 | W37: 5 | X37: 5 | Y37: 5 | Z37: 5 | AA37: 5 | AB37: 5 | AC37: 5 | AD37: 5 | AE37: 5 | AF37: 5 | AG37: 5 | AH37: 5 | AI37: 5 | AJ37: 5
AG49: Routine/campaign measles vaccination coverage (%)
AG50: Routine/campaign polio vaccination coverage (%)
AG51: Routine/campaign Vitamin A supplementation coverage (%)
AG52: Measles vaccination coverage from surveys (%)
AG53: Polio vaccination coverage from surveys (%)
AG54: Vitamin A supplementation coverage from surveys (%)
AG55: Coverage of all basic vaccinations from surveys (%)
AG56: Number of cases for selected diseases relevant to the local context (e.g. cholera, measles, acute meningitis, COVID-19)
AG57: Number of inpatient beds per 10,000 people
AG58: Percentage of healthcare facilitaties that deliver essential package of health services (including nutrition)
AG59: Number of skilled birth attendant personnel (doctors, nurses, certified midwives) per 10,000 people
AG60: Health-seeking behaviour from population-based surveys
AG61: Dysentery
AG62: Prevalence of HIV/AIDS
AG63: Malaria/Fever
AG64: Acute Respiratory Infection (ARI)
AG65: Cholera or Acute Watery Diarrhea (AWD)
AG66: PRIORITY: Food Security Cluster/Sector Analysis
AG67: Food Consumption Score
AG68: Household Hunger Scale
AG69: Reduced Coping Strategies Index
AG70: Household Dietary Diversity Score

Sheet Données démographiques
A2: Données démographiques | D2: ENFANTS DE MOINS DE 5 ANS | P2: FEMMES ENCEINTES (ET ALLAITANTES) (FE/FEFA) | R2: PERSONNES ÂGÉES | U2: ADOLESCENTS | X2: Estimations à insérer | AI2: Estimations à insérer
B3: Admin 2 pour les zones d'intérêt « affectées » | C3: Données démographiques | D3: Enfants de 0-59 mois en pourcentage de la population totale, % | E3: Filles de 0-59 mois en pourcentage de la population totale, % | F3: Garçons de 0-59 mois en pourcentage de la population totale, % | G3: Enfants de 0-5 mois en pourcentage de la population totale, % | H3: Filles de 0-5 mois en pourcentage de la population totale, % | I3: Garçons de 0-5 mois en pourcentage de la population totale, % | J3: Enfants de 6-11 mois en pourcentage de la population totale, % | K3: Filles de 6-11 mois en pourcentage de la population totale, % | L3: Garçons de 6-11 mois en pourcentage de la population totale, % | M3: Enfants de 6-23 mois en pourcentage de la population totale, % | N3: Filles de 6-23 mois en pourcentage de la population totale, % | O3: Garçons de 6-23 mois en pourcentage de la population totale, % | P3: Femmes enceintes et allaitantes en pourcentage de la population totale, % | Q3: Femmes enceintes en pourcentage de la population totale, % | R3: Personnes âgées en pourcentage de la population totale, % | S3: Hommes âgés en pourcentage de la population totale,% | T3: Femmes âgées en pourcentage de la population totale, % | U3: Adolescents en pourcentage de la population totale, % | V3: Filles adolescentes en pourcentage de la population totale, % | W3: Garçons adolescents en pourcentage de la population totale, en % | X3: Prévalence de la MAGc pour les enfants de moins de 5 ans | Y3: Prévalence de la MAG pour les enfants de moins de 5 ans basée sur le P/T | Z3: Prévalence de la MAG pour les enfants de moins de 5 ans basée sur le PB | AA3: Prévalence de la MAG chez les FEFA basée sur le PB | AB3: Prévalence de la MASc pour les enfants de moins de 5 ans | AC3: Prévalence de la MAS chez les enfants de moins de 5 ans basée sur le P/T | AD3: Prévalence de la MAS chez les enfants de moins de 5 ans basée sur le PB | AE3: Prévalence de la MAS chez les FEFA basée sur le PB | AG3: ENFANTS DE MOINS DE 5 ANS
B4: Utiliser les domaines administratifs de niveau inférieur (administration générale 2) pour lesquels des preuves fiables sont disponibles | C4: Fourni par l'OCHA et/ou le gouvernement au niveau national | D4: Fourni par l'OCHA et/ou le gouvernement au niveau national | E4: Si disponible, fourni par l'OCHA et/ou le gouvernement au niveau national | F4: Si disponible, fourni par l'OCHA et/ou le gouvernement au niveau national | G4: Fourni par l'OCHA et/ou le gouvernement au niveau national | H4: Si disponible, fourni par l'OCHA et/ou le gouvernement au niveau national | I4: Si disponible, fourni par l'OCHA et/ou le gouvernement au niveau national | J4: Fourni par l'OCHA et/ou le gouvernement au niveau national | K4: Si disponible, fourni par l'OCHA et/ou le gouvernement au niveau national | L4: Si disponible, fourni par l'OCHA et/ou le gouvernement au niveau national | M4: Fourni par l'OCHA et/ou le gouvernement au niveau national | N4: Si disponible, fourni par l'OCHA et/ou le gouvernement au niveau national | O4: Si disponible, fourni par l'OCHA et/ou le gouvernement au niveau national | P4: Fourni par l'OCHA et/ou le gouvernement au niveau national | Q4: Fourni par l'OCHA et/ou le gouvernement au niveau national | R4: Fourni par l'OCHA et/ou le gouvernement au niveau national | S4: Si disponible, fourni par l'OCHA et/ou le gouvernement au niveau national | T4: Si disponible, fourni par l'OCHA et/ou le gouvernement au niveau national | U4: Fourni par l'OCHA et/ou le gouvernement au niveau national | V4: Si disponible, fourni par l'OCHA et/ou le gouvernement au niveau national | W4: Si disponible, fourni par l'OCHA et/ou le gouvernement au niveau national | X4: Insérer les données de prévalence pour uniquement UNE de ces estimations | AA4: Si disponible, insérer les données de prévalence | AB4: Insérer les données de prévalence pour uniquement UNE de ces estimations | AE4: Si disponible, insérer les données de prévalence | AG4: Facteur de correction d'incident de la MAS | AH4: Discuter avec les partenaires du Cluster et convenir du facteur de correction des incidents basé sur les directives et les preuves disponibles - veuillez consulter le prochain guide de l’UNICEF pour l’estimation du nombre d’enfants ayant besoin d’un traitement contre l’émaciation. Contacter le GNC-CT pour plus d’assistance si besoin. Un exemple de 1.6 peut être utilisé comme point de départ.
B5: Badakhshan | C5: 2958374.34 | D5: 0.16 | G5: 0.018 | J5: 0.018 | M5: 0.054 | P5: 0.07 | Q5: 0.04 | R5: 0.1 | U5: 0.15 | AG5: Facteur de correction d'incident pour la MAM | AH5: Discuter avec les partenaires du Cluster et convenir du facteur de correction des incidents basé sur les directives et les preuves disponibles - veuillez consulter le prochain guide de l’UNICEF pour l’estimation du nombre d’enfants ayant besoin d’un traitement contre l’émaciation. Contacter le GNC-CT pour plus d’assistance si besoin. Un exemple de 1.6 peut être utilisé comme point de départ.
B6: Badghis | C6: 1542806.1 | D6: 0.15 | G6: 0.018 | J6: 0.018 | M6: 0.054 | P6: 0.07 | Q6: 0.04 | R6: 0.1 | U6: 0.15 | AG6: Proportion attendue de cas de MAS pour un traitement hospitalier | AH6: Il s'agit de la couverture moyenne qui devrait être atteinte par le programme au cours de cette période. Pour se mettre d'accord sur la couverture attendue, les groupes prennent généralement en compte la capacité actuelle des partenaires et leur capacité à évoluer. Si la couverture moyenne pour l'année précédente est connue, basez vos estimations sur ce chiffre en tenant compte d'une éventuelle augmentation ou diminution. Un exemple de 10% peut être utilisé comme point de départ.
B7: Baghlan | C7: 2836525.14 | D7: 0.16 | G7: 0.018 | J7: 0.018 | M7: 0.054 | P7: 0.07 | Q7: 0.04 | R7: 0.1 | U7: 0.15 | AG7: Nombre prévu de cas de MAS pour les patients ambulatoires-CMAM | AH7: Il s'agit de la couverture moyenne qui devrait être atteinte par le programme au cours de cette période. Pour se mettre d'accord sur la couverture attendue, les groupes prennent généralement en compte la capacité actuelle des partenaires et leur capacité à évoluer. Si la couverture moyenne pour l'année précédente est connue, basez vos estimations sur ce chiffre en tenant compte d'une éventuelle augmentation ou diminution. Un exemple de 90% peut être utilisé comme point de départ.
B8: Balkh | C8: 4142095.56 | D8: 0.16 | G8: 0.018 | J8: 0.018 | M8: 0.054 | P8: 0.07 | Q8: 0.04 | R8: 0.1 | U8: 0.15 | AG8: Nombre prévu de cas de MAM pour la programmation | AH8: Il s'agit de la couverture moyenne qui devrait être atteinte par le programme au cours de cette période. Pour se mettre d'accord sur la couverture attendue, les groupes prennent généralement en compte la capacité actuelle des partenaires et leur capacité à évoluer. Si la couverture moyenne pour l'année précédente est connue, basez vos estimations sur ce chiffre en tenant compte d'une éventuelle augmentation ou diminution. Un exemple de 70% peut être utilisé comme point de départ.
B9: Bamyan | C9: 1391176.98 | D9: 0.16 | G9: 0.018 | J9: 0.018 | M9: 0.054 | P9: 0.07 | Q9: 0.04 | R9: 0.1 | U9: 0.15 | AG9: Nombre prévu de cas pour la BFSP | AH9: Il s'agit de la couverture moyenne qui devrait être atteinte par le programme au cours de cette période. Pour se mettre d'accord sur la couverture attendue, les groupes prennent généralement en compte la capacité actuelle des partenaires et leur capacité à évoluer. Si la couverture moyenne pour l'année précédente est connue, basez vos estimations sur ce chiffre en tenant compte d'une éventuelle augmentation ou diminution. Un exemple de 70% peut être utilisé comme point de départ.
B10: Dykundi | C10: 1432624.68 | D10: 0.16 | G10: 0.018 | J10: 0.018 | M10: 0.054 | P10: 0.07 | Q10: 0.04 | R10: 0.1 | U10: 0.15 | AG10: Porportion estimée du nombre d'enfants moins de 5 ans avec un handicap | AH10: Pour les données ventilées sur les personnes handicapées, des estimations à l'échelle nationale devraient être fournit par le Cluster de Protection; sinon nous pouvons supposer qu’ils représentent 10% de la population d'enfants - par conséquent, 10% sera appliqué au PiN Total chez les enfants moins de 5 ans pour obteinr les résultats ventilés par handicap.
B11: Farah | C11: 1578877.38 | D11: 0.16 | G11: 0.018 | J11: 0.018 | M11: 0.054 | P11: 0.07 | Q11: 0.04 | R11: 0.1 | U11: 0.15
B12: Faryab | C12: 3106925.1 | D12: 0.16 | G12: 0.018 | J12: 0.018 | M12: 0.054 | P12: 0.07 | Q12: 0.04 | R12: 0.1 | U12: 0.15 | AI12: Estimations à insérer
B13: Ghazni | C13: 3823090.56 | D13: 0.16 | G13: 0.018 | J13: 0.018 | M13: 0.054 | P13: 0.07 | Q13: 0.04 | R13: 0.1 | U13: 0.15 | AG13: FEMMES ENCEINTES ET ALLAITANTES (FEFA)
B14: Ghor | C14: 2147058.18 | D14: 0.16 | G14: 0.018 | J14: 0.018 | M14: 0.054 | P14: 0.07 | Q14: 0.04 | R14: 0.1 | U14: 0.15 | AG14: Proportion attendue de cas de MAM chez les femmes enceintes et allaitantes pour le TSFP | AH14: Ce calcul est généralement effectué pour une année, mais à certaines occasions (nouvelle urgence, plan d'intervention à court terme, etc.) il peut être effectué pour une durée différente. Un exemple de 75% peut être utilisé comme point de départ.
B15: Helmand | C15: 2877125.22 | D15: 0.16 | G15: 0.018 | J15: 0.018 | M15: 0.054 | P15: 0.07 | Q15: 0.04 | R15: 0.1 | U15: 0.15 | AG15: Nombre attendu de cas de MAM chez les femmes enceintes et allaitantes pour la BFSP | AH15: Il s'agit de la couverture moyenne qui devrait être atteinte par le programme au cours de cette période. Pour se mettre d'accord sur la couverture attendue, les groupes prennent généralement en compte la capacité actuelle des partenaires et leur capacité à évoluer. Si la couverture moyenne pour l'année précédente est connue, basez vos estimations sur ce chiffre en tenant compte d'une éventuelle augmentation ou diminution. Un exemple de 100% peut être utilisé comme point de départ.
B16: Hirat | C16: 5900680.62 | D16: 0.16 | G16: 0.018 | J16: 0.018 | M16: 0.054 | P16: 0.07 | Q16: 0.04 | R16: 0.1 | U16: 0.15 | AG16: Porportion estimée du nombre de FEFA avec un handicap | AH16: Pour les données ventilées sur les personnes handicapées, des estimations à l'échelle nationale devraient être fournit par le Cluster de Protection; sinon nous pouvons supposer qu’ils représentent 15% de la population d'adultes - par conséquent, 15% sera appliqué au PiN Total chez les FEFA pour obteinr les résultats ventilés par handicap.
B17: Jawzjan | C17: 1682694 | D17: 0.16 | G17: 0.018 | J17: 0.018 | M17: 0.054 | P17: 0.07 | Q17: 0.04 | R17: 0.1 | U17: 0.15
B18: Kabul | C18: 13842577.08 | D18: 0.16 | G18: 0.018 | J18: 0.018 | M18: 0.054 | P18: 0.07 | Q18: 0.04 | R18: 0.1 | U18: 0.15
B19: Kandahar | C19: 3833525.16 | D19: 0.16 | G19: 0.018 | J19: 0.018 | M19: 0.054 | P19: 0.07 | Q19: 0.04 | R19: 0.1 | U19: 0.15
B20: Kapisa | C20: 1371629.7 | D20: 0.16 | G20: 0.018 | J20: 0.018 | M20: 0.054 | P20: 0.07 | Q20: 0.04 | R20: 0.1 | U20: 0.15
B21: Khost | C21: 1787269.5 | D21: 0.16 | G21: 0.018 | J21: 0.018 | M21: 0.054 | P21: 0.07 | Q21: 0.04 | R21: 0.1 | U21: 0.15
B22: Kunar | C22: 1401877.8 | D22: 0.16 | G22: 0.018 | J22: 0.018 | M22: 0.054 | P22: 0.07 | Q22: 0.04 | R22: 0.1 | U22: 0.15
B23: Kunduz | C23: 3150187.38 | D23: 0.16 | G23: 0.018 | J23: 0.018 | M23: 0.054 | P23: 0.07 | Q23: 0.04 | R23: 0.1 | U23: 0.15
B24: Laghman | C24: 1385941.32 | D24: 0.16 | G24: 0.018 | J24: 0.018 | M24: 0.054 | P24: 0.07 | Q24: 0.04 | R24: 0.1 | U24: 0.15
B25: Logar | C25: 1219517.1 | D25: 0.16 | G25: 0.018 | J25: 0.018 | M25: 0.054 | P25: 0.07 | Q25: 0.04 | R25: 0.1 | U25: 0.15
B26: Nangarhar | C26: 4729070.88 | D26: 0.16 | G26: 0.018 | J26: 0.018 | M26: 0.054 | P26: 0.07 | Q26: 0.04 | R26: 0.1 | U26: 0.15
B27: Nimroz | C27: 513660.78 | D27: 0.16 | G27: 0.018 | J27: 0.018 | M27: 0.054 | P27: 0.07 | Q27: 0.04 | R27: 0.1 | U27: 0.15
B28: Nuristan | C28: 460196.46 | D28: 0.16 | G28: 0.018 | J28: 0.018 | M28: 0.054 | P28: 0.07 | Q28: 0.04 | R28: 0.1 | U28: 0.15
B29: Paktika | C29: 1352161.98 | D29: 0.16 | G29: 0.018 | J29: 0.018 | M29: 0.054 | P29: 0.07 | Q29: 0.04 | R29: 0.1 | U29: 0.15
B30: Paktya | C30: 1717272 | D30: 0.16 | G30: 0.018 | J30: 0.018 | M30: 0.054 | P30: 0.07 | Q30: 0.04 | R30: 0.1 | U30: 0.15
B31: Panjsher | C31: 477363.06 | D31: 0.16 | G31: 0.018 | J31: 0.018 | M31: 0.054 | P31: 0.07 | Q31: 0.04 | R31: 0.1 | U31: 0.15
B32: Parwan | C32: 2067932.7 | D32: 0.16 | G32: 0.018 | J32: 0.018 | M32: 0.054 | P32: 0.07 | Q32: 0.04 | R32: 0.1 | U32: 0.15
B33: Samangan | C33: 1207130.22 | D33: 0.16 | G33: 0.018 | J33: 0.018 | M33: 0.054 | P33: 0.07 | Q33: 0.04 | R33: 0.1 | U33: 0.15
B34: Sar-e-Pul | C34: 1741271.58 | D34: 0.16 | G34: 0.018 | J34: 0.018 | M34: 0.054 | P34: 0.07 | Q34: 0.04 | R34: 0.1 | U34: 0.15
B43: TOTAL POPULATION | C43: =SUM(C5:C42) -> 77678638.56

Sheet PiN_B-E physique et mental
A1: Bien-être physique et mental
C2: Suralimentation, sous-alimentation aiguë et chronique - Calculs automatiques | AF2: FACTEURS CONTEXTUELS BASÉS SUR LE SCÉNARIO 2 FACTEURS CONTRIBUTIFS OU LE SCÉNARIO 3 ANALYSE NUT.
A3: Admin 2 pour les zones d'intérêt « affectées » | B3: Données démographiques | C3: Nombre d’enfants de 0-59 mois souffrant de MAG dans le besoin basé sur la MAGc | D3: Nombre d’enfants de 0-59 mois souffrant de MAG dans le besoin basé sur le P/T | E3: Nombre d’enfants de 6-59 mois souffrant de MAG dans le besoin basé sur le PB | F3: Nombre de filles de 0-59 mois souffrant de MAG dans le besoin | G3: Nombre de garçons de 0-59 mois souffrant de MAG dans le besoin | H3: Nombre de d’enfants de 0-59 mois à examiner | I3: Nombre d’enfants de 0-59 mois souffrant de MAS dans le besoin basé sur la MASc | J3: Nombre d’enfants de 0-59 mois souffrant de MAS dans le besoin basé sur le P/T | K3: Nombre d’enfants de 6-59 mois souffrant de MAS dans le besoin basé sur le PB | L3: Nombre de filles de 0-59 mois souffrant de MAS dans le besoin | M3: Nombre de garçons de 0-59 mois souffrant de MAS dans le besoin | N3: Nombre d’enfants de 0-59 mois souffrant de MAS ayant besoin d'un traitement hospitalier | O3: Nombre de filles de 0-59 mois souffrant de MAS ayant besoin d'un traitement hospitalier | P3: Nombre de garçons de 0-59 mois souffrant de MAS ayant besoin d'un traitement hospitalier | Q3: Nombre de MAS chez les enfants de 6-59 mois ayant besoin d'un traitement ambulatoire | R3: Nombre de filles de 6-59 mois souffrant de MAS ayant besoin d'un traitement ambulatoire | S3: Nombre de garçons de 6-59 mois souffrant de MAS ayant besoin d'un traitement ambulatoire | T3: Nombre d’enfants de 6-59 mois souffrant de MAM dans le besoin basé sur la cMAM | U3: Nombre d’enfants de 6-59 mois souffrant de MAM dans le besoin basé sur le P/T | V3: Nombre d’enfants de 6-59 mois souffrant de MAM dans le besoin basé sur le PB | W3: Nombre de filles de 6-59 mois souffrant le MAM dans le besoin | X3: Nombre de garçons de 6-59 mois souffrant de MAM dans le besoin | Y3: Nombre d’enfants de 6-23 mois ayant besoin de BFSP | Z3: Nombre de filles de 6-23 mois ayant besoin d'un BFSP | AA3: Nombre d’enfants de 6-23 mois ayant besoin d'un BFSP | AB3: Nombre de MAG basé sur les femmes enceintes et allaitantes ayant un faible PB dans le besoin | AC3: Nombre de femmes enceintes et allaitantes à examiner | AD3: Nombre de MAM femmes enceintes et allaitantes en besoin de TFSP | AE3: Nombre de MAM femmes enceintes et allaitantes en besoin de BFSP | AF3: Nombre de personnes âgées en besoin souffrant de MAG | AG3: Nombre de femmes âgées souffrant de MAG dans le besoin | AH3: Nombre d’hommes âgés souffrant de MAG dans le besoin | AI3: Nombre de personnes âgées à examiner | AJ3: Nombre d’adolescents souffrant de MAG dans le besoin | AK3: Nombre de filles adolescentes souffrant de MAG dans le besoin | AL3: Nombre de garçons adolescents souffrant de MAG dans le besoin
A4: Extrait automatiquement depuis la feuille Données démographiques | B4: Extrait automatiquement depuis la feuille Données démographiques | C4: Calcul automatique - UNE seule de ces trois colonnes doit être remplie en fonction des preuves disponibles | F4: Calcul automatique lorsque les données sont disponibles | G4: Calcul automatique lorsque les données sont disponibles | H4: Calcul automatique | I4: Calcul automatique - UNE seule de ces trois colonnes doit être remplie en fonction des preuves disponibles | L4: Calcul automatique lorsque les données sont disponibles | M4: Calcul automatique lorsque les données sont disponibles | N4: Calcul automatique | O4: Calcul automatique lorsque les données sont disponibles | P4: Calcul automatique lorsque les données sont disponibles | Q4: Calcul automatique | R4: Calcul automatique lorsque les données sont disponibles | S4: Calcul automatique lorsque les données sont disponibles | T4: Calcul automatique - UNE seule de ces trois colonnes doit être remplie en fonction des preuves disponibles | W4: Calcul automatique lorsque les données sont disponibles | X4: Calcul automatique lorsque les données sont disponibles | Y4: Calcul automatique | Z4: Calcul automatique lorsque les données sont disponibles | AA4: Calcul automatique lorsque les données sont disponibles | AB4: Calcul automatique | AC4: Calcul automatique | AD4: Calcul automatique | AE4: Calcul automatique | AF4: Calcul automatique | AG4: Calcul automatique lorsque les données sont disponibles | AH4: Calcul automatique lorsque les données sont disponibles | AI4: Calcul automatique | AJ4: Calcul automatique | AK4: Calcul automatique lorsque les données sont disponibles | AL4: Calcul automatique lorsque les données sont disponibles
A5: ='Données démographiques'!B5 -> Badakhshan | B5: ='Données démographiques'!C5 -> 2958374.34 | C5: =B5*('Données démographiques'!D5)*'Données démographiques'!X5 -> 0 | D5: =E5 -> 0 | E5: =B5*('Données démographiques'!D5)*'Scénario 2 - Analyse Nut.'!C7 -> 0 | F5: =IF('Données démographiques'!E5<>"",IF(C5<>"",B5*('Données démographiques'!E5)*#REF!, IF(D5<>"", B5*('Données démographiques'!E5)*'Scénario 2 - Analyse Nut.'!B7, IF(E5<>"", B5*('Données démographiques'!E5)*'Scénario 2 - Analyse Nut.'!C7, "N/A"))), "N/A") -> N/A | G5: =IF('Données démographiques'!F5<>"",IF(C5<>"",B5*('Données démographiques'!F5)*#REF!, IF(D5<>"", B5*('Données démographiques'!F5)*'Scénario 2 - Analyse Nut.'!B7, IF(E5<>"", B5*('Données démographiques'!F5)*'Scénario 2 - Analyse Nut.'!C7, "N/A"))), "N/A") -> N/A | H5: =B5*('Données démographiques'!D5) -> 473339.8944 | I5: ='Données démographiques'!AB5*(B5*'Données démographiques'!D5)*'Données démographiques'!$AI$4 -> 0 | J5: ='Données démographiques'!AC5*(B5*'Données démographiques'!D5)*'Données démographiques'!$AI$4 -> 0 | K5: ='Données démographiques'!AD5*(B5*'Données démographiques'!D5)*'Données démographiques'!$AI$4 -> 0 | L5: =IF('Données démographiques'!E5<>"",IF(I5<>"",'Données démographiques'!AB5*(B5*'Données démographiques'!E5)*'Données démographiques'!$AI$4, IF(J5<>"", 'Données démographiques'!AC5*(B5*'Données démographiques'!E5)*'Données démographiques'!$AI$4, IF(K5<>"", 'Données démographiques'!AD5*(B5*'Données démographiques'!E5)*'Données démographiques'!$AI$4, "N/A"))), "N/A") -> N/A | M5: =IF('Données démographiques'!F5<>"",IF(I5<>"",#REF!*(B5*'Données démographiques'!F5)*'Données démographiques'!$AI$4, IF(J5<>"",#REF!*( B5*'Données démographiques'!F5)*'Données démographiques'!$AI$4, IF(K5<>"",#REF!*( B5*'Données démographiques'!F5)*'Données démographiques'!$AI$4, "N/A"))), "N/A") -> N/A | N5: =IF(I5<>"",I5*'Données démographiques'!$AI$6,IF(J5<>"",J5*'Données démographiques'!$AI$6,IF(K5<>"",K5*'Données démographiques'!$AI$6,"Key Values"))) -> 0 | O5: =IF(L5<>"N/A",L5*'Données démographiques'!$AI$6,"N/A") -> N/A | P5: =IF(M5<>"N/A",M5*'Données démographiques'!$AI$6,"N/A") -> N/A | Q5: =IF(I5<>"", 'Données démographiques'!AB5*(B5*ABS('Données démographiques'!D5-'Données démographiques'!G5))*'Données démographiques'!$AI$4*'Données démographiques'!$AI$7, IF(J5<>"", 'Données démographiques'!AC5*(B5*ABS('Données démographiques'!D5-'Données démographiques'!G5))*'Données démographiques'!$AI$4*'Données démographiques'!$AI$7, IF(K5<>"", 'Données démographiques'!AD5*(B5*ABS('Données démographiques'!D5-'Données démographiques'!G5))*'Données démographiques'!$AI$4*'Données démographiques'!$AI$7, "Key Values"))) -> 0 | R5: =IF('Données démographiques'!E5<>"", IF(I5<>"",'Données démographiques'!AB5*(B5*ABS('Données démographiques'!E5-'Données démographiques'!H5))*'Données démographiques'!$AI$4, IF(J5<>"", 'Données démographiques'!AC5*(B5*ABS('Données démographiques'!E5-'Données démographiques'!H5))*'Données démographiques'!$AI$4, IF(K5<>"", 'Données démographiques'!AD5*(B5*ABS('Données démographiques'!E5-'Données démographiques'!H5))*'Données démographiques'!$AI$4, "N/A"))), "N/A") -> N/A | S5: =IF('Données démographiques'!E5<>"", IF(I5<>"",'Données démographiques'!AB5*(B5*ABS('Données démographiques'!F5-'Données démographiques'!I5))*'Données démographiques'!$AI$4, IF(J5<>"", 'Données démographiques'!AC5*(B5*ABS('Données démographiques'!F5-'Données démographiques'!I5))*'Données démographiques'!$AI$4, IF(K5<>"", 'Données démographiques'!AD5*(B5*ABS('Données démographiques'!F5-'Données démographiques'!I5))*'Données démographiques'!$AI$4, "N/A"))), "N/A") -> N/A | T5: =('Données démographiques'!X5-'Données démographiques'!AB5)*(B5*ABS('Données démographiques'!D5-'Données démographiques'!G5)*'Données démographiques'!$AI$5) -> 0 | U5: =ABS('Données démographiques'!Y5-'Données démographiques'!AC5)*(B5*ABS('Données démographiques'!D5-'Données démographiques'!G5))*'Données démographiques'!$AI$5 -> 0 | V5: =ABS('Données démographiques'!Z5-'Données démographiques'!AD5)*(B5*ABS('Données démographiques'!D5-'Données démographiques'!G5)*'Données démographiques'!$AI$5) -> 0 | W5: =IF('Données démographiques'!E5<>"",IF(I5<>"",('Données démographiques'!X5-'Données démographiques'!AB5)*(ABS('Données démographiques'!E5-'Données démographiques'!H5)*B5*'Données démographiques'!D5)*'Données démographiques'!$AI$5, IF(J5<>"", ABS('Données démographiques'!Y5-'Données démographiques'!AC5)*(ABS('Données démographiques'!E5-'Données démographiques'!H5)*B5*'Données démographiques'!D5)*'Données démographiques'!$AI$5, IF(K5<>"", ABS('Données démographiques'!Z5-'Données démographiques'!AD5)*(B5*ABS('Données démographiques'!E5-'Données démographiques'!H5))*'Données démographiques'!$AI$4, "N/A"))), "N/A") -> N/A | X5: =IF('Données démographiques'!F5<>"",IF(J5<>"",('Données démographiques'!X5-'Données démographiques'!AB5)*(ABS('Données démographiques'!F5-'Données démographiques'!I5)*B5*'Données démographiques'!E5)*'Données démographiques'!$AI$5, IF(K5<>"", ABS('Données démographiques'!Y5-'Données démographiques'!AC5)*(ABS('Données démographiques'!F5-'Données démographiques'!I5)*B5*'Données démographiques'!E5)*'Données démographiques'!$AI$5, IF(L5<>"", ABS('Données démographiques'!Z5-'Données démographiques'!AD5)*(B5*ABS('Données démographiques'!F5-'Données démographiques'!I5))*'Données démographiques'!$AI$4, "N/A"))), "N/A") -> N/A | Y5: ='Données démographiques'!M5*'Données démographiques'!C5*'Données démographiques'!$AI$9 -> 0 | Z5: =IF('Données démographiques'!N5<>"",'Données démographiques'!N5*'Données démographiques'!C5*'Données démographiques'!$AI$9,"N/A") -> N/A | AA5: =IF('Données démographiques'!O5<>"",'Données démographiques'!O5*'Données démographiques'!C5*'Données démographiques'!$AI$9,"N/A") -> N/A | AB5: =B5*'Données démographiques'!P5*'Données démographiques'!AA5 -> 0 | AC5: =B5*'Données démographiques'!P5 -> 207086.2038 | AD5: =B5*'Données démographiques'!P5*ABS('Données démographiques'!AA5-'Données démographiques'!AE5)*'Données démographiques'!$AI$14 -> 0 | AE5: =B5*'Données démographiques'!P5*ABS('Données démographiques'!AA5-'Données démographiques'!AE5)*'Données démographiques'!$AI$15 -> 0 | AF5: =IF('Scénario 2 Facteurs contributif'!F8<>"", B5*'Données démographiques'!R5*'Scénario 2 Facteurs contributif'!F8,B5*'Données démographiques'!R5*'Scénario 3 - Analyse Nut.'!J4) -> 0 | AG5: =IF('Données démographiques'!T5<>"", B5*'Données démographiques'!T5*AF5, "N/A") -> N/A | AH5: =IF('Données démographiques'!S5<>"", B5*'Données démographiques'!S5*AF5, "N/A") -> N/A | AI5: =B5*'Données démographiques'!R5 -> 295837.434 | AJ5: =IF('Scénario 2 Facteurs contributif'!G8<>"", B5*'Données démographiques'!U5*'Scénario 2 Facteurs contributif'!G8,B5*'Données démographiques'!U5*'Scénario 3 - Analyse Nut.'!K4) -> 0 | AK5: =IF('Données démographiques'!V5<>"", B5*'Données démographiques'!V5*AJ5, "N/A") -> N/A | AL5: =IF('Données démographiques'!W5<>"", B5*'Données démographiques'!W5*AJ5, "N/A") -> N/A
A6: ='Données démographiques'!B6 -> Badghis | B6: ='Données démographiques'!C6 -> 1542806.1 | C6: =B6*('Données démographiques'!D6)*'Données démographiques'!X6 -> 0 | D6: =B6*('Données démographiques'!D6)*'Scénario 2 - Analyse Nut.'!B8 -> 0 | E6: =B6*('Données démographiques'!D6)*'Scénario 2 - Analyse Nut.'!C8 -> 0 | F6: =IF('Données démographiques'!E6<>"",IF(C6<>"",B6*('Données démographiques'!E6)*#REF!, IF(D6<>"", B6*('Données démographiques'!E6)*'Scénario 2 - Analyse Nut.'!B8, IF(E6<>"", B6*('Données démographiques'!E6)*'Scénario 2 - Analyse Nut.'!C8, "N/A"))), "N/A") -> N/A | G6: =IF('Données démographiques'!F6<>"",IF(C6<>"",B6*('Données démographiques'!F6)*#REF!, IF(D6<>"", B6*('Données démographiques'!F6)*'Scénario 2 - Analyse Nut.'!B8, IF(E6<>"", B6*('Données démographiques'!F6)*'Scénario 2 - Analyse Nut.'!C8, "N/A"))), "N/A") -> N/A | H6: =B6*('Données démographiques'!D6) -> 231420.915 | I6: ='Données démographiques'!AB6*(B6*'Données démographiques'!D6)*'Données démographiques'!$AI$4 -> 0 | J6: ='Données démographiques'!AC6*(B6*'Données démographiques'!D6)*'Données démographiques'!$AI$4 -> 0 | K6: ='Données démographiques'!AD6*(B6*'Données démographiques'!D6)*'Données démographiques'!$AI$4 -> 0 | L6: =IF('Données démographiques'!E6<>"",IF(I6<>"",'Données démographiques'!AB6*(B6*'Données démographiques'!E6)*'Données démographiques'!$AI$4, IF(J6<>"", 'Données démographiques'!AC6*(B6*'Données démographiques'!E6)*'Données démographiques'!$AI$4, IF(K6<>"", 'Données démographiques'!AD6*(B6*'Données démographiques'!E6)*'Données démographiques'!$AI$4, "N/A"))), "N/A") -> N/A | M6: =IF('Données démographiques'!F6<>"",IF(I6<>"",#REF!*(B6*'Données démographiques'!F6)*'Données démographiques'!$AI$4, IF(J6<>"",#REF!*( B6*'Données démographiques'!F6)*'Données démographiques'!$AI$4, IF(K6<>"",#REF!*( B6*'Données démographiques'!F6)*'Données démographiques'!$AI$4, "N/A"))), "N/A") -> N/A | N6: =IF(I6<>"",I6*'Données démographiques'!$AI$6,IF(J6<>"",J6*'Données démographiques'!$AI$6,IF(K6<>"",K6*'Données démographiques'!$AI$6,"Key Values"))) -> 0 | O6: =IF(L6<>"N/A",L6*'Données démographiques'!$AI$6,"N/A") -> N/A | P6: =IF(M6<>"N/A",M6*'Données démographiques'!$AI$6,"N/A") -> N/A | Q6: =IF(I6<>"", 'Données démographiques'!AB6*(B6*ABS('Données démographiques'!D6-'Données démographiques'!G6))*'Données démographiques'!$AI$4*'Données démographiques'!$AI$7, IF(J6<>"", 'Données démographiques'!AC6*(B6*ABS('Données démographiques'!D6-'Données démographiques'!G6))*'Données démographiques'!$AI$4*'Données démographiques'!$AI$7, IF(K6<>"", 'Données démographiques'!AD6*(B6*ABS('Données démographiques'!D6-'Données démographiques'!G6))*'Données démographiques'!$AI$4*'Données démographiques'!$AI$7, "Key Values"))) -> 0 | R6: =IF('Données démographiques'!E6<>"", IF(I6<>"",'Données démographiques'!AB6*(B6*ABS('Données démographiques'!E6-'Données démographiques'!H6))*'Données démographiques'!$AI$4, IF(J6<>"", 'Données démographiques'!AC6*(B6*ABS('Données démographiques'!E6-'Données démographiques'!H6))*'Données démographiques'!$AI$4, IF(K6<>"", 'Données démographiques'!AD6*(B6*ABS('Données démographiques'!E6-'Données démographiques'!H6))*'Données démographiques'!$AI$4, "N/A"))), "N/A") -> N/A | S6: =IF('Données démographiques'!E6<>"", IF(I6<>"",'Données démographiques'!AB6*(B6*ABS('Données démographiques'!F6-'Données démographiques'!I6))*'Données démographiques'!$AI$4, IF(J6<>"", 'Données démographiques'!AC6*(B6*ABS('Données démographiques'!F6-'Données démographiques'!I6))*'Données démographiques'!$AI$4, IF(K6<>"", 'Données démographiques'!AD6*(B6*ABS('Données démographiques'!F6-'Données démographiques'!I6))*'Données démographiques'!$AI$4, "N/A"))), "N/A") -> N/A | T6: =('Données démographiques'!X6-'Données démographiques'!AB6)*(B6*ABS('Données démographiques'!D6-'Données démographiques'!G6)*'Données démographiques'!$AI$5) -> 0 | U6: =ABS('Données démographiques'!Y6-'Données démographiques'!AC6)*(B6*ABS('Données démographiques'!D6-'Données démographiques'!G6))*'Données démographiques'!$AI$5 -> 0 | V6: =ABS('Données démographiques'!Z6-'Données démographiques'!AD6)*(B6*ABS('Données démographiques'!D6-'Données démographiques'!G6)*'Données démographiques'!$AI$5) -> 0 | W6: =IF('Données démographiques'!E6<>"",IF(I6<>"",('Données démographiques'!X6-'Données démographiques'!AB6)*(ABS('Données démographiques'!E6-'Données démographiques'!H6)*B6*'Données démographiques'!D6)*'Données démographiques'!$AI$5, IF(J6<>"", ABS('Données démographiques'!Y6-'Données démographiques'!AC6)*(ABS('Données démographiques'!E6-'Données démographiques'!H6)*B6*'Données démographiques'!D6)*'Données démographiques'!$AI$5, IF(K6<>"", ABS('Données démographiques'!Z6-'Données démographiques'!AD6)*(B6*ABS('Données démographiques'!E6-'Données démographiques'!H6))*'Données démographiques'!$AI$4, "N/A"))), "N/A") -> N/A | X6: =IF('Données démographiques'!F6<>"",IF(J6<>"",('Données démographiques'!X6-'Données démographiques'!AB6)*(ABS('Données démographiques'!F6-'Données démographiques'!I6)*B6*'Données démographiques'!E6)*'Données démographiques'!$AI$5, IF(K6<>"", ABS('Données démographiques'!Y6-'Données démographiques'!AC6)*(ABS('Données démographiques'!F6-'Données démographiques'!I6)*B6*'Données démographiques'!E6)*'Données démographiques'!$AI$5, IF(L6<>"", ABS('Données démographiques'!Z6-'Données démographiques'!AD6)*(B6*ABS('Données démographiques'!F6-'Données démographiques'!I6))*'Données démographiques'!$AI$4, "N/A"))), "N/A") -> N/A | Y6: ='Données démographiques'!M6*'Données démographiques'!C6*'Données démographiques'!$AI$9 -> 0 | Z6: =IF('Données démographiques'!N6<>"",'Données démographiques'!N6*'Données démographiques'!C6*'Données démographiques'!$AI$9,"N/A") -> N/A | AA6: =IF('Données démographiques'!O6<>"",'Données démographiques'!O6*'Données démographiques'!C6*'Données démographiques'!$AI$9,"N/A") -> N/A | AB6: =B6*'Données démographiques'!P6*'Données démographiques'!AA6 -> 0 | AC6: =B6*'Données démographiques'!P6 -> 107996.427 | AD6: =B6*'Données démographiques'!P6*ABS('Données démographiques'!AA6-'Données démographiques'!AE6)*'Données démographiques'!$AI$14 -> 0 | AE6: =B6*'Données démographiques'!P6*ABS('Données démographiques'!AA6-'Données démographiques'!AE6)*'Données démographiques'!$AI$15 -> 0 | AF6: =IF('Scénario 2 Facteurs contributif'!F9<>"", B6*'Données démographiques'!R6*'Scénario 2 Facteurs contributif'!F9,B6*'Données démographiques'!R6*'Scénario 3 - Analyse Nut.'!J5) -> 0 | AG6: =IF('Données démographiques'!T6<>"", B6*'Données démographiques'!T6*AF6, "N/A") -> N/A | AH6: =IF('Données démographiques'!S6<>"", B6*'Données démographiques'!S6*AF6, "N/A") -> N/A | AI6: =B6*'Données démographiques'!R6 -> 154280.61 | AJ6: =IF('Scénario 2 Facteurs contributif'!G9<>"", B6*'Données démographiques'!U6*'Scénario 2 Facteurs contributif'!G9,B6*'Données démographiques'!U6*'Scénario 3 - Analyse Nut.'!K5) -> 0 | AK6: =IF('Données démographiques'!V6<>"", B6*'Données démographiques'!V6*AJ6, "N/A") -> N/A | AL6: =IF('Données démographiques'!W6<>"", B6*'Données démographiques'!W6*AJ6, "N/A") -> N/A
A7: ='Données démographiques'!B7 -> Baghlan | B7: ='Données démographiques'!C7 -> 2836525.14 | C7: =B7*('Données démographiques'!D7)*'Données démographiques'!X7 -> 0 | D7: =B7*('Données démographiques'!D7)*'Scénario 2 - Analyse Nut.'!B9 -> 0 | E7: =B7*('Données démographiques'!D7)*'Scénario 2 - Analyse Nut.'!C9 -> 0 | F7: =IF('Données démographiques'!E7<>"",IF(C7<>"",B7*('Données démographiques'!E7)*#REF!, IF(D7<>"", B7*('Données démographiques'!E7)*'Scénario 2 - Analyse Nut.'!B9, IF(E7<>"", B7*('Données démographiques'!E7)*'Scénario 2 - Analyse Nut.'!C9, "N/A"))), "N/A") -> N/A | G7: =IF('Données démographiques'!F7<>"",IF(C7<>"",B7*('Données démographiques'!F7)*#REF!, IF(D7<>"", B7*('Données démographiques'!F7)*'Scénario 2 - Analyse Nut.'!B9, IF(E7<>"", B7*('Données démographiques'!F7)*'Scénario 2 - Analyse Nut.'!C9, "N/A"))), "N/A") -> N/A | H7: =B7*('Données démographiques'!D7) -> 453844.0224 | I7: ='Données démographiques'!AB7*(B7*'Données démographiques'!D7)*'Données démographiques'!$AI$4 -> 0 | J7: ='Données démographiques'!AC7*(B7*'Données démographiques'!D7)*'Données démographiques'!$AI$4 -> 0 | K7: ='Données démographiques'!AD7*(B7*'Données démographiques'!D7)*'Données démographiques'!$AI$4 -> 0 | L7: =IF('Données démographiques'!E7<>"",IF(I7<>"",'Données démographiques'!AB7*(B7*'Données démographiques'!E7)*'Données démographiques'!$AI$4, IF(J7<>"", 'Données démographiques'!AC7*(B7*'Données démographiques'!E7)*'Données démographiques'!$AI$4, IF(K7<>"", 'Données démographiques'!AD7*(B7*'Données démographiques'!E7)*'Données démographiques'!$AI$4, "N/A"))), "N/A") -> N/A | M7: =IF('Données démographiques'!F7<>"",IF(I7<>"",#REF!*(B7*'Données démographiques'!F7)*'Données démographiques'!$AI$4, IF(J7<>"",#REF!*( B7*'Données démographiques'!F7)*'Données démographiques'!$AI$4, IF(K7<>"",#REF!*( B7*'Données démographiques'!F7)*'Données démographiques'!$AI$4, "N/A"))), "N/A") -> N/A | N7: =IF(I7<>"",I7*'Données démographiques'!$AI$6,IF(J7<>"",J7*'Données démographiques'!$AI$6,IF(K7<>"",K7*'Données démographiques'!$AI$6,"Key Values"))) -> 0 | O7: =IF(L7<>"N/A",L7*'Données démographiques'!$AI$6,"N/A") -> N/A | P7: =IF(M7<>"N/A",M7*'Données démographiques'!$AI$6,"N/A") -> N/A | Q7: =IF(I7<>"", 'Données démographiques'!AB7*(B7*ABS('Données démographiques'!D7-'Données démographiques'!G7))*'Données démographiques'!$AI$4*'Données démographiques'!$AI$7, IF(J7<>"", 'Données démographiques'!AC7*(B7*ABS('Données démographiques'!D7-'Données démographiques'!G7))*'Données démographiques'!$AI$4*'Données démographiques'!$AI$7, IF(K7<>"", 'Données démographiques'!AD7*(B7*ABS('Données démographiques'!D7-'Données démographiques'!G7))*'Données démographiques'!$AI$4*'Données démographiques'!$AI$7, "Key Values"))) -> 0 | R7: =IF('Données démographiques'!E7<>"", IF(I7<>"",'Données démographiques'!AB7*(B7*ABS('Données démographiques'!E7-'Données démographiques'!H7))*'Données démographiques'!$AI$4, IF(J7<>"", 'Données démographiques'!AC7*(B7*ABS('Données démographiques'!E7-'Données démographiques'!H7))*'Données démographiques'!$AI$4, IF(K7<>"", 'Données démographiques'!AD7*(B7*ABS('Données démographiques'!E7-'Données démographiques'!H7))*'Données démographiques'!$AI$4, "N/A"))), "N/A") -> N/A | S7: =IF('Données démographiques'!E7<>"", IF(I7<>"",'Données démographiques'!AB7*(B7*ABS('Données démographiques'!F7-'Données démographiques'!I7))*'Données démographiques'!$AI$4, IF(J7<>"", 'Données démographiques'!AC7*(B7*ABS('Données démographiques'!F7-'Données démographiques'!I7))*'Données démographiques'!$AI$4, IF(K7<>"", 'Données démographiques'!AD7*(B7*ABS('Données démographiques'!F7-'Données démographiques'!I7))*'Données démographiques'!$AI$4, "N/A"))), "N/A") -> N/A | T7: =('Données démographiques'!X7-'Données démographiques'!AB7)*(B7*ABS('Données démographiques'!D7-'Données démographiques'!G7)*'Données démographiques'!$AI$5) -> 0 | U7: =ABS('Données démographiques'!Y7-'Données démographiques'!AC7)*(B7*ABS('Données démographiques'!D7-'Données démographiques'!G7))*'Données démographiques'!$AI$5 -> 0 | V7: =ABS('Données démographiques'!Z7-'Données démographiques'!AD7)*(B7*ABS('Données démographiques'!D7-'Données démographiques'!G7)*'Données démographiques'!$AI$5) -> 0 | W7: =IF('Données démographiques'!E7<>"",IF(I7<>"",('Données démographiques'!X7-'Données démographiques'!AB7)*(ABS('Données démographiques'!E7-'Données démographiques'!H7)*B7*'Données démographiques'!D7)*'Données démographiques'!$AI$5, IF(J7<>"", ABS('Données démographiques'!Y7-'Données démographiques'!AC7)*(ABS('Données démographiques'!E7-'Données démographiques'!H7)*B7*'Données démographiques'!D7)*'Données démographiques'!$AI$5, IF(K7<>"", ABS('Données démographiques'!Z7-'Données démographiques'!AD7)*(B7*ABS('Données démographiques'!E7-'Données démographiques'!H7))*'Données démographiques'!$AI$4, "N/A"))), "N/A") -> N/A | X7: =IF('Données démographiques'!F7<>"",IF(J7<>"",('Données démographiques'!X7-'Données démographiques'!AB7)*(ABS('Données démographiques'!F7-'Données démographiques'!I7)*B7*'Données démographiques'!E7)*'Données démographiques'!$AI$5, IF(K7<>"", ABS('Données démographiques'!Y7-'Données démographiques'!AC7)*(ABS('Données démographiques'!F7-'Données démographiques'!I7)*B7*'Données démographiques'!E7)*'Données démographiques'!$AI$5, IF(L7<>"", ABS('Données démographiques'!Z7-'Données démographiques'!AD7)*(B7*ABS('Données démographiques'!F7-'Données démographiques'!I7))*'Données démographiques'!$AI$4, "N/A"))), "N/A") -> N/A | Y7: ='Données démographiques'!M7*'Données démographiques'!C7*'Données démographiques'!$AI$9 -> 0 | Z7: =IF('Données démographiques'!N7<>"",'Données démographiques'!N7*'Données démographiques'!C7*'Données démographiques'!$AI$9,"N/A") -> N/A | AA7: =IF('Données démographiques'!O7<>"",'Données démographiques'!O7*'Données démographiques'!C7*'Données démographiques'!$AI$9,"N/A") -> N/A | AB7: =B7*'Données démographiques'!P7*'Données démographiques'!AA7 -> 0 | AC7: =B7*'Données démographiques'!P7 -> 198556.7598 | AD7: =B7*'Données démographiques'!P7*ABS('Données démographiques'!AA7-'Données démographiques'!AE7)*'Données démographiques'!$AI$14 -> 0 | AE7: =B7*'Données démographiques'!P7*ABS('Données démographiques'!AA7-'Données démographiques'!AE7)*'Données démographiques'!$AI$15 -> 0 | AF7: =IF('Scénario 2 Facteurs contributif'!F10<>"", B7*'Données démographiques'!R7*'Scénario 2 Facteurs contributif'!F10,B7*'Données démographiques'!R7*'Scénario 3 - Analyse Nut.'!J6) -> 0 | AG7: =IF('Données démographiques'!T7<>"", B7*'Données démographiques'!T7*AF7, "N/A") -> N/A | AH7: =IF('Données démographiques'!S7<>"", B7*'Données démographiques'!S7*AF7, "N/A") -> N/A | AI7: =B7*'Données démographiques'!R7 -> 283652.514 | AJ7: =IF('Scénario 2 Facteurs contributif'!G10<>"", B7*'Données démographiques'!U7*'Scénario 2 Facteurs contributif'!G10,B7*'Données démographiques'!U7*'Scénario 3 - Analyse Nut.'!K6) -> 0 | AK7: =IF('Données démographiques'!V7<>"", B7*'Données démographiques'!V7*AJ7, "N/A") -> N/A | AL7: =IF('Données démographiques'!W7<>"", B7*'Données démographiques'!W7*AJ7, "N/A") -> N/A
A8: ='Données démographiques'!B8 -> Balkh | B8: ='Données démographiques'!C8 -> 4142095.56 | C8: =B8*('Données démographiques'!D8)*'Données démographiques'!X8 -> 0 | D8: =B8*('Données démographiques'!D8)*'Scénario 2 - Analyse Nut.'!B10 -> 0 | E8: =B8*('Données démographiques'!D8)*'Scénario 2 - Analyse Nut.'!C10 -> 0 | F8: =IF('Données démographiques'!E8<>"",IF(C8<>"",B8*('Données démographiques'!E8)*#REF!, IF(D8<>"", B8*('Données démographiques'!E8)*'Scénario 2 - Analyse Nut.'!B10, IF(E8<>"", B8*('Données démographiques'!E8)*'Scénario 2 - Analyse Nut.'!C10, "N/A"))), "N/A") -> N/A | G8: =IF('Données démographiques'!F8<>"",IF(C8<>"",B8*('Données démographiques'!F8)*#REF!, IF(D8<>"", B8*('Données démographiques'!F8)*'Scénario 2 - Analyse Nut.'!B10, IF(E8<>"", B8*('Données démographiques'!F8)*'Scénario 2 - Analyse Nut.'!C10, "N/A"))), "N/A") -> N/A | H8: =B8*('Données démographiques'!D8) -> 662735.2896 | I8: ='Données démographiques'!AB8*(B8*'Données démographiques'!D8)*'Données démographiques'!$AI$4 -> 0 | J8: ='Données démographiques'!AC8*(B8*'Données démographiques'!D8)*'Données démographiques'!$AI$4 -> 0 | K8: ='Données démographiques'!AD8*(B8*'Données démographiques'!D8)*'Données démographiques'!$AI$4 -> 0 | L8: =IF('Données démographiques'!E8<>"",IF(I8<>"",'Données démographiques'!AB8*(B8*'Données démographiques'!E8)*'Données démographiques'!$AI$4, IF(J8<>"", 'Données démographiques'!AC8*(B8*'Données démographiques'!E8)*'Données démographiques'!$AI$4, IF(K8<>"", 'Données démographiques'!AD8*(B8*'Données démographiques'!E8)*'Données démographiques'!$AI$4, "N/A"))), "N/A") -> N/A | M8: =IF('Données démographiques'!F8<>"",IF(I8<>"",#REF!*(B8*'Données démographiques'!F8)*'Données démographiques'!$AI$4, IF(J8<>"",#REF!*( B8*'Données démographiques'!F8)*'Données démographiques'!$AI$4, IF(K8<>"",#REF!*( B8*'Données démographiques'!F8)*'Données démographiques'!$AI$4, "N/A"))), "N/A") -> N/A | N8: =IF(I8<>"",I8*'Données démographiques'!$AI$6,IF(J8<>"",J8*'Données démographiques'!$AI$6,IF(K8<>"",K8*'Données démographiques'!$AI$6,"Key Values"))) -> 0 | O8: =IF(L8<>"N/A",L8*'Données démographiques'!$AI$6,"N/A") -> N/A | P8: =IF(M8<>"N/A",M8*'Données démographiques'!$AI$6,"N/A") -> N/A | Q8: =IF(I8<>"", 'Données démographiques'!AB8*(B8*ABS('Données démographiques'!D8-'Données démographiques'!G8))*'Données démographiques'!$AI$4*'Données démographiques'!$AI$7, IF(J8<>"", 'Données démographiques'!AC8*(B8*ABS('Données démographiques'!D8-'Données démographiques'!G8))*'Données démographiques'!$AI$4*'Données démographiques'!$AI$7, IF(K8<>"", 'Données démographiques'!AD8*(B8*ABS('Données démographiques'!D8-'Données démographiques'!G8))*'Données démographiques'!$AI$4*'Données démographiques'!$AI$7, "Key Values"))) -> 0 | R8: =IF('Données démographiques'!E8<>"", IF(I8<>"",'Données démographiques'!AB8*(B8*ABS('Données démographiques'!E8-'Données démographiques'!H8))*'Données démographiques'!$AI$4, IF(J8<>"", 'Données démographiques'!AC8*(B8*ABS('Données démographiques'!E8-'Données démographiques'!H8))*'Données démographiques'!$AI$4, IF(K8<>"", 'Données démographiques'!AD8*(B8*ABS('Données démographiques'!E8-'Données démographiques'!H8))*'Données démographiques'!$AI$4, "N/A"))), "N/A") -> N/A | S8: =IF('Données démographiques'!E8<>"", IF(I8<>"",'Données démographiques'!AB8*(B8*ABS('Données démographiques'!F8-'Données démographiques'!I8))*'Données démographiques'!$AI$4, IF(J8<>"", 'Données démographiques'!AC8*(B8*ABS('Données démographiques'!F8-'Données démographiques'!I8))*'Données démographiques'!$AI$4, IF(K8<>"", 'Données démographiques'!AD8*(B8*ABS('Données démographiques'!F8-'Données démographiques'!I8))*'Données démographiques'!$AI$4, "N/A"))), "N/A") -> N/A | T8: =('Données démographiques'!X8-'Données démographiques'!AB8)*(B8*ABS('Données démographiques'!D8-'Données démographiques'!G8)*'Données démographiques'!$AI$5) -> 0 | U8: =ABS('Données démographiques'!Y8-'Données démographiques'!AC8)*(B8*ABS('Données démographiques'!D8-'Données démographiques'!G8))*'Données démographiques'!$AI$5 -> 0 | V8: =ABS('Données démographiques'!Z8-'Données démographiques'!AD8)*(B8*ABS('Données démographiques'!D8-'Données démographiques'!G8)*'Données démographiques'!$AI$5) -> 0 | W8: =IF('Données démographiques'!E8<>"",IF(I8<>"",('Données démographiques'!X8-'Données démographiques'!AB8)*(ABS('Données démographiques'!E8-'Données démographiques'!H8)*B8*'Données démographiques'!D8)*'Données démographiques'!$AI$5, IF(J8<>"", ABS('Données démographiques'!Y8-'Données démographiques'!AC8)*(ABS('Données démographiques'!E8-'Données démographiques'!H8)*B8*'Données démographiques'!D8)*'Données démographiques'!$AI$5, IF(K8<>"", ABS('Données démographiques'!Z8-'Données démographiques'!AD8)*(B8*ABS('Données démographiques'!E8-'Données démographiques'!H8))*'Données démographiques'!$AI$4, "N/A"))), "N/A") -> N/A | X8: =IF('Données démographiques'!F8<>"",IF(J8<>"",('Données démographiques'!X8-'Données démographiques'!AB8)*(ABS('Données démographiques'!F8-'Données démographiques'!I8)*B8*'Données démographiques'!E8)*'Données démographiques'!$AI$5, IF(K8<>"", ABS('Données démographiques'!Y8-'Données démographiques'!AC8)*(ABS('Données démographiques'!F8-'Données démographiques'!I8)*B8*'Données démographiques'!E8)*'Données démographiques'!$AI$5, IF(L8<>"", ABS('Données démographiques'!Z8-'Données démographiques'!AD8)*(B8*ABS('Données démographiques'!F8-'Données démographiques'!I8))*'Données démographiques'!$AI$4, "N/A"))), "N/A") -> N/A | Y8: ='Données démographiques'!M8*'Données démographiques'!C8*'Données démographiques'!$AI$9 -> 0 | Z8: =IF('Données démographiques'!N8<>"",'Données démographiques'!N8*'Données démographiques'!C8*'Données démographiques'!$AI$9,"N/A") -> N/A | AA8: =IF('Données démographiques'!O8<>"",'Données démographiques'!O8*'Données démographiques'!C8*'Données démographiques'!$AI$9,"N/A") -> N/A | AB8: =B8*'Données démographiques'!P8*'Données démographiques'!AA8 -> 0 | AC8: =B8*'Données démographiques'!P8 -> 289946.6892 | AD8: =B8*'Données démographiques'!P8*ABS('Données démographiques'!AA8-'Données démographiques'!AE8)*'Données démographiques'!$AI$14 -> 0 | AE8: =B8*'Données démographiques'!P8*ABS('Données démographiques'!AA8-'Données démographiques'!AE8)*'Données démographiques'!$AI$15 -> 0 | AF8: =IF('Scénario 2 Facteurs contributif'!F11<>"", B8*'Données démographiques'!R8*'Scénario 2 Facteurs contributif'!F11,B8*'Données démographiques'!R8*'Scénario 3 - Analyse Nut.'!J7) -> 0 | AG8: =IF('Données démographiques'!T8<>"", B8*'Données démographiques'!T8*AF8, "N/A") -> N/A | AH8: =IF('Données démographiques'!S8<>"", B8*'Données démographiques'!S8*AF8, "N/A") -> N/A | AI8: =B8*'Données démographiques'!R8 -> 414209.556 | AJ8: =IF('Scénario 2 Facteurs contributif'!G11<>"", B8*'Données démographiques'!U8*'Scénario 2 Facteurs contributif'!G11,B8*'Données démographiques'!U8*'Scénario 3 - Analyse Nut.'!K7) -> 0 | AK8: =IF('Données démographiques'!V8<>"", B8*'Données démographiques'!V8*AJ8, "N/A") -> N/A | AL8: =IF('Données démographiques'!W8<>"", B8*'Données démographiques'!W8*AJ8, "N/A") -> N/A
A9: ='Données démographiques'!B9 -> Bamyan | B9: ='Données démographiques'!C9 -> 1391176.98 | C9: =B9*('Données démographiques'!D9)*'Données démographiques'!X9 -> 0 | D9: =B9*('Données démographiques'!D9)*'Scénario 2 - Analyse Nut.'!B11 -> 0 | E9: =B9*('Données démographiques'!D9)*'Scénario 2 - Analyse Nut.'!C11 -> 0 | F9: =IF('Données démographiques'!E9<>"",IF(C9<>"",B9*('Données démographiques'!E9)*#REF!, IF(D9<>"", B9*('Données démographiques'!E9)*'Scénario 2 - Analyse Nut.'!B11, IF(E9<>"", B9*('Données démographiques'!E9)*'Scénario 2 - Analyse Nut.'!C11, "N/A"))), "N/A") -> N/A | G9: =IF('Données démographiques'!F9<>"",IF(C9<>"",B9*('Données démographiques'!F9)*#REF!, IF(D9<>"", B9*('Données démographiques'!F9)*'Scénario 2 - Analyse Nut.'!B11, IF(E9<>"", B9*('Données démographiques'!F9)*'Scénario 2 - Analyse Nut.'!C11, "N/A"))), "N/A") -> N/A | H9: =B9*('Données démographiques'!D9) -> 222588.3168 | I9: ='Données démographiques'!AB9*(B9*'Données démographiques'!D9)*'Données démographiques'!$AI$4 -> 0 | J9: ='Données démographiques'!AC9*(B9*'Données démographiques'!D9)*'Données démographiques'!$AI$4 -> 0 | K9: ='Données démographiques'!AD9*(B9*'Données démographiques'!D9)*'Données démographiques'!$AI$4 -> 0 | L9: =IF('Données démographiques'!E9<>"",IF(I9<>"",'Données démographiques'!AB9*(B9*'Données démographiques'!E9)*'Données démographiques'!$AI$4, IF(J9<>"", 'Données démographiques'!AC9*(B9*'Données démographiques'!E9)*'Données démographiques'!$AI$4, IF(K9<>"", 'Données démographiques'!AD9*(B9*'Données démographiques'!E9)*'Données démographiques'!$AI$4, "N/A"))), "N/A") -> N/A | M9: =IF('Données démographiques'!F9<>"",IF(I9<>"",#REF!*(B9*'Données démographiques'!F9)*'Données démographiques'!$AI$4, IF(J9<>"",#REF!*( B9*'Données démographiques'!F9)*'Données démographiques'!$AI$4, IF(K9<>"",#REF!*( B9*'Données démographiques'!F9)*'Données démographiques'!$AI$4, "N/A"))), "N/A") -> N/A | N9: =IF(I9<>"",I9*'Données démographiques'!$AI$6,IF(J9<>"",J9*'Données démographiques'!$AI$6,IF(K9<>"",K9*'Données démographiques'!$AI$6,"Key Values"))) -> 0 | O9: =IF(L9<>"N/A",L9*'Données démographiques'!$AI$6,"N/A") -> N/A | P9: =IF(M9<>"N/A",M9*'Données démographiques'!$AI$6,"N/A") -> N/A | Q9: =IF(I9<>"", 'Données démographiques'!AB9*(B9*ABS('Données démographiques'!D9-'Données démographiques'!G9))*'Données démographiques'!$AI$4*'Données démographiques'!$AI$7, IF(J9<>"", 'Données démographiques'!AC9*(B9*ABS('Données démographiques'!D9-'Données démographiques'!G9))*'Données démographiques'!$AI$4*'Données démographiques'!$AI$7, IF(K9<>"", 'Données démographiques'!AD9*(B9*ABS('Données démographiques'!D9-'Données démographiques'!G9))*'Données démographiques'!$AI$4*'Données démographiques'!$AI$7, "Key Values"))) -> 0 | R9: =IF('Données démographiques'!E9<>"", IF(I9<>"",'Données démographiques'!AB9*(B9*ABS('Données démographiques'!E9-'Données démographiques'!H9))*'Données démographiques'!$AI$4, IF(J9<>"", 'Données démographiques'!AC9*(B9*ABS('Données démographiques'!E9-'Données démographiques'!H9))*'Données démographiques'!$AI$4, IF(K9<>"", 'Données démographiques'!AD9*(B9*ABS('Données démographiques'!E9-'Données démographiques'!H9))*'Données démographiques'!$AI$4, "N/A"))), "N/A") -> N/A | S9: =IF('Données démographiques'!E9<>"", IF(I9<>"",'Données démographiques'!AB9*(B9*ABS('Données démographiques'!F9-'Données démographiques'!I9))*'Données démographiques'!$AI$4, IF(J9<>"", 'Données démographiques'!AC9*(B9*ABS('Données démographiques'!F9-'Données démographiques'!I9))*'Données démographiques'!$AI$4, IF(K9<>"", 'Données démographiques'!AD9*(B9*ABS('Données démographiques'!F9-'Données démographiques'!I9))*'Données démographiques'!$AI$4, "N/A"))), "N/A") -> N/A | T9: =('Données démographiques'!X9-'Données démographiques'!AB9)*(B9*ABS('Données démographiques'!D9-'Données démographiques'!G9)*'Données démographiques'!$AI$5) -> 0 | U9: =ABS('Données démographiques'!Y9-'Données démographiques'!AC9)*(B9*ABS('Données démographiques'!D9-'Données démographiques'!G9))*'Données démographiques'!$AI$5 -> 0 | V9: =ABS('Données démographiques'!Z9-'Données démographiques'!AD9)*(B9*ABS('Données démographiques'!D9-'Données démographiques'!G9)*'Données démographiques'!$AI$5) -> 0 | W9: =IF('Données démographiques'!E9<>"",IF(I9<>"",('Données démographiques'!X9-'Données démographiques'!AB9)*(ABS('Données démographiques'!E9-'Données démographiques'!H9)*B9*'Données démographiques'!D9)*'Données démographiques'!$AI$5, IF(J9<>"", ABS('Données démographiques'!Y9-'Données démographiques'!AC9)*(ABS('Données démographiques'!E9-'Données démographiques'!H9)*B9*'Données démographiques'!D9)*'Données démographiques'!$AI$5, IF(K9<>"", ABS('Données démographiques'!Z9-'Données démographiques'!AD9)*(B9*ABS('Données démographiques'!E9-'Données démographiques'!H9))*'Données démographiques'!$AI$4, "N/A"))), "N/A") -> N/A | X9: =IF('Données démographiques'!F9<>"",IF(J9<>"",('Données démographiques'!X9-'Données démographiques'!AB9)*(ABS('Données démographiques'!F9-'Données démographiques'!I9)*B9*'Données démographiques'!E9)*'Données démographiques'!$AI$5, IF(K9<>"", ABS('Données démographiques'!Y9-'Données démographiques'!AC9)*(ABS('Données démographiques'!F9-'Données démographiques'!I9)*B9*'Données démographiques'!E9)*'Données démographiques'!$AI$5, IF(L9<>"", ABS('Données démographiques'!Z9-'Données démographiques'!AD9)*(B9*ABS('Données démographiques'!F9-'Données démographiques'!I9))*'Données démographiques'!$AI$4, "N/A"))), "N/A") -> N/A | Y9: ='Données démographiques'!M9*'Données démographiques'!C9*'Données démographiques'!$AI$9 -> 0 | Z9: =IF('Données démographiques'!N9<>"",'Données démographiques'!N9*'Données démographiques'!C9*'Données démographiques'!$AI$9,"N/A") -> N/A | AA9: =IF('Données démographiques'!O9<>"",'Données démographiques'!O9*'Données démographiques'!C9*'Données démographiques'!$AI$9,"N/A") -> N/A | AB9: =B9*'Données démographiques'!P9*'Données démographiques'!AA9 -> 0 | AC9: =B9*'Données démographiques'!P9 -> 97382.3886 | AD9: =B9*'Données démographiques'!P9*ABS('Données démographiques'!AA9-'Données démographiques'!AE9)*'Données démographiques'!$AI$14 -> 0 | AE9: =B9*'Données démographiques'!P9*ABS('Données démographiques'!AA9-'Données démographiques'!AE9)*'Données démographiques'!$AI$15 -> 0 | AF9: =IF('Scénario 2 Facteurs contributif'!F12<>"", B9*'Données démographiques'!R9*'Scénario 2 Facteurs contributif'!F12,B9*'Données démographiques'!R9*'Scénario 3 - Analyse Nut.'!J8) -> 0 | AG9: =IF('Données démographiques'!T9<>"", B9*'Données démographiques'!T9*AF9, "N/A") -> N/A | AH9: =IF('Données démographiques'!S9<>"", B9*'Données démographiques'!S9*AF9, "N/A") -> N/A | AI9: =B9*'Données démographiques'!R9 -> 139117.698 | AJ9: =IF('Scénario 2 Facteurs contributif'!G12<>"", B9*'Données démographiques'!U9*'Scénario 2 Facteurs contributif'!G12,B9*'Données démographiques'!U9*'Scénario 3 - Analyse Nut.'!K8) -> 0 | AK9: =IF('Données démographiques'!V9<>"", B9*'Données démographiques'!V9*AJ9, "N/A") -> N/A | AL9: =IF('Données démographiques'!W9<>"", B9*'Données démographiques'!W9*AJ9, "N/A") -> N/A
A10: ='Données démographiques'!B10 -> Dykundi | B10: ='Données démographiques'!C10 -> 1432624.68 | C10: =B10*('Données démographiques'!D10)*'Données démographiques'!X10 -> 0 | D10: =B10*('Données démographiques'!D10)*'Scénario 2 - Analyse Nut.'!B12 -> 0 | E10: =B10*('Données démographiques'!D10)*'Scénario 2 - Analyse Nut.'!C12 -> 0 | F10: =IF('Données démographiques'!E10<>"",IF(C10<>"",B10*('Données démographiques'!E10)*#REF!, IF(D10<>"", B10*('Données démographiques'!E10)*'Scénario 2 - Analyse Nut.'!B12, IF(E10<>"", B10*('Données démographiques'!E10)*'Scénario 2 - Analyse Nut.'!C12, "N/A"))), "N/A") -> N/A | G10: =IF('Données démographiques'!F10<>"",IF(C10<>"",B10*('Données démographiques'!F10)*#REF!, IF(D10<>"", B10*('Données démographiques'!F10)*'Scénario 2 - Analyse Nut.'!B12, IF(E10<>"", B10*('Données démographiques'!F10)*'Scénario 2 - Analyse Nut.'!C12, "N/A"))), "N/A") -> N/A | H10: =B10*('Données démographiques'!D10) -> 229219.9488 | I10: ='Données démographiques'!AB10*(B10*'Données démographiques'!D10)*'Données démographiques'!$AI$4 -> 0 | J10: ='Données démographiques'!AC10*(B10*'Données démographiques'!D10)*'Données démographiques'!$AI$4 -> 0 | K10: ='Données démographiques'!AD10*(B10*'Données démographiques'!D10)*'Données démographiques'!$AI$4 -> 0 | L10: =IF('Données démographiques'!E10<>"",IF(I10<>"",'Données démographiques'!AB10*(B10*'Données démographiques'!E10)*'Données démographiques'!$AI$4, IF(J10<>"", 'Données démographiques'!AC10*(B10*'Données démographiques'!E10)*'Données démographiques'!$AI$4, IF(K10<>"", 'Données démographiques'!AD10*(B10*'Données démographiques'!E10)*'Données démographiques'!$AI$4, "N/A"))), "N/A") -> N/A | M10: =IF('Données démographiques'!F10<>"",IF(I10<>"",#REF!*(B10*'Données démographiques'!F10)*'Données démographiques'!$AI$4, IF(J10<>"",#REF!*( B10*'Données démographiques'!F10)*'Données démographiques'!$AI$4, IF(K10<>"",#REF!*( B10*'Données démographiques'!F10)*'Données démographiques'!$AI$4, "N/A"))), "N/A") -> N/A | N10: =IF(I10<>"",I10*'Données démographiques'!$AI$6,IF(J10<>"",J10*'Données démographiques'!$AI$6,IF(K10<>"",K10*'Données démographiques'!$AI$6,"Key Values"))) -> 0 | O10: =IF(L10<>"N/A",L10*'Données démographiques'!$AI$6,"N/A") -> N/A | P10: =IF(M10<>"N/A",M10*'Données démographiques'!$AI$6,"N/A") -> N/A | Q10: =IF(I10<>"", 'Données démographiques'!AB10*(B10*ABS('Données démographiques'!D10-'Données démographiques'!G10))*'Données démographiques'!$AI$4*'Données démographiques'!$AI$7, IF(J10<>"", 'Données démographiques'!AC10*(B10*ABS('Données démographiques'!D10-'Données démographiques'!G10))*'Données démographiques'!$AI$4*'Données démographiques'!$AI$7, IF(K10<>"", 'Données démographiques'!AD10*(B10*ABS('Données démographiques'!D10-'Données démographiques'!G10))*'Données démographiques'!$AI$4*'Données démographiques'!$AI$7, "Key Values"))) -> 0 | R10: =IF('Données démographiques'!E10<>"", IF(I10<>"",'Données démographiques'!AB10*(B10*ABS('Données démographiques'!E10-'Données démographiques'!H10))*'Données démographiques'!$AI$4, IF(J10<>"", 'Données démographiques'!AC10*(B10*ABS('Données démographiques'!E10-'Données démographiques'!H10))*'Données démographiques'!$AI$4, IF(K10<>"", 'Données démographiques'!AD10*(B10*ABS('Données démographiques'!E10-'Données démographiques'!H10))*'Données démographiques'!$AI$4, "N/A"))), "N/A") -> N/A | S10: =IF('Données démographiques'!E10<>"", IF(I10<>"",'Données démographiques'!AB10*(B10*ABS('Données démographiques'!F10-'Données démographiques'!I10))*'Données démographiques'!$AI$4, IF(J10<>"", 'Données démographiques'!AC10*(B10*ABS('Données démographiques'!F10-'Données démographiques'!I10))*'Données démographiques'!$AI$4, IF(K10<>"", 'Données démographiques'!AD10*(B10*ABS('Données démographiques'!F10-'Données démographiques'!I10))*'Données démographiques'!$AI$4, "N/A"))), "N/A") -> N/A | T10: =('Données démographiques'!X10-'Données démographiques'!AB10)*(B10*ABS('Données démographiques'!D10-'Données démographiques'!G10)*'Données démographiques'!$AI$5) -> 0 | U10: =ABS('Données démographiques'!Y10-'Données démographiques'!AC10)*(B10*ABS('Données démographiques'!D10-'Données démographiques'!G10))*'Données démographiques'!$AI$5 -> 0 | V10: =ABS('Données démographiques'!Z10-'Données démographiques'!AD10)*(B10*ABS('Données démographiques'!D10-'Données démographiques'!G10)*'Données démographiques'!$AI$5) -> 0 | W10: =IF('Données démographiques'!E10<>"",IF(I10<>"",('Données démographiques'!X10-'Données démographiques'!AB10)*(ABS('Données démographiques'!E10-'Données démographiques'!H10)*B10*'Données démographiques'!D10)*'Données démographiques'!$AI$5, IF(J10<>"", ABS('Données démographiques'!Y10-'Données démographiques'!AC10)*(ABS('Données démographiques'!E10-'Données démographiques'!H10)*B10*'Données démographiques'!D10)*'Données démographiques'!$AI$5, IF(K10<>"", ABS('Données démographiques'!Z10-'Données démographiques'!AD10)*(B10*ABS('Données démographiques'!E10-'Données démographiques'!H10))*'Données démographiques'!$AI$4, "N/A"))), "N/A") -> N/A | X10: =IF('Données démographiques'!F10<>"",IF(J10<>"",('Données démographiques'!X10-'Données démographiques'!AB10)*(ABS('Données démographiques'!F10-'Données démographiques'!I10)*B10*'Données démographiques'!E10)*'Données démographiques'!$AI$5, IF(K10<>"", ABS('Données démographiques'!Y10-'Données démographiques'!AC10)*(ABS('Données démographiques'!F10-'Données démographiques'!I10)*B10*'Données démographiques'!E10)*'Données démographiques'!$AI$5, IF(L10<>"", ABS('Données démographiques'!Z10-'Données démographiques'!AD10)*(B10*ABS('Données démographiques'!F10-'Données démographiques'!I10))*'Données démographiques'!$AI$4, "N/A"))), "N/A") -> N/A | Y10: ='Données démographiques'!M10*'Données démographiques'!C10*'Données démographiques'!$AI$9 -> 0 | Z10: =IF('Données démographiques'!N10<>"",'Données démographiques'!N10*'Données démographiques'!C10*'Données démographiques'!$AI$9,"N/A") -> N/A | AA10: =IF('Données démographiques'!O10<>"",'Données démographiques'!O10*'Données démographiques'!C10*'Données démographiques'!$AI$9,"N/A") -> N/A | AB10: =B10*'Données démographiques'!P10*'Données démographiques'!AA10 -> 0 | AC10: =B10*'Données démographiques'!P10 -> 100283.7276 | AD10: =B10*'Données démographiques'!P10*ABS('Données démographiques'!AA10-'Données démographiques'!AE10)*'Données démographiques'!$AI$14 -> 0 | AE10: =B10*'Données démographiques'!P10*ABS('Données démographiques'!AA10-'Données démographiques'!AE10)*'Données démographiques'!$AI$15 -> 0 | AF10: =IF('Scénario 2 Facteurs contributif'!F13<>"", B10*'Données démographiques'!R10*'Scénario 2 Facteurs contributif'!F13,B10*'Données démographiques'!R10*'Scénario 3 - Analyse Nut.'!J9) -> 0 | AG10: =IF('Données démographiques'!T10<>"", B10*'Données démographiques'!T10*AF10, "N/A") -> N/A | AH10: =IF('Données démographiques'!S10<>"", B10*'Données démographiques'!S10*AF10, "N/A") -> N/A | AI10: =B10*'Données démographiques'!R10 -> 143262.468 | AJ10: =IF('Scénario 2 Facteurs contributif'!G13<>"", B10*'Données démographiques'!U10*'Scénario 2 Facteurs contributif'!G13,B10*'Données démographiques'!U10*'Scénario 3 - Analyse Nut.'!K9) -> 0 | AK10: =IF('Données démographiques'!V10<>"", B10*'Données démographiques'!V10*AJ10, "N/A") -> N/A | AL10: =IF('Données démographiques'!W10<>"", B10*'Données démographiques'!W10*AJ10, "N/A") -> N/A
A11: ='Données démographiques'!B11 -> Farah | B11: ='Données démographiques'!C11 -> 1578877.38 | C11: =B11*('Données démographiques'!D11)*'Données démographiques'!X11 -> 0 | D11: =B11*('Données démographiques'!D11)*'Scénario 2 - Analyse Nut.'!B13 -> 0 | E11: =B11*('Données démographiques'!D11)*'Scénario 2 - Analyse Nut.'!C13 -> 0 | F11: =IF('Données démographiques'!E11<>"",IF(C11<>"",B11*('Données démographiques'!E11)*#REF!, IF(D11<>"", B11*('Données démographiques'!E11)*'Scénario 2 - Analyse Nut.'!B13, IF(E11<>"", B11*('Données démographiques'!E11)*'Scénario 2 - Analyse Nut.'!C13, "N/A"))), "N/A") -> N/A | G11: =IF('Données démographiques'!F11<>"",IF(C11<>"",B11*('Données démographiques'!F11)*#REF!, IF(D11<>"", B11*('Données démographiques'!F11)*'Scénario 2 - Analyse Nut.'!B13, IF(E11<>"", B11*('Données démographiques'!F11)*'Scénario 2 - Analyse Nut.'!C13, "N/A"))), "N/A") -> N/A | H11: =B11*('Données démographiques'!D11) -> 252620.3808 | I11: ='Données démographiques'!AB11*(B11*'Données démographiques'!D11)*'Données démographiques'!$AI$4 -> 0 | J11: ='Données démographiques'!AC11*(B11*'Données démographiques'!D11)*'Données démographiques'!$AI$4 -> 0 | K11: ='Données démographiques'!AD11*(B11*'Données démographiques'!D11)*'Données démographiques'!$AI$4 -> 0 | L11: =IF('Données démographiques'!E11<>"",IF(I11<>"",'Données démographiques'!AB11*(B11*'Données démographiques'!E11)*'Données démographiques'!$AI$4, IF(J11<>"", 'Données démographiques'!AC11*(B11*'Données démographiques'!E11)*'Données démographiques'!$AI$4, IF(K11<>"", 'Données démographiques'!AD11*(B11*'Données démographiques'!E11)*'Données démographiques'!$AI$4, "N/A"))), "N/A") -> N/A | M11: =IF('Données démographiques'!F11<>"",IF(I11<>"",#REF!*(B11*'Données démographiques'!F11)*'Données démographiques'!$AI$4, IF(J11<>"",#REF!*( B11*'Données démographiques'!F11)*'Données démographiques'!$AI$4, IF(K11<>"",#REF!*( B11*'Données démographiques'!F11)*'Données démographiques'!$AI$4, "N/A"))), "N/A") -> N/A | N11: =IF(I11<>"",I11*'Données démographiques'!$AI$6,IF(J11<>"",J11*'Données démographiques'!$AI$6,IF(K11<>"",K11*'Données démographiques'!$AI$6,"Key Values"))) -> 0 | O11: =IF(L11<>"N/A",L11*'Données démographiques'!$AI$6,"N/A") -> N/A | P11: =IF(M11<>"N/A",M11*'Données démographiques'!$AI$6,"N/A") -> N/A | Q11: =IF(I11<>"", 'Données démographiques'!AB11*(B11*ABS('Données démographiques'!D11-'Données démographiques'!G11))*'Données démographiques'!$AI$4*'Données démographiques'!$AI$7, IF(J11<>"", 'Données démographiques'!AC11*(B11*ABS('Données démographiques'!D11-'Données démographiques'!G11))*'Données démographiques'!$AI$4*'Données démographiques'!$AI$7, IF(K11<>"", 'Données démographiques'!AD11*(B11*ABS('Données démographiques'!D11-'Données démographiques'!G11))*'Données démographiques'!$AI$4*'Données démographiques'!$AI$7, "Key Values"))) -> 0 | R11: =IF('Données démographiques'!E11<>"", IF(I11<>"",'Données démographiques'!AB11*(B11*ABS('Données démographiques'!E11-'Données démographiques'!H11))*'Données démographiques'!$AI$4, IF(J11<>"", 'Données démographiques'!AC11*(B11*ABS('Données démographiques'!E11-'Données démographiques'!H11))*'Données démographiques'!$AI$4, IF(K11<>"", 'Données démographiques'!AD11*(B11*ABS('Données démographiques'!E11-'Données démographiques'!H11))*'Données démographiques'!$AI$4, "N/A"))), "N/A") -> N/A | S11: =IF('Données démographiques'!E11<>"", IF(I11<>"",'Données démographiques'!AB11*(B11*ABS('Données démographiques'!F11-'Données démographiques'!I11))*'Données démographiques'!$AI$4, IF(J11<>"", 'Données démographiques'!AC11*(B11*ABS('Données démographiques'!F11-'Données démographiques'!I11))*'Données démographiques'!$AI$4, IF(K11<>"", 'Données démographiques'!AD11*(B11*ABS('Données démographiques'!F11-'Données démographiques'!I11))*'Données démographiques'!$AI$4, "N/A"))), "N/A") -> N/A | T11: =('Données démographiques'!X11-'Données démographiques'!AB11)*(B11*ABS('Données démographiques'!D11-'Données démographiques'!G11)*'Données démographiques'!$AI$5) -> 0 | U11: =ABS('Données démographiques'!Y11-'Données démographiques'!AC11)*(B11*ABS('Données démographiques'!D11-'Données démographiques'!G11))*'Données démographiques'!$AI$5 -> 0 | V11: =ABS('Données démographiques'!Z11-'Données démographiques'!AD11)*(B11*ABS('Données démographiques'!D11-'Données démographiques'!G11)*'Données démographiques'!$AI$5) -> 0 | W11: =IF('Données démographiques'!E11<>"",IF(I11<>"",('Données démographiques'!X11-'Données démographiques'!AB11)*(ABS('Données démographiques'!E11-'Données démographiques'!H11)*B11*'Données démographiques'!D11)*'Données démographiques'!$AI$5, IF(J11<>"", ABS('Données démographiques'!Y11-'Données démographiques'!AC11)*(ABS('Données démographiques'!E11-'Données démographiques'!H11)*B11*'Données démographiques'!D11)*'Données démographiques'!$AI$5, IF(K11<>"", ABS('Données démographiques'!Z11-'Données démographiques'!AD11)*(B11*ABS('Données démographiques'!E11-'Données démographiques'!H11))*'Données démographiques'!$AI$4, "N/A"))), "N/A") -> N/A | X11: =IF('Données démographiques'!F11<>"",IF(J11<>"",('Données démographiques'!X11-'Données démographiques'!AB11)*(ABS('Données démographiques'!F11-'Données démographiques'!I11)*B11*'Données démographiques'!E11)*'Données démographiques'!$AI$5, IF(K11<>"", ABS('Données démographiques'!Y11-'Données démographiques'!AC11)*(ABS('Données démographiques'!F11-'Données démographiques'!I11)*B11*'Données démographiques'!E11)*'Données démographiques'!$AI$5, IF(L11<>"", ABS('Données démographiques'!Z11-'Données démographiques'!AD11)*(B11*ABS('Données démographiques'!F11-'Données démographiques'!I11))*'Données démographiques'!$AI$4, "N/A"))), "N/A") -> N/A | Y11: ='Données démographiques'!M11*'Données démographiques'!C11*'Données démographiques'!$AI$9 -> 0 | Z11: =IF('Données démographiques'!N11<>"",'Données démographiques'!N11*'Données démographiques'!C11*'Données démographiques'!$AI$9,"N/A") -> N/A | AA11: =IF('Données démographiques'!O11<>"",'Données démographiques'!O11*'Données démographiques'!C11*'Données démographiques'!$AI$9,"N/A") -> N/A | AB11: =B11*'Données démographiques'!P11*'Données démographiques'!AA11 -> 0 | AC11: =B11*'Données démographiques'!P11 -> 110521.4166 | AD11: =B11*'Données démographiques'!P11*ABS('Données démographiques'!AA11-'Données démographiques'!AE11)*'Données démographiques'!$AI$14 -> 0 | AE11: =B11*'Données démographiques'!P11*ABS('Données démographiques'!AA11-'Données démographiques'!AE11)*'Données démographiques'!$AI$15 -> 0 | AF11: =IF('Scénario 2 Facteurs contributif'!F14<>"", B11*'Données démographiques'!R11*'Scénario 2 Facteurs contributif'!F14,B11*'Données démographiques'!R11*'Scénario 3 - Analyse Nut.'!J10) -> 0 | AG11: =IF('Données démographiques'!T11<>"", B11*'Données démographiques'!T11*AF11, "N/A") -> N/A | AH11: =IF('Données démographiques'!S11<>"", B11*'Données démographiques'!S11*AF11, "N/A") -> N/A | AI11: =B11*'Données démographiques'!R11 -> 157887.738 | AJ11: =IF('Scénario 2 Facteurs contributif'!G14<>"", B11*'Données démographiques'!U11*'Scénario 2 Facteurs contributif'!G14,B11*'Données démographiques'!U11*'Scénario 3 - Analyse Nut.'!K10) -> 0 | AK11: =IF('Données démographiques'!V11<>"", B11*'Données démographiques'!V11*AJ11, "N/A") -> N/A | AL11: =IF('Données démographiques'!W11<>"", B11*'Données démographiques'!W11*AJ11, "N/A") -> N/A
A12: ='Données démographiques'!B12 -> Faryab | B12: ='Données démographiques'!C12 -> 3106925.1 | C12: =B12*('Données démographiques'!D12)*'Données démographiques'!X12 -> 0 | D12: =B12*('Données démographiques'!D12)*'Scénario 2 - Analyse Nut.'!B14 -> 0 | E12: =B12*('Données démographiques'!D12)*'Scénario 2 - Analyse Nut.'!C14 -> 0 | F12: =IF('Données démographiques'!E12<>"",IF(C12<>"",B12*('Données démographiques'!E12)*#REF!, IF(D12<>"", B12*('Données démographiques'!E12)*'Scénario 2 - Analyse Nut.'!B14, IF(E12<>"", B12*('Données démographiques'!E12)*'Scénario 2 - Analyse Nut.'!C14, "N/A"))), "N/A") -> N/A | G12: =IF('Données démographiques'!F12<>"",IF(C12<>"",B12*('Données démographiques'!F12)*#REF!, IF(D12<>"", B12*('Données démographiques'!F12)*'Scénario 2 - Analyse Nut.'!B14, IF(E12<>"", B12*('Données démographiques'!F12)*'Scénario 2 - Analyse Nut.'!C14, "N/A"))), "N/A") -> N/A | H12: =B12*('Données démographiques'!D12) -> 497108.016 | I12: ='Données démographiques'!AB12*(B12*'Données démographiques'!D12)*'Données démographiques'!$AI$4 -> 0 | J12: ='Données démographiques'!AC12*(B12*'Données démographiques'!D12)*'Données démographiques'!$AI$4 -> 0 | K12: ='Données démographiques'!AD12*(B12*'Données démographiques'!D12)*'Données démographiques'!$AI$4 -> 0 | L12: =IF('Données démographiques'!E12<>"",IF(I12<>"",'Données démographiques'!AB12*(B12*'Données démographiques'!E12)*'Données démographiques'!$AI$4, IF(J12<>"", 'Données démographiques'!AC12*(B12*'Données démographiques'!E12)*'Données démographiques'!$AI$4, IF(K12<>"", 'Données démographiques'!AD12*(B12*'Données démographiques'!E12)*'Données démographiques'!$AI$4, "N/A"))), "N/A") -> N/A | M12: =IF('Données démographiques'!F12<>"",IF(I12<>"",#REF!*(B12*'Données démographiques'!F12)*'Données démographiques'!$AI$4, IF(J12<>"",#REF!*( B12*'Données démographiques'!F12)*'Données démographiques'!$AI$4, IF(K12<>"",#REF!*( B12*'Données démographiques'!F12)*'Données démographiques'!$AI$4, "N/A"))), "N/A") -> N/A | N12: =IF(I12<>"",I12*'Données démographiques'!$AI$6,IF(J12<>"",J12*'Données démographiques'!$AI$6,IF(K12<>"",K12*'Données démographiques'!$AI$6,"Key Values"))) -> 0 | O12: =IF(L12<>"N/A",L12*'Données démographiques'!$AI$6,"N/A") -> N/A | P12: =IF(M12<>"N/A",M12*'Données démographiques'!$AI$6,"N/A") -> N/A | Q12: =IF(I12<>"", 'Données démographiques'!AB12*(B12*ABS('Données démographiques'!D12-'Données démographiques'!G12))*'Données démographiques'!$AI$4*'Données démographiques'!$AI$7, IF(J12<>"", 'Données démographiques'!AC12*(B12*ABS('Données démographiques'!D12-'Données démographiques'!G12))*'Données démographiques'!$AI$4*'Données démographiques'!$AI$7, IF(K12<>"", 'Données démographiques'!AD12*(B12*ABS('Données démographiques'!D12-'Données démographiques'!G12))*'Données démographiques'!$AI$4*'Données démographiques'!$AI$7, "Key Values"))) -> 0 | R12: =IF('Données démographiques'!E12<>"", IF(I12<>"",'Données démographiques'!AB12*(B12*ABS('Données démographiques'!E12-'Données démographiques'!H12))*'Données démographiques'!$AI$4, IF(J12<>"", 'Données démographiques'!AC12*(B12*ABS('Données démographiques'!E12-'Données démographiques'!H12))*'Données démographiques'!$AI$4, IF(K12<>"", 'Données démographiques'!AD12*(B12*ABS('Données démographiques'!E12-'Données démographiques'!H12))*'Données démographiques'!$AI$4, "N/A"))), "N/A") -> N/A | S12: =IF('Données démographiques'!E12<>"", IF(I12<>"",'Données démographiques'!AB12*(B12*ABS('Données démographiques'!F12-'Données démographiques'!I12))*'Données démographiques'!$AI$4, IF(J12<>"", 'Données démographiques'!AC12*(B12*ABS('Données démographiques'!F12-'Données démographiques'!I12))*'Données démographiques'!$AI$4, IF(K12<>"", 'Données démographiques'!AD12*(B12*ABS('Données démographiques'!F12-'Données démographiques'!I12))*'Données démographiques'!$AI$4, "N/A"))), "N/A") -> N/A | T12: =('Données démographiques'!X12-'Données démographiques'!AB12)*(B12*ABS('Données démographiques'!D12-'Données démographiques'!G12)*'Données démographiques'!$AI$5) -> 0 | U12: =ABS('Données démographiques'!Y12-'Données démographiques'!AC12)*(B12*ABS('Données démographiques'!D12-'Données démographiques'!G12))*'Données démographiques'!$AI$5 -> 0 | V12: =ABS('Données démographiques'!Z12-'Données démographiques'!AD12)*(B12*ABS('Données démographiques'!D12-'Données démographiques'!G12)*'Données démographiques'!$AI$5) -> 0 | W12: =IF('Données démographiques'!E12<>"",IF(I12<>"",('Données démographiques'!X12-'Données démographiques'!AB12)*(ABS('Données démographiques'!E12-'Données démographiques'!H12)*B12*'Données démographiques'!D12)*'Données démographiques'!$AI$5, IF(J12<>"", ABS('Données démographiques'!Y12-'Données démographiques'!AC12)*(ABS('Données démographiques'!E12-'Données démographiques'!H12)*B12*'Données démographiques'!D12)*'Données démographiques'!$AI$5, IF(K12<>"", ABS('Données démographiques'!Z12-'Données démographiques'!AD12)*(B12*ABS('Données démographiques'!E12-'Données démographiques'!H12))*'Données démographiques'!$AI$4, "N/A"))), "N/A") -> N/A | X12: =IF('Données démographiques'!F12<>"",IF(J12<>"",('Données démographiques'!X12-'Données démographiques'!AB12)*(ABS('Données démographiques'!F12-'Données démographiques'!I12)*B12*'Données démographiques'!E12)*'Données démographiques'!$AI$5, IF(K12<>"", ABS('Données démographiques'!Y12-'Données démographiques'!AC12)*(ABS('Données démographiques'!F12-'Données démographiques'!I12)*B12*'Données démographiques'!E12)*'Données démographiques'!$AI$5, IF(L12<>"", ABS('Données démographiques'!Z12-'Données démographiques'!AD12)*(B12*ABS('Données démographiques'!F12-'Données démographiques'!I12))*'Données démographiques'!$AI$4, "N/A"))), "N/A") -> N/A | Y12: ='Données démographiques'!M12*'Données démographiques'!C12*'Données démographiques'!$AI$9 -> 0 | Z12: =IF('Données démographiques'!N12<>"",'Données démographiques'!N12*'Données démographiques'!C12*'Données démographiques'!$AI$9,"N/A") -> N/A | AA12: =IF('Données démographiques'!O12<>"",'Données démographiques'!O12*'Données démographiques'!C12*'Données démographiques'!$AI$9,"N/A") -> N/A | AB12: =B12*'Données démographiques'!P12*'Données démographiques'!AA12 -> 0 | AC12: =B12*'Données démographiques'!P12 -> 217484.757 | AD12: =B12*'Données démographiques'!P12*ABS('Données démographiques'!AA12-'Données démographiques'!AE12)*'Données démographiques'!$AI$14 -> 0 | AE12: =B12*'Données démographiques'!P12*ABS('Données démographiques'!AA12-'Données démographiques'!AE12)*'Données démographiques'!$AI$15 -> 0 | AF12: =IF('Scénario 2 Facteurs contributif'!F15<>"", B12*'Données démographiques'!R12*'Scénario 2 Facteurs contributif'!F15,B12*'Données démographiques'!R12*'Scénario 3 - Analyse Nut.'!J11) -> 0 | AG12: =IF('Données démographiques'!T12<>"", B12*'Données démographiques'!T12*AF12, "N/A") -> N/A | AH12: =IF('Données démographiques'!S12<>"", B12*'Données démographiques'!S12*AF12, "N/A") -> N/A | AI12: =B12*'Données démographiques'!R12 -> 310692.51 | AJ12: =IF('Scénario 2 Facteurs contributif'!G15<>"", B12*'Données démographiques'!U12*'Scénario 2 Facteurs contributif'!G15,B12*'Données démographiques'!U12*'Scénario 3 - Analyse Nut.'!K11) -> 0 | AK12: =IF('Données démographiques'!V12<>"", B12*'Données démographiques'!V12*AJ12, "N/A") -> N/A | AL12: =IF('Données démographiques'!W12<>"", B12*'Données démographiques'!W12*AJ12, "N/A") -> N/A
A13: ='Données démographiques'!B13 -> Ghazni | B13: ='Données démographiques'!C13 -> 3823090.56 | C13: =B13*('Données démographiques'!D13)*'Données démographiques'!X13 -> 0 | D13: =B13*('Données démographiques'!D13)*'Scénario 2 - Analyse Nut.'!B15 -> 0 | E13: =B13*('Données démographiques'!D13)*'Scénario 2 - Analyse Nut.'!C15 -> 0 | F13: =IF('Données démographiques'!E13<>"",IF(C13<>"",B13*('Données démographiques'!E13)*#REF!, IF(D13<>"", B13*('Données démographiques'!E13)*'Scénario 2 - Analyse Nut.'!B15, IF(E13<>"", B13*('Données démographiques'!E13)*'Scénario 2 - Analyse Nut.'!C15, "N/A"))), "N/A") -> N/A | G13: =IF('Données démographiques'!F13<>"",IF(C13<>"",B13*('Données démographiques'!F13)*#REF!, IF(D13<>"", B13*('Données démographiques'!F13)*'Scénario 2 - Analyse Nut.'!B15, IF(E13<>"", B13*('Données démographiques'!F13)*'Scénario 2 - Analyse Nut.'!C15, "N/A"))), "N/A") -> N/A | H13: =B13*('Données démographiques'!D13) -> 611694.4896 | I13: ='Données démographiques'!AB13*(B13*'Données démographiques'!D13)*'Données démographiques'!$AI$4 -> 0 | J13: ='Données démographiques'!AC13*(B13*'Données démographiques'!D13)*'Données démographiques'!$AI$4 -> 0 | K13: ='Données démographiques'!AD13*(B13*'Données démographiques'!D13)*'Données démographiques'!$AI$4 -> 0 | L13: =IF('Données démographiques'!E13<>"",IF(I13<>"",'Données démographiques'!AB13*(B13*'Données démographiques'!E13)*'Données démographiques'!$AI$4, IF(J13<>"", 'Données démographiques'!AC13*(B13*'Données démographiques'!E13)*'Données démographiques'!$AI$4, IF(K13<>"", 'Données démographiques'!AD13*(B13*'Données démographiques'!E13)*'Données démographiques'!$AI$4, "N/A"))), "N/A") -> N/A | M13: =IF('Données démographiques'!F13<>"",IF(I13<>"",#REF!*(B13*'Données démographiques'!F13)*'Données démographiques'!$AI$4, IF(J13<>"",#REF!*( B13*'Données démographiques'!F13)*'Données démographiques'!$AI$4, IF(K13<>"",#REF!*( B13*'Données démographiques'!F13)*'Données démographiques'!$AI$4, "N/A"))), "N/A") -> N/A | N13: =IF(I13<>"",I13*'Données démographiques'!$AI$6,IF(J13<>"",J13*'Données démographiques'!$AI$6,IF(K13<>"",K13*'Données démographiques'!$AI$6,"Key Values"))) -> 0 | O13: =IF(L13<>"N/A",L13*'Données démographiques'!$AI$6,"N/A") -> N/A | P13: =IF(M13<>"N/A",M13*'Données démographiques'!$AI$6,"N/A") -> N/A | Q13: =IF(I13<>"", 'Données démographiques'!AB13*(B13*ABS('Données démographiques'!D13-'Données démographiques'!G13))*'Données démographiques'!$AI$4*'Données démographiques'!$AI$7, IF(J13<>"", 'Données démographiques'!AC13*(B13*ABS('Données démographiques'!D13-'Données démographiques'!G13))*'Données démographiques'!$AI$4*'Données démographiques'!$AI$7, IF(K13<>"", 'Données démographiques'!AD13*(B13*ABS('Données démographiques'!D13-'Données démographiques'!G13))*'Données démographiques'!$AI$4*'Données démographiques'!$AI$7, "Key Values"))) -> 0 | R13: =IF('Données démographiques'!E13<>"", IF(I13<>"",'Données démographiques'!AB13*(B13*ABS('Données démographiques'!E13-'Données démographiques'!H13))*'Données démographiques'!$AI$4, IF(J13<>"", 'Données démographiques'!AC13*(B13*ABS('Données démographiques'!E13-'Données démographiques'!H13))*'Données démographiques'!$AI$4, IF(K13<>"", 'Données démographiques'!AD13*(B13*ABS('Données démographiques'!E13-'Données démographiques'!H13))*'Données démographiques'!$AI$4, "N/A"))), "N/A") -> N/A | S13: =IF('Données démographiques'!E13<>"", IF(I13<>"",'Données démographiques'!AB13*(B13*ABS('Données démographiques'!F13-'Données démographiques'!I13))*'Données démographiques'!$AI$4, IF(J13<>"", 'Données démographiques'!AC13*(B13*ABS('Données démographiques'!F13-'Données démographiques'!I13))*'Données démographiques'!$AI$4, IF(K13<>"", 'Données démographiques'!AD13*(B13*ABS('Données démographiques'!F13-'Données démographiques'!I13))*'Données démographiques'!$AI$4, "N/A"))), "N/A") -> N/A | T13: =('Données démographiques'!X13-'Données démographiques'!AB13)*(B13*ABS('Données démographiques'!D13-'Données démographiques'!G13)*'Données démographiques'!$AI$5) -> 0 | U13: =ABS('Données démographiques'!Y13-'Données démographiques'!AC13)*(B13*ABS('Données démographiques'!D13-'Données démographiques'!G13))*'Données démographiques'!$AI$5 -> 0 | V13: =ABS('Données démographiques'!Z13-'Données démographiques'!AD13)*(B13*ABS('Données démographiques'!D13-'Données démographiques'!G13)*'Données démographiques'!$AI$5) -> 0 | W13: =IF('Données démographiques'!E13<>"",IF(I13<>"",('Données démographiques'!X13-'Données démographiques'!AB13)*(ABS('Données démographiques'!E13-'Données démographiques'!H13)*B13*'Données démographiques'!D13)*'Données démographiques'!$AI$5, IF(J13<>"", ABS('Données démographiques'!Y13-'Données démographiques'!AC13)*(ABS('Données démographiques'!E13-'Données démographiques'!H13)*B13*'Données démographiques'!D13)*'Données démographiques'!$AI$5, IF(K13<>"", ABS('Données démographiques'!Z13-'Données démographiques'!AD13)*(B13*ABS('Données démographiques'!E13-'Données démographiques'!H13))*'Données démographiques'!$AI$4, "N/A"))), "N/A") -> N/A | X13: =IF('Données démographiques'!F13<>"",IF(J13<>"",('Données démographiques'!X13-'Données démographiques'!AB13)*(ABS('Données démographiques'!F13-'Données démographiques'!I13)*B13*'Données démographiques'!E13)*'Données démographiques'!$AI$5, IF(K13<>"", ABS('Données démographiques'!Y13-'Données démographiques'!AC13)*(ABS('Données démographiques'!F13-'Données démographiques'!I13)*B13*'Données démographiques'!E13)*'Données démographiques'!$AI$5, IF(L13<>"", ABS('Données démographiques'!Z13-'Données démographiques'!AD13)*(B13*ABS('Données démographiques'!F13-'Données démographiques'!I13))*'Données démographiques'!$AI$4, "N/A"))), "N/A") -> N/A | Y13: ='Données démographiques'!M13*'Données démographiques'!C13*'Données démographiques'!$AI$9 -> 0 | Z13: =IF('Données démographiques'!N13<>"",'Données démographiques'!N13*'Données démographiques'!C13*'Données démographiques'!$AI$9,"N/A") -> N/A | AA13: =IF('Données démographiques'!O13<>"",'Données démographiques'!O13*'Données démographiques'!C13*'Données démographiques'!$AI$9,"N/A") -> N/A | AB13: =B13*'Données démographiques'!P13*'Données démographiques'!AA13 -> 0 | AC13: =B13*'Données démographiques'!P13 -> 267616.3392 | AD13: =B13*'Données démographiques'!P13*ABS('Données démographiques'!AA13-'Données démographiques'!AE13)*'Données démographiques'!$AI$14 -> 0 | AE13: =B13*'Données démographiques'!P13*ABS('Données démographiques'!AA13-'Données démographiques'!AE13)*'Données démographiques'!$AI$15 -> 0 | AF13: =IF('Scénario 2 Facteurs contributif'!F16<>"", B13*'Données démographiques'!R13*'Scénario 2 Facteurs contributif'!F16,B13*'Données démographiques'!R13*'Scénario 3 - Analyse Nut.'!J12) -> 0 | AG13: =IF('Données démographiques'!T13<>"", B13*'Données démographiques'!T13*AF13, "N/A") -> N/A | AH13: =IF('Données démographiques'!S13<>"", B13*'Données démographiques'!S13*AF13, "N/A") -> N/A | AI13: =B13*'Données démographiques'!R13 -> 382309.056 | AJ13: =IF('Scénario 2 Facteurs contributif'!G16<>"", B13*'Données démographiques'!U13*'Scénario 2 Facteurs contributif'!G16,B13*'Données démographiques'!U13*'Scénario 3 - Analyse Nut.'!K12) -> 0 | AK13: =IF('Données démographiques'!V13<>"", B13*'Données démographiques'!V13*AJ13, "N/A") -> N/A | AL13: =IF('Données démographiques'!W13<>"", B13*'Données démographiques'!W13*AJ13, "N/A") -> N/A
A14: ='Données démographiques'!B14 -> Ghor | B14: ='Données démographiques'!C14 -> 2147058.18 | C14: =B14*('Données démographiques'!D14)*'Données démographiques'!X14 -> 0 | D14: =B14*('Données démographiques'!D14)*'Scénario 2 - Analyse Nut.'!B16 -> 0 | E14: =B14*('Données démographiques'!D14)*'Scénario 2 - Analyse Nut.'!C16 -> 0 | F14: =IF('Données démographiques'!E14<>"",IF(C14<>"",B14*('Données démographiques'!E14)*#REF!, IF(D14<>"", B14*('Données démographiques'!E14)*'Scénario 2 - Analyse Nut.'!B16, IF(E14<>"", B14*('Données démographiques'!E14)*'Scénario 2 - Analyse Nut.'!C16, "N/A"))), "N/A") -> N/A | G14: =IF('Données démographiques'!F14<>"",IF(C14<>"",B14*('Données démographiques'!F14)*#REF!, IF(D14<>"", B14*('Données démographiques'!F14)*'Scénario 2 - Analyse Nut.'!B16, IF(E14<>"", B14*('Données démographiques'!F14)*'Scénario 2 - Analyse Nut.'!C16, "N/A"))), "N/A") -> N/A | H14: =B14*('Données démographiques'!D14) -> 343529.3088 | I14: ='Données démographiques'!AB14*(B14*'Données démographiques'!D14)*'Données démographiques'!$AI$4 -> 0 | J14: ='Données démographiques'!AC14*(B14*'Données démographiques'!D14)*'Données démographiques'!$AI$4 -> 0 | K14: ='Données démographiques'!AD14*(B14*'Données démographiques'!D14)*'Données démographiques'!$AI$4 -> 0 | L14: =IF('Données démographiques'!E14<>"",IF(I14<>"",'Données démographiques'!AB14*(B14*'Données démographiques'!E14)*'Données démographiques'!$AI$4, IF(J14<>"", 'Données démographiques'!AC14*(B14*'Données démographiques'!E14)*'Données démographiques'!$AI$4, IF(K14<>"", 'Données démographiques'!AD14*(B14*'Données démographiques'!E14)*'Données démographiques'!$AI$4, "N/A"))), "N/A") -> N/A | M14: =IF('Données démographiques'!F14<>"",IF(I14<>"",#REF!*(B14*'Données démographiques'!F14)*'Données démographiques'!$AI$4, IF(J14<>"",#REF!*( B14*'Données démographiques'!F14)*'Données démographiques'!$AI$4, IF(K14<>"",#REF!*( B14*'Données démographiques'!F14)*'Données démographiques'!$AI$4, "N/A"))), "N/A") -> N/A | N14: =IF(I14<>"",I14*'Données démographiques'!$AI$6,IF(J14<>"",J14*'Données démographiques'!$AI$6,IF(K14<>"",K14*'Données démographiques'!$AI$6,"Key Values"))) -> 0 | O14: =IF(L14<>"N/A",L14*'Données démographiques'!$AI$6,"N/A") -> N/A | P14: =IF(M14<>"N/A",M14*'Données démographiques'!$AI$6,"N/A") -> N/A | Q14: =IF(I14<>"", 'Données démographiques'!AB14*(B14*ABS('Données démographiques'!D14-'Données démographiques'!G14))*'Données démographiques'!$AI$4*'Données démographiques'!$AI$7, IF(J14<>"", 'Données démographiques'!AC14*(B14*ABS('Données démographiques'!D14-'Données démographiques'!G14))*'Données démographiques'!$AI$4*'Données démographiques'!$AI$7, IF(K14<>"", 'Données démographiques'!AD14*(B14*ABS('Données démographiques'!D14-'Données démographiques'!G14))*'Données démographiques'!$AI$4*'Données démographiques'!$AI$7, "Key Values"))) -> 0 | R14: =IF('Données démographiques'!E14<>"", IF(I14<>"",'Données démographiques'!AB14*(B14*ABS('Données démographiques'!E14-'Données démographiques'!H14))*'Données démographiques'!$AI$4, IF(J14<>"", 'Données démographiques'!AC14*(B14*ABS('Données démographiques'!E14-'Données démographiques'!H14))*'Données démographiques'!$AI$4, IF(K14<>"", 'Données démographiques'!AD14*(B14*ABS('Données démographiques'!E14-'Données démographiques'!H14))*'Données démographiques'!$AI$4, "N/A"))), "N/A") -> N/A | S14: =IF('Données démographiques'!E14<>"", IF(I14<>"",'Données démographiques'!AB14*(B14*ABS('Données démographiques'!F14-'Données démographiques'!I14))*'Données démographiques'!$AI$4, IF(J14<>"", 'Données démographiques'!AC14*(B14*ABS('Données démographiques'!F14-'Données démographiques'!I14))*'Données démographiques'!$AI$4, IF(K14<>"", 'Données démographiques'!AD14*(B14*ABS('Données démographiques'!F14-'Données démographiques'!I14))*'Données démographiques'!$AI$4, "N/A"))), "N/A") -> N/A | T14: =('Données démographiques'!X14-'Données démographiques'!AB14)*(B14*ABS('Données démographiques'!D14-'Données démographiques'!G14)*'Données démographiques'!$AI$5) -> 0 | U14: =ABS('Données démographiques'!Y14-'Données démographiques'!AC14)*(B14*ABS('Données démographiques'!D14-'Données démographiques'!G14))*'Données démographiques'!$AI$5 -> 0 | V14: =ABS('Données démographiques'!Z14-'Données démographiques'!AD14)*(B14*ABS('Données démographiques'!D14-'Données démographiques'!G14)*'Données démographiques'!$AI$5) -> 0 | W14: =IF('Données démographiques'!E14<>"",IF(I14<>"",('Données démographiques'!X14-'Données démographiques'!AB14)*(ABS('Données démographiques'!E14-'Données démographiques'!H14)*B14*'Données démographiques'!D14)*'Données démographiques'!$AI$5, IF(J14<>"", ABS('Données démographiques'!Y14-'Données démographiques'!AC14)*(ABS('Données démographiques'!E14-'Données démographiques'!H14)*B14*'Données démographiques'!D14)*'Données démographiques'!$AI$5, IF(K14<>"", ABS('Données démographiques'!Z14-'Données démographiques'!AD14)*(B14*ABS('Données démographiques'!E14-'Données démographiques'!H14))*'Données démographiques'!$AI$4, "N/A"))), "N/A") -> N/A | X14: =IF('Données démographiques'!F14<>"",IF(J14<>"",('Données démographiques'!X14-'Données démographiques'!AB14)*(ABS('Données démographiques'!F14-'Données démographiques'!I14)*B14*'Données démographiques'!E14)*'Données démographiques'!$AI$5, IF(K14<>"", ABS('Données démographiques'!Y14-'Données démographiques'!AC14)*(ABS('Données démographiques'!F14-'Données démographiques'!I14)*B14*'Données démographiques'!E14)*'Données démographiques'!$AI$5, IF(L14<>"", ABS('Données démographiques'!Z14-'Données démographiques'!AD14)*(B14*ABS('Données démographiques'!F14-'Données démographiques'!I14))*'Données démographiques'!$AI$4, "N/A"))), "N/A") -> N/A | Y14: ='Données démographiques'!M14*'Données démographiques'!C14*'Données démographiques'!$AI$9 -> 0 | Z14: =IF('Données démographiques'!N14<>"",'Données démographiques'!N14*'Données démographiques'!C14*'Données démographiques'!$AI$9,"N/A") -> N/A | AA14: =IF('Données démographiques'!O14<>"",'Données démographiques'!O14*'Données démographiques'!C14*'Données démographiques'!$AI$9,"N/A") -> N/A | AB14: =B14*'Données démographiques'!P14*'Données démographiques'!AA14 -> 0 | AC14: =B14*'Données démographiques'!P14 -> 150294.0726 | AD14: =B14*'Données démographiques'!P14*ABS('Données démographiques'!AA14-'Données démographiques'!AE14)*'Données démographiques'!$AI$14 -> 0 | AE14: =B14*'Données démographiques'!P14*ABS('Données démographiques'!AA14-'Données démographiques'!AE14)*'Données démographiques'!$AI$15 -> 0 | AF14: =IF('Scénario 2 Facteurs contributif'!F17<>"", B14*'Données démographiques'!R14*'Scénario 2 Facteurs contributif'!F17,B14*'Données démographiques'!R14*'Scénario 3 - Analyse Nut.'!J13) -> 0 | AG14: =IF('Données démographiques'!T14<>"", B14*'Données démographiques'!T14*AF14, "N/A") -> N/A | AH14: =IF('Données démographiques'!S14<>"", B14*'Données démographiques'!S14*AF14, "N/A") -> N/A | AI14: =B14*'Données démographiques'!R14 -> 214705.818 | AJ14: =IF('Scénario 2 Facteurs contributif'!G17<>"", B14*'Données démographiques'!U14*'Scénario 2 Facteurs contributif'!G17,B14*'Données démographiques'!U14*'Scénario 3 - Analyse Nut.'!K13) -> 0 | AK14: =IF('Données démographiques'!V14<>"", B14*'Données démographiques'!V14*AJ14, "N/A") -> N/A | AL14: =IF('Données démographiques'!W14<>"", B14*'Données démographiques'!W14*AJ14, "N/A") -> N/A
A15: ='Données démographiques'!B15 -> Helmand | B15: ='Données démographiques'!C15 -> 2877125.22 | C15: =B15*('Données démographiques'!D15)*'Données démographiques'!X15 -> 0 | D15: =B15*('Données démographiques'!D15)*'Scénario 2 - Analyse Nut.'!B17 -> 0 | E15: =B15*('Données démographiques'!D15)*'Scénario 2 - Analyse Nut.'!C17 -> 0 | F15: =IF('Données démographiques'!E15<>"",IF(C15<>"",B15*('Données démographiques'!E15)*#REF!, IF(D15<>"", B15*('Données démographiques'!E15)*'Scénario 2 - Analyse Nut.'!B17, IF(E15<>"", B15*('Données démographiques'!E15)*'Scénario 2 - Analyse Nut.'!C17, "N/A"))), "N/A") -> N/A | G15: =IF('Données démographiques'!F15<>"",IF(C15<>"",B15*('Données démographiques'!F15)*#REF!, IF(D15<>"", B15*('Données démographiques'!F15)*'Scénario 2 - Analyse Nut.'!B17, IF(E15<>"", B15*('Données démographiques'!F15)*'Scénario 2 - Analyse Nut.'!C17, "N/A"))), "N/A") -> N/A | H15: =B15*('Données démographiques'!D15) -> 460340.0352 | I15: ='Données démographiques'!AB15*(B15*'Données démographiques'!D15)*'Données démographiques'!$AI$4 -> 0 | J15: ='Données démographiques'!AC15*(B15*'Données démographiques'!D15)*'Données démographiques'!$AI$4 -> 0 | K15: ='Données démographiques'!AD15*(B15*'Données démographiques'!D15)*'Données démographiques'!$AI$4 -> 0 | L15: =IF('Données démographiques'!E15<>"",IF(I15<>"",'Données démographiques'!AB15*(B15*'Données démographiques'!E15)*'Données démographiques'!$AI$4, IF(J15<>"", 'Données démographiques'!AC15*(B15*'Données démographiques'!E15)*'Données démographiques'!$AI$4, IF(K15<>"", 'Données démographiques'!AD15*(B15*'Données démographiques'!E15)*'Données démographiques'!$AI$4, "N/A"))), "N/A") -> N/A | M15: =IF('Données démographiques'!F15<>"",IF(I15<>"",#REF!*(B15*'Données démographiques'!F15)*'Données démographiques'!$AI$4, IF(J15<>"",#REF!*( B15*'Données démographiques'!F15)*'Données démographiques'!$AI$4, IF(K15<>"",#REF!*( B15*'Données démographiques'!F15)*'Données démographiques'!$AI$4, "N/A"))), "N/A") -> N/A | N15: =IF(I15<>"",I15*'Données démographiques'!$AI$6,IF(J15<>"",J15*'Données démographiques'!$AI$6,IF(K15<>"",K15*'Données démographiques'!$AI$6,"Key Values"))) -> 0 | O15: =IF(L15<>"N/A",L15*'Données démographiques'!$AI$6,"N/A") -> N/A | P15: =IF(M15<>"N/A",M15*'Données démographiques'!$AI$6,"N/A") -> N/A | Q15: =IF(I15<>"", 'Données démographiques'!AB15*(B15*ABS('Données démographiques'!D15-'Données démographiques'!G15))*'Données démographiques'!$AI$4*'Données démographiques'!$AI$7, IF(J15<>"", 'Données démographiques'!AC15*(B15*ABS('Données démographiques'!D15-'Données démographiques'!G15))*'Données démographiques'!$AI$4*'Données démographiques'!$AI$7, IF(K15<>"", 'Données démographiques'!AD15*(B15*ABS('Données démographiques'!D15-'Données démographiques'!G15))*'Données démographiques'!$AI$4*'Données démographiques'!$AI$7, "Key Values"))) -> 0 | R15: =IF('Données démographiques'!E15<>"", IF(I15<>"",'Données démographiques'!AB15*(B15*ABS('Données démographiques'!E15-'Données démographiques'!H15))*'Données démographiques'!$AI$4, IF(J15<>"", 'Données démographiques'!AC15*(B15*ABS('Données démographiques'!E15-'Données démographiques'!H15))*'Données démographiques'!$AI$4, IF(K15<>"", 'Données démographiques'!AD15*(B15*ABS('Données démographiques'!E15-'Données démographiques'!H15))*'Données démographiques'!$AI$4, "N/A"))), "N/A") -> N/A | S15: =IF('Données démographiques'!E15<>"", IF(I15<>"",'Données démographiques'!AB15*(B15*ABS('Données démographiques'!F15-'Données démographiques'!I15))*'Données démographiques'!$AI$4, IF(J15<>"", 'Données démographiques'!AC15*(B15*ABS('Données démographiques'!F15-'Données démographiques'!I15))*'Données démographiques'!$AI$4, IF(K15<>"", 'Données démographiques'!AD15*(B15*ABS('Données démographiques'!F15-'Données démographiques'!I15))*'Données démographiques'!$AI$4, "N/A"))), "N/A") -> N/A | T15: =('Données démographiques'!X15-'Données démographiques'!AB15)*(B15*ABS('Données démographiques'!D15-'Données démographiques'!G15)*'Données démographiques'!$AI$5) -> 0 | U15: =ABS('Données démographiques'!Y15-'Données démographiques'!AC15)*(B15*ABS('Données démographiques'!D15-'Données démographiques'!G15))*'Données démographiques'!$AI$5 -> 0 | V15: =ABS('Données démographiques'!Z15-'Données démographiques'!AD15)*(B15*ABS('Données démographiques'!D15-'Données démographiques'!G15)*'Données démographiques'!$AI$5) -> 0 | W15: =IF('Données démographiques'!E15<>"",IF(I15<>"",('Données démographiques'!X15-'Données démographiques'!AB15)*(ABS('Données démographiques'!E15-'Données démographiques'!H15)*B15*'Données démographiques'!D15)*'Données démographiques'!$AI$5, IF(J15<>"", ABS('Données démographiques'!Y15-'Données démographiques'!AC15)*(ABS('Données démographiques'!E15-'Données démographiques'!H15)*B15*'Données démographiques'!D15)*'Données démographiques'!$AI$5, IF(K15<>"", ABS('Données démographiques'!Z15-'Données démographiques'!AD15)*(B15*ABS('Données démographiques'!E15-'Données démographiques'!H15))*'Données démographiques'!$AI$4, "N/A"))), "N/A") -> N/A | X15: =IF('Données démographiques'!F15<>"",IF(J15<>"",('Données démographiques'!X15-'Données démographiques'!AB15)*(ABS('Données démographiques'!F15-'Données démographiques'!I15)*B15*'Données démographiques'!E15)*'Données démographiques'!$AI$5, IF(K15<>"", ABS('Données démographiques'!Y15-'Données démographiques'!AC15)*(ABS('Données démographiques'!F15-'Données démographiques'!I15)*B15*'Données démographiques'!E15)*'Données démographiques'!$AI$5, IF(L15<>"", ABS('Données démographiques'!Z15-'Données démographiques'!AD15)*(B15*ABS('Données démographiques'!F15-'Données démographiques'!I15))*'Données démographiques'!$AI$4, "N/A"))), "N/A") -> N/A | Y15: ='Données démographiques'!M15*'Données démographiques'!C15*'Données démographiques'!$AI$9 -> 0 | Z15: =IF('Données démographiques'!N15<>"",'Données démographiques'!N15*'Données démographiques'!C15*'Données démographiques'!$AI$9,"N/A") -> N/A | AA15: =IF('Données démographiques'!O15<>"",'Données démographiques'!O15*'Données démographiques'!C15*'Données démographiques'!$AI$9,"N/A") -> N/A | AB15: =B15*'Données démographiques'!P15*'Données démographiques'!AA15 -> 0 | AC15: =B15*'Données démographiques'!P15 -> 201398.7654 | AD15: =B15*'Données démographiques'!P15*ABS('Données démographiques'!AA15-'Données démographiques'!AE15)*'Données démographiques'!$AI$14 -> 0 | AE15: =B15*'Données démographiques'!P15*ABS('Données démographiques'!AA15-'Données démographiques'!AE15)*'Données démographiques'!$AI$15 -> 0 | AF15: =IF('Scénario 2 Facteurs contributif'!F18<>"", B15*'Données démographiques'!R15*'Scénario 2 Facteurs contributif'!F18,B15*'Données démographiques'!R15*'Scénario 3 - Analyse Nut.'!J14) -> 0 | AG15: =IF('Données démographiques'!T15<>"", B15*'Données démographiques'!T15*AF15, "N/A") -> N/A | AH15: =IF('Données démographiques'!S15<>"", B15*'Données démographiques'!S15*AF15, "N/A") -> N/A | AI15: =B15*'Données démographiques'!R15 -> 287712.522 | AJ15: =IF('Scénario 2 Facteurs contributif'!G18<>"", B15*'Données démographiques'!U15*'Scénario 2 Facteurs contributif'!G18,B15*'Données démographiques'!U15*'Scénario 3 - Analyse Nut.'!K14) -> 0 | AK15: =IF('Données démographiques'!V15<>"", B15*'Données démographiques'!V15*AJ15, "N/A") -> N/A | AL15: =IF('Données démographiques'!W15<>"", B15*'Données démographiques'!W15*AJ15, "N/A") -> N/A
A16: ='Données démographiques'!B16 -> Hirat | B16: ='Données démographiques'!C16 -> 5900680.62 | C16: =B16*('Données démographiques'!D16)*'Données démographiques'!X16 -> 0 | D16: =B16*('Données démographiques'!D16)*'Scénario 2 - Analyse Nut.'!B18 -> 0 | E16: =B16*('Données démographiques'!D16)*'Scénario 2 - Analyse Nut.'!C18 -> 0 | F16: =IF('Données démographiques'!E16<>"",IF(C16<>"",B16*('Données démographiques'!E16)*#REF!, IF(D16<>"", B16*('Données démographiques'!E16)*'Scénario 2 - Analyse Nut.'!B18, IF(E16<>"", B16*('Données démographiques'!E16)*'Scénario 2 - Analyse Nut.'!C18, "N/A"))), "N/A") -> N/A | G16: =IF('Données démographiques'!F16<>"",IF(C16<>"",B16*('Données démographiques'!F16)*#REF!, IF(D16<>"", B16*('Données démographiques'!F16)*'Scénario 2 - Analyse Nut.'!B18, IF(E16<>"", B16*('Données démographiques'!F16)*'Scénario 2 - Analyse Nut.'!C18, "N/A"))), "N/A") -> N/A | H16: =B16*('Données démographiques'!D16) -> 944108.8992 | I16: ='Données démographiques'!AB16*(B16*'Données démographiques'!D16)*'Données démographiques'!$AI$4 -> 0 | J16: ='Données démographiques'!AC16*(B16*'Données démographiques'!D16)*'Données démographiques'!$AI$4 -> 0 | K16: ='Données démographiques'!AD16*(B16*'Données démographiques'!D16)*'Données démographiques'!$AI$4 -> 0 | L16: =IF('Données démographiques'!E16<>"",IF(I16<>"",'Données démographiques'!AB16*(B16*'Données démographiques'!E16)*'Données démographiques'!$AI$4, IF(J16<>"", 'Données démographiques'!AC16*(B16*'Données démographiques'!E16)*'Données démographiques'!$AI$4, IF(K16<>"", 'Données démographiques'!AD16*(B16*'Données démographiques'!E16)*'Données démographiques'!$AI$4, "N/A"))), "N/A") -> N/A | M16: =IF('Données démographiques'!F16<>"",IF(I16<>"",#REF!*(B16*'Données démographiques'!F16)*'Données démographiques'!$AI$4, IF(J16<>"",#REF!*( B16*'Données démographiques'!F16)*'Données démographiques'!$AI$4, IF(K16<>"",#REF!*( B16*'Données démographiques'!F16)*'Données démographiques'!$AI$4, "N/A"))), "N/A") -> N/A | N16: =IF(I16<>"",I16*'Données démographiques'!$AI$6,IF(J16<>"",J16*'Données démographiques'!$AI$6,IF(K16<>"",K16*'Données démographiques'!$AI$6,"Key Values"))) -> 0 | O16: =IF(L16<>"N/A",L16*'Données démographiques'!$AI$6,"N/A") -> N/A | P16: =IF(M16<>"N/A",M16*'Données démographiques'!$AI$6,"N/A") -> N/A | Q16: =IF(I16<>"", 'Données démographiques'!AB16*(B16*ABS('Données démographiques'!D16-'Données démographiques'!G16))*'Données démographiques'!$AI$4*'Données démographiques'!$AI$7, IF(J16<>"", 'Données démographiques'!AC16*(B16*ABS('Données démographiques'!D16-'Données démographiques'!G16))*'Données démographiques'!$AI$4*'Données démographiques'!$AI$7, IF(K16<>"", 'Données démographiques'!AD16*(B16*ABS('Données démographiques'!D16-'Données démographiques'!G16))*'Données démographiques'!$AI$4*'Données démographiques'!$AI$7, "Key Values"))) -> 0 | R16: =IF('Données démographiques'!E16<>"", IF(I16<>"",'Données démographiques'!AB16*(B16*ABS('Données démographiques'!E16-'Données démographiques'!H16))*'Données démographiques'!$AI$4, IF(J16<>"", 'Données démographiques'!AC16*(B16*ABS('Données démographiques'!E16-'Données démographiques'!H16))*'Données démographiques'!$AI$4, IF(K16<>"", 'Données démographiques'!AD16*(B16*ABS('Données démographiques'!E16-'Données démographiques'!H16))*'Données démographiques'!$AI$4, "N/A"))), "N/A") -> N/A | S16: =IF('Données démographiques'!E16<>"", IF(I16<>"",'Données démographiques'!AB16*(B16*ABS('Données démographiques'!F16-'Données démographiques'!I16))*'Données démographiques'!$AI$4, IF(J16<>"", 'Données démographiques'!AC16*(B16*ABS('Données démographiques'!F16-'Données démographiques'!I16))*'Données démographiques'!$AI$4, IF(K16<>"", 'Données démographiques'!AD16*(B16*ABS('Données démographiques'!F16-'Données démographiques'!I16))*'Données démographiques'!$AI$4, "N/A"))), "N/A") -> N/A | T16: =('Données démographiques'!X16-'Données démographiques'!AB16)*(B16*ABS('Données démographiques'!D16-'Données démographiques'!G16)*'Données démographiques'!$AI$5) -> 0 | U16: =ABS('Données démographiques'!Y16-'Données démographiques'!AC16)*(B16*ABS('Données démographiques'!D16-'Données démographiques'!G16))*'Données démographiques'!$AI$5 -> 0 | V16: =ABS('Données démographiques'!Z16-'Données démographiques'!AD16)*(B16*ABS('Données démographiques'!D16-'Données démographiques'!G16)*'Données démographiques'!$AI$5) -> 0 | W16: =IF('Données démographiques'!E16<>"",IF(I16<>"",('Données démographiques'!X16-'Données démographiques'!AB16)*(ABS('Données démographiques'!E16-'Données démographiques'!H16)*B16*'Données démographiques'!D16)*'Données démographiques'!$AI$5, IF(J16<>"", ABS('Données démographiques'!Y16-'Données démographiques'!AC16)*(ABS('Données démographiques'!E16-'Données démographiques'!H16)*B16*'Données démographiques'!D16)*'Données démographiques'!$AI$5, IF(K16<>"", ABS('Données démographiques'!Z16-'Données démographiques'!AD16)*(B16*ABS('Données démographiques'!E16-'Données démographiques'!H16))*'Données démographiques'!$AI$4, "N/A"))), "N/A") -> N/A | X16: =IF('Données démographiques'!F16<>"",IF(J16<>"",('Données démographiques'!X16-'Données démographiques'!AB16)*(ABS('Données démographiques'!F16-'Données démographiques'!I16)*B16*'Données démographiques'!E16)*'Données démographiques'!$AI$5, IF(K16<>"", ABS('Données démographiques'!Y16-'Données démographiques'!AC16)*(ABS('Données démographiques'!F16-'Données démographiques'!I16)*B16*'Données démographiques'!E16)*'Données démographiques'!$AI$5, IF(L16<>"", ABS('Données démographiques'!Z16-'Données démographiques'!AD16)*(B16*ABS('Données démographiques'!F16-'Données démographiques'!I16))*'Données démographiques'!$AI$4, "N/A"))), "N/A") -> N/A | Y16: ='Données démographiques'!M16*'Données démographiques'!C16*'Données démographiques'!$AI$9 -> 0 | Z16: =IF('Données démographiques'!N16<>"",'Données démographiques'!N16*'Données démographiques'!C16*'Données démographiques'!$AI$9,"N/A") -> N/A | AA16: =IF('Données démographiques'!O16<>"",'Données démographiques'!O16*'Données démographiques'!C16*'Données démographiques'!$AI$9,"N/A") -> N/A | AB16: =B16*'Données démographiques'!P16*'Données démographiques'!AA16 -> 0 | AC16: =B16*'Données démographiques'!P16 -> 413047.6434 | AD16: =B16*'Données démographiques'!P16*ABS('Données démographiques'!AA16-'Données démographiques'!AE16)*'Données démographiques'!$AI$14 -> 0 | AE16: =B16*'Données démographiques'!P16*ABS('Données démographiques'!AA16-'Données démographiques'!AE16)*'Données démographiques'!$AI$15 -> 0 | AF16: =IF('Scénario 2 Facteurs contributif'!F19<>"", B16*'Données démographiques'!R16*'Scénario 2 Facteurs contributif'!F19,B16*'Données démographiques'!R16*'Scénario 3 - Analyse Nut.'!J15) -> 0 | AG16: =IF('Données démographiques'!T16<>"", B16*'Données démographiques'!T16*AF16, "N/A") -> N/A | AH16: =IF('Données démographiques'!S16<>"", B16*'Données démographiques'!S16*AF16, "N/A") -> N/A | AI16: =B16*'Données démographiques'!R16 -> 590068.062 | AJ16: =IF('Scénario 2 Facteurs contributif'!G19<>"", B16*'Données démographiques'!U16*'Scénario 2 Facteurs contributif'!G19,B16*'Données démographiques'!U16*'Scénario 3 - Analyse Nut.'!K15) -> 0 | AK16: =IF('Données démographiques'!V16<>"", B16*'Données démographiques'!V16*AJ16, "N/A") -> N/A | AL16: =IF('Données démographiques'!W16<>"", B16*'Données démographiques'!W16*AJ16, "N/A") -> N/A
A17: ='Données démographiques'!B17 -> Jawzjan | B17: ='Données démographiques'!C17 -> 1682694 | C17: =B17*('Données démographiques'!D17)*'Données démographiques'!X17 -> 0 | D17: =B17*('Données démographiques'!D17)*'Scénario 2 - Analyse Nut.'!B19 -> 0 | E17: =B17*('Données démographiques'!D17)*'Scénario 2 - Analyse Nut.'!C19 -> 0 | F17: =IF('Données démographiques'!E17<>"",IF(C17<>"",B17*('Données démographiques'!E17)*#REF!, IF(D17<>"", B17*('Données démographiques'!E17)*'Scénario 2 - Analyse Nut.'!B19, IF(E17<>"", B17*('Données démographiques'!E17)*'Scénario 2 - Analyse Nut.'!C19, "N/A"))), "N/A") -> N/A | G17: =IF('Données démographiques'!F17<>"",IF(C17<>"",B17*('Données démographiques'!F17)*#REF!, IF(D17<>"", B17*('Données démographiques'!F17)*'Scénario 2 - Analyse Nut.'!B19, IF(E17<>"", B17*('Données démographiques'!F17)*'Scénario 2 - Analyse Nut.'!C19, "N/A"))), "N/A") -> N/A | H17: =B17*('Données démographiques'!D17) -> 269231.04 | I17: ='Données démographiques'!AB17*(B17*'Données démographiques'!D17)*'Données démographiques'!$AI$4 -> 0 | J17: ='Données démographiques'!AC17*(B17*'Données démographiques'!D17)*'Données démographiques'!$AI$4 -> 0 | K17: ='Données démographiques'!AD17*(B17*'Données démographiques'!D17)*'Données démographiques'!$AI$4 -> 0 | L17: =IF('Données démographiques'!E17<>"",IF(I17<>"",'Données démographiques'!AB17*(B17*'Données démographiques'!E17)*'Données démographiques'!$AI$4, IF(J17<>"", 'Données démographiques'!AC17*(B17*'Données démographiques'!E17)*'Données démographiques'!$AI$4, IF(K17<>"", 'Données démographiques'!AD17*(B17*'Données démographiques'!E17)*'Données démographiques'!$AI$4, "N/A"))), "N/A") -> N/A | M17: =IF('Données démographiques'!F17<>"",IF(I17<>"",#REF!*(B17*'Données démographiques'!F17)*'Données démographiques'!$AI$4, IF(J17<>"",#REF!*( B17*'Données démographiques'!F17)*'Données démographiques'!$AI$4, IF(K17<>"",#REF!*( B17*'Données démographiques'!F17)*'Données démographiques'!$AI$4, "N/A"))), "N/A") -> N/A | N17: =IF(I17<>"",I17*'Données démographiques'!$AI$6,IF(J17<>"",J17*'Données démographiques'!$AI$6,IF(K17<>"",K17*'Données démographiques'!$AI$6,"Key Values"))) -> 0 | O17: =IF(L17<>"N/A",L17*'Données démographiques'!$AI$6,"N/A") -> N/A | P17: =IF(M17<>"N/A",M17*'Données démographiques'!$AI$6,"N/A") -> N/A | Q17: =IF(I17<>"", 'Données démographiques'!AB17*(B17*ABS('Données démographiques'!D17-'Données démographiques'!G17))*'Données démographiques'!$AI$4*'Données démographiques'!$AI$7, IF(J17<>"", 'Données démographiques'!AC17*(B17*ABS('Données démographiques'!D17-'Données démographiques'!G17))*'Données démographiques'!$AI$4*'Données démographiques'!$AI$7, IF(K17<>"", 'Données démographiques'!AD17*(B17*ABS('Données démographiques'!D17-'Données démographiques'!G17))*'Données démographiques'!$AI$4*'Données démographiques'!$AI$7, "Key Values"))) -> 0 | R17: =IF('Données démographiques'!E17<>"", IF(I17<>"",'Données démographiques'!AB17*(B17*ABS('Données démographiques'!E17-'Données démographiques'!H17))*'Données démographiques'!$AI$4, IF(J17<>"", 'Données démographiques'!AC17*(B17*ABS('Données démographiques'!E17-'Données démographiques'!H17))*'Données démographiques'!$AI$4, IF(K17<>"", 'Données démographiques'!AD17*(B17*ABS('Données démographiques'!E17-'Données démographiques'!H17))*'Données démographiques'!$AI$4, "N/A"))), "N/A") -> N/A | S17: =IF('Données démographiques'!E17<>"", IF(I17<>"",'Données démographiques'!AB17*(B17*ABS('Données démographiques'!F17-'Données démographiques'!I17))*'Données démographiques'!$AI$4, IF(J17<>"", 'Données démographiques'!AC17*(B17*ABS('Données démographiques'!F17-'Données démographiques'!I17))*'Données démographiques'!$AI$4, IF(K17<>"", 'Données démographiques'!AD17*(B17*ABS('Données démographiques'!F17-'Données démographiques'!I17))*'Données démographiques'!$AI$4, "N/A"))), "N/A") -> N/A | T17: =('Données démographiques'!X17-'Données démographiques'!AB17)*(B17*ABS('Données démographiques'!D17-'Données démographiques'!G17)*'Données démographiques'!$AI$5) -> 0 | U17: =ABS('Données démographiques'!Y17-'Données démographiques'!AC17)*(B17*ABS('Données démographiques'!D17-'Données démographiques'!G17))*'Données démographiques'!$AI$5 -> 0 | V17: =ABS('Données démographiques'!Z17-'Données démographiques'!AD17)*(B17*ABS('Données démographiques'!D17-'Données démographiques'!G17)*'Données démographiques'!$AI$5) -> 0 | W17: =IF('Données démographiques'!E17<>"",IF(I17<>"",('Données démographiques'!X17-'Données démographiques'!AB17)*(ABS('Données démographiques'!E17-'Données démographiques'!H17)*B17*'Données démographiques'!D17)*'Données démographiques'!$AI$5, IF(J17<>"", ABS('Données démographiques'!Y17-'Données démographiques'!AC17)*(ABS('Données démographiques'!E17-'Données démographiques'!H17)*B17*'Données démographiques'!D17)*'Données démographiques'!$AI$5, IF(K17<>"", ABS('Données démographiques'!Z17-'Données démographiques'!AD17)*(B17*ABS('Données démographiques'!E17-'Données démographiques'!H17))*'Données démographiques'!$AI$4, "N/A"))), "N/A") -> N/A | X17: =IF('Données démographiques'!F17<>"",IF(J17<>"",('Données démographiques'!X17-'Données démographiques'!AB17)*(ABS('Données démographiques'!F17-'Données démographiques'!I17)*B17*'Données démographiques'!E17)*'Données démographiques'!$AI$5, IF(K17<>"", ABS('Données démographiques'!Y17-'Données démographiques'!AC17)*(ABS('Données démographiques'!F17-'Données démographiques'!I17)*B17*'Données démographiques'!E17)*'Données démographiques'!$AI$5, IF(L17<>"", ABS('Données démographiques'!Z17-'Données démographiques'!AD17)*(B17*ABS('Données démographiques'!F17-'Données démographiques'!I17))*'Données démographiques'!$AI$4, "N/A"))), "N/A") -> N/A | Y17: ='Données démographiques'!M17*'Données démographiques'!C17*'Données démographiques'!$AI$9 -> 0 | Z17: =IF('Données démographiques'!N17<>"",'Données démographiques'!N17*'Données démographiques'!C17*'Données démographiques'!$AI$9,"N/A") -> N/A | AA17: =IF('Données démographiques'!O17<>"",'Données démographiques'!O17*'Données démographiques'!C17*'Données démographiques'!$AI$9,"N/A") -> N/A | AB17: =B17*'Données démographiques'!P17*'Données démographiques'!AA17 -> 0 | AC17: =B17*'Données démographiques'!P17 -> 117788.58 | AD17: =B17*'Données démographiques'!P17*ABS('Données démographiques'!AA17-'Données démographiques'!AE17)*'Données démographiques'!$AI$14 -> 0 | AE17: =B17*'Données démographiques'!P17*ABS('Données démographiques'!AA17-'Données démographiques'!AE17)*'Données démographiques'!$AI$15 -> 0 | AF17: =IF('Scénario 2 Facteurs contributif'!F20<>"", B17*'Données démographiques'!R17*'Scénario 2 Facteurs contributif'!F20,B17*'Données démographiques'!R17*'Scénario 3 - Analyse Nut.'!J16) -> 0 | AG17: =IF('Données démographiques'!T17<>"", B17*'Données démographiques'!T17*AF17, "N/A") -> N/A | AH17: =IF('Données démographiques'!S17<>"", B17*'Données démographiques'!S17*AF17, "N/A") -> N/A | AI17: =B17*'Données démographiques'!R17 -> 168269.4 | AJ17: =IF('Scénario 2 Facteurs contributif'!G20<>"", B17*'Données démographiques'!U17*'Scénario 2 Facteurs contributif'!G20,B17*'Données démographiques'!U17*'Scénario 3 - Analyse Nut.'!K16) -> 0 | AK17: =IF('Données démographiques'!V17<>"", B17*'Données démographiques'!V17*AJ17, "N/A") -> N/A | AL17: =IF('Données démographiques'!W17<>"", B17*'Données démographiques'!W17*AJ17, "N/A") -> N/A
A18: ='Données démographiques'!B18 -> Kabul | B18: ='Données démographiques'!C18 -> 13842577.08 | C18: =B18*('Données démographiques'!D18)*'Données démographiques'!X18 -> 0 | D18: =B18*('Données démographiques'!D18)*'Scénario 2 - Analyse Nut.'!B20 -> 0 | E18: =B18*('Données démographiques'!D18)*'Scénario 2 - Analyse Nut.'!C20 -> 0 | F18: =IF('Données démographiques'!E18<>"",IF(C18<>"",B18*('Données démographiques'!E18)*#REF!, IF(D18<>"", B18*('Données démographiques'!E18)*'Scénario 2 - Analyse Nut.'!B20, IF(E18<>"", B18*('Données démographiques'!E18)*'Scénario 2 - Analyse Nut.'!C20, "N/A"))), "N/A") -> N/A | G18: =IF('Données démographiques'!F18<>"",IF(C18<>"",B18*('Données démographiques'!F18)*#REF!, IF(D18<>"", B18*('Données démographiques'!F18)*'Scénario 2 - Analyse Nut.'!B20, IF(E18<>"", B18*('Données démographiques'!F18)*'Scénario 2 - Analyse Nut.'!C20, "N/A"))), "N/A") -> N/A | H18: =B18*('Données démographiques'!D18) -> 2214812.333 | I18: ='Données démographiques'!AB18*(B18*'Données démographiques'!D18)*'Données démographiques'!$AI$4 -> 0 | J18: ='Données démographiques'!AC18*(B18*'Données démographiques'!D18)*'Données démographiques'!$AI$4 -> 0 | K18: ='Données démographiques'!AD18*(B18*'Données démographiques'!D18)*'Données démographiques'!$AI$4 -> 0 | L18: =IF('Données démographiques'!E18<>"",IF(I18<>"",'Données démographiques'!AB18*(B18*'Données démographiques'!E18)*'Données démographiques'!$AI$4, IF(J18<>"", 'Données démographiques'!AC18*(B18*'Données démographiques'!E18)*'Données démographiques'!$AI$4, IF(K18<>"", 'Données démographiques'!AD18*(B18*'Données démographiques'!E18)*'Données démographiques'!$AI$4, "N/A"))), "N/A") -> N/A | M18: =IF('Données démographiques'!F18<>"",IF(I18<>"",#REF!*(B18*'Données démographiques'!F18)*'Données démographiques'!$AI$4, IF(J18<>"",#REF!*( B18*'Données démographiques'!F18)*'Données démographiques'!$AI$4, IF(K18<>"",#REF!*( B18*'Données démographiques'!F18)*'Données démographiques'!$AI$4, "N/A"))), "N/A") -> N/A | N18: =IF(I18<>"",I18*'Données démographiques'!$AI$6,IF(J18<>"",J18*'Données démographiques'!$AI$6,IF(K18<>"",K18*'Données démographiques'!$AI$6,"Key Values"))) -> 0 | O18: =IF(L18<>"N/A",L18*'Données démographiques'!$AI$6,"N/A") -> N/A | P18: =IF(M18<>"N/A",M18*'Données démographiques'!$AI$6,"N/A") -> N/A | Q18: =IF(I18<>"", 'Données démographiques'!AB18*(B18*ABS('Données démographiques'!D18-'Données démographiques'!G18))*'Données démographiques'!$AI$4*'Données démographiques'!$AI$7, IF(J18<>"", 'Données démographiques'!AC18*(B18*ABS('Données démographiques'!D18-'Données démographiques'!G18))*'Données démographiques'!$AI$4*'Données démographiques'!$AI$7, IF(K18<>"", 'Données démographiques'!AD18*(B18*ABS('Données démographiques'!D18-'Données démographiques'!G18))*'Données démographiques'!$AI$4*'Données démographiques'!$AI$7, "Key Values"))) -> 0 | R18: =IF('Données démographiques'!E18<>"", IF(I18<>"",'Données démographiques'!AB18*(B18*ABS('Données démographiques'!E18-'Données démographiques'!H18))*'Données démographiques'!$AI$4, IF(J18<>"", 'Données démographiques'!AC18*(B18*ABS('Données démographiques'!E18-'Données démographiques'!H18))*'Données démographiques'!$AI$4, IF(K18<>"", 'Données démographiques'!AD18*(B18*ABS('Données démographiques'!E18-'Données démographiques'!H18))*'Données démographiques'!$AI$4, "N/A"))), "N/A") -> N/A | S18: =IF('Données démographiques'!E18<>"", IF(I18<>"",'Données démographiques'!AB18*(B18*ABS('Données démographiques'!F18-'Données démographiques'!I18))*'Données démographiques'!$AI$4, IF(J18<>"", 'Données démographiques'!AC18*(B18*ABS('Données démographiques'!F18-'Données démographiques'!I18))*'Données démographiques'!$AI$4, IF(K18<>"", 'Données démographiques'!AD18*(B18*ABS('Données démographiques'!F18-'Données démographiques'!I18))*'Données démographiques'!$AI$4, "N/A"))), "N/A") -> N/A | T18: =('Données démographiques'!X18-'Données démographiques'!AB18)*(B18*ABS('Données démographiques'!D18-'Données démographiques'!G18)*'Données démographiques'!$AI$5) -> 0 | U18: =ABS('Données démographiques'!Y18-'Données démographiques'!AC18)*(B18*ABS('Données démographiques'!D18-'Données démographiques'!G18))*'Données démographiques'!$AI$5 -> 0 | V18: =ABS('Données démographiques'!Z18-'Données démographiques'!AD18)*(B18*ABS('Données démographiques'!D18-'Données démographiques'!G18)*'Données démographiques'!$AI$5) -> 0 | W18: =IF('Données démographiques'!E18<>"",IF(I18<>"",('Données démographiques'!X18-'Données démographiques'!AB18)*(ABS('Données démographiques'!E18-'Données démographiques'!H18)*B18*'Données démographiques'!D18)*'Données démographiques'!$AI$5, IF(J18<>"", ABS('Données démographiques'!Y18-'Données démographiques'!AC18)*(ABS('Données démographiques'!E18-'Données démographiques'!H18)*B18*'Données démographiques'!D18)*'Données démographiques'!$AI$5, IF(K18<>"", ABS('Données démographiques'!Z18-'Données démographiques'!AD18)*(B18*ABS('Données démographiques'!E18-'Données démographiques'!H18))*'Données démographiques'!$AI$4, "N/A"))), "N/A") -> N/A | X18: =IF('Données démographiques'!F18<>"",IF(J18<>"",('Données démographiques'!X18-'Données démographiques'!AB18)*(ABS('Données démographiques'!F18-'Données démographiques'!I18)*B18*'Données démographiques'!E18)*'Données démographiques'!$AI$5, IF(K18<>"", ABS('Données démographiques'!Y18-'Données démographiques'!AC18)*(ABS('Données démographiques'!F18-'Données démographiques'!I18)*B18*'Données démographiques'!E18)*'Données démographiques'!$AI$5, IF(L18<>"", ABS('Données démographiques'!Z18-'Données démographiques'!AD18)*(B18*ABS('Données démographiques'!F18-'Données démographiques'!I18))*'Données démographiques'!$AI$4, "N/A"))), "N/A") -> N/A | Y18: ='Données démographiques'!M18*'Données démographiques'!C18*'Données démographiques'!$AI$9 -> 0 | Z18: =IF('Données démographiques'!N18<>"",'Données démographiques'!N18*'Données démographiques'!C18*'Données démographiques'!$AI$9,"N/A") -> N/A | AA18: =IF('Données démographiques'!O18<>"",'Données démographiques'!O18*'Données démographiques'!C18*'Données démographiques'!$AI$9,"N/A") -> N/A | AB18: =B18*'Données démographiques'!P18*'Données démographiques'!AA18 -> 0 | AC18: =B18*'Données démographiques'!P18 -> 968980.3956 | AD18: =B18*'Données démographiques'!P18*ABS('Données démographiques'!AA18-'Données démographiques'!AE18)*'Données démographiques'!$AI$14 -> 0 | AE18: =B18*'Données démographiques'!P18*ABS('Données démographiques'!AA18-'Données démographiques'!AE18)*'Données démographiques'!$AI$15 -> 0 | AF18: =IF('Scénario 2 Facteurs contributif'!F21<>"", B18*'Données démographiques'!R18*'Scénario 2 Facteurs contributif'!F21,B18*'Données démographiques'!R18*'Scénario 3 - Analyse Nut.'!J17) -> 0 | AG18: =IF('Données démographiques'!T18<>"", B18*'Données démographiques'!T18*AF18, "N/A") -> N/A | AH18: =IF('Données démographiques'!S18<>"", B18*'Données démographiques'!S18*AF18, "N/A") -> N/A | AI18: =B18*'Données démographiques'!R18 -> 1384257.708 | AJ18: =IF('Scénario 2 Facteurs contributif'!G21<>"", B18*'Données démographiques'!U18*'Scénario 2 Facteurs contributif'!G21,B18*'Données démographiques'!U18*'Scénario 3 - Analyse Nut.'!K17) -> 0 | AK18: =IF('Données démographiques'!V18<>"", B18*'Données démographiques'!V18*AJ18, "N/A") -> N/A | AL18: =IF('Données démographiques'!W18<>"", B18*'Données démographiques'!W18*AJ18, "N/A") -> N/A
